Workbook

Sheet Cover
A1: IURC CAUSE NO. 45253
A2: On Behalf of Duke Energy Indiana, LLC
A3: FINAL ORDER - ATTACHMENT D
A4: Rate Design
A5: Workpaper RD16

Sheet Modeling Accuracy
A1: Modeling Variance Assessment
C5: SL
B8: Modeled Base Revenue | C8: =+'Revenue Comparison_SL'!BO14 -> 6533594.43
B9: Books | C9: =+'Revenue Comparison_SL'!BO22-'Revenue Comparison_SL'!BO16 -> 6527450.44
B10: Difference | C10: =C8-C9 -> 6143.99
B11: Percentage | C11: =C10/C9 -> 0.0009412541783
B13: Modeled Total Revenue | C13: =+'Revenue Comparison_SL'!BO18 -> 7385941
B14: Books | C14: =+'Revenue Comparison_SL'!BO22 -> 7379797.01
B15: Difference | C15: =C13-C14 -> 6143.99
B16: Percentage | C16: =IF(C14=0,0,C15/C14) -> 0.0008325418696

Sheet Revenue Comparison_SL
D2: July | I2: August | N2: September | S2: October | X2: November | AC2: December | AH2: January | AM2: February | AR2: March | AW2: April | BB2: May | BG2: June | BL2: Total | BQ2: Federal Tax Rate Reduction | BU2: Present Revenue | BY2: Proposed Revenue
A3: =CONCATENATE("PRESENT RATE REVENUE (PRO FORMA) - SL") -> PRESENT RATE REVENUE (PRO FORMA) - SL
G5: Revenue at | L5: Revenue at | Q5: Revenue at | V5: Revenue at | AA5: Revenue at | AF5: Revenue at | AK5: Revenue at | AP5: Revenue at | AU5: Revenue at | AZ5: Revenue at | BE5: Revenue at | BJ5: Revenue at | BO5: Revenue at | BS5: Revenue at | BW5: Revenue at | CA5: Revenue at
A6: Line | F6: Present | G6: Present | K6: Present | L6: Present | P6: Present | Q6: Present | U6: Present | V6: Present | Z6: Present | AA6: Present | AE6: Present | AF6: Present | AJ6: Present | AK6: Present | AO6: Present | AP6: Present | AT6: Present | AU6: Present | AY6: Present | AZ6: Present | BD6: Present | BE6: Present | BI6: Present | BJ6: Present | BN6: Present | BO6: Present | BR6: Pro Forma | BS6: Pro Forma Rates | BV6: Pro Forma | BW6: Pro Forma Rates | BZ6: Proposed | CA6: Proposed | CH6: Lighting | CI6: Energy
A7: No. | B7: Description | E7: Determinents | F7: Rate | G7: Rates | J7: Determinents | K7: Rate | L7: Rates | O7: Determinents | P7: Rate | Q7: Rates | T7: Determinents | U7: Rate | V7: Rates | Y7: Determinents | Z7: Rate | AA7: Rates | AD7: Determinents | AE7: Rate | AF7: Rates | AI7: Determinents | AJ7: Rate | AK7: Rates | AN7: Determinents | AO7: Rate | AP7: Rates | AS7: Determinents | AT7: Rate | AU7: Rates | AX7: Determinents | AY7: Rate | AZ7: Rates | BC7: Determinents | BD7: Rate | BE7: Rates | BH7: Determinents | BI7: Rate | BJ7: Rates | BM7: Determinents | BN7: Rate | BO7: Rates | BQ7: Determinents | BR7: Rate | BS7: Rates | BU7: Determinents | BV7: Rate | BW7: Rates | BY7: Determinants | BZ7: Rate | CA7: Rates | CF7: Total SL | CH7: Equipment | CI7: Target
CE8: Total Fixed Cost
CE9: =CF11+CF12+CF13 -> 1363639 | CF9: 7349176 | CH9: 4344701 | CI9: =CF9-CH9 -> 3004475
A10: 1 | B10: Customer Charge | D10: # | E10: ='Bins Combined SL'!N109 -> 1716 | G10: 397857.1263 | I10: # | J10: ='Bins Combined SL'!Y109 -> 1712 | L10: 396643.9252 | N10: # | O10: ='Bins Combined SL'!AJ109 -> 1725 | Q10: 396770.9896 | S10: # | T10: ='Bins Combined SL'!AU109 -> 1685 | V10: 396761.3935 | X10: # | Y10: ='Bins Combined SL'!BF109 -> 1702 | AA10: 395365.1604 | AC10: # | AD10: ='Bins Combined SL'!BQ109 -> 1676 | AF10: 396175.5655 | AH10: # | AI10: ='Bins Combined SL'!CB109 -> 1688 | AK10: 396163.4466 | AM10: # | AN10: ='Bins Combined SL'!CM109 -> 1696 | AP10: 393492.5471 | AR10: # | AS10: ='Bins Combined SL'!CX109 -> 1727 | AU10: 393014.1381 | AW10: # | AX10: ='Bins Combined SL'!DI109 -> 1669 | AZ10: 395016.2646 | BB10: # | BC10: ='Bins Combined SL'!DT109 -> 1667 | BE10: 394824.2954 | BG10: # | BH10: ='Bins Combined SL'!EE109 -> 1658 | BJ10: 394789.0501 | BL10: # | BM10: =E10+J10+O10+T10+Y10+AD10+AI10+AN10+AS10+AX10+BC10+BH10 -> 20321 | BO10: =G10+L10+Q10+V10+AA10+AF10+AK10+AP10+AU10+AZ10+BE10+BJ10 -> 4746873.903 | BQ10: =BM10 -> 20321 | BS10: 0 | BU10: =BQ10 -> 20321 | BW10: 0 | BY10: =BV10 -> 0 | CA10: =+BX10 -> 0
CE11: Fixed | CF11: 35786 | CG11: =CF11/$CF$9 -> 0.004869389439 | CH11: Production
A12: 2 | B12: Energy Charges | D12: KWH | E12: 3312503 | F12: 0.045387 | G12: =F12*E12 -> 150344.5737 | I12: KWH | J12: 3275542 | K12: 0.045387 | L12: =K12*J12 -> 148667.0248 | N12: KWH | O12: 3291125 | P12: 0.045387 | Q12: =P12*O12 -> 149374.2904 | S12: KWH | T12: 3290159 | U12: 0.045387 | V12: =U12*T12 -> 149330.4465 | X12: KWH | Y12: 3278539 | Z12: 0.045387 | AA12: =Z12*Y12 -> 148803.0496 | AC12: KWH | AD12: 3286730 | AE12: 0.045387 | AF12: =AE12*AD12 -> 149174.8145 | AH12: KWH | AI12: 3286262 | AJ12: 0.045387 | AK12: =AJ12*AI12 -> 149153.5734 | AM12: KWH | AN12: 3261842 | AO12: 0.045387 | AP12: =AO12*AN12 -> 148045.2229 | AR12: KWH | AS12: 3261103 | AT12: 0.045387 | AU12: =AT12*AS12 -> 148011.6819 | AW12: KWH | AX12: 3275156 | AY12: 0.045387 | AZ12: =AY12*AX12 -> 148649.5054 | BB12: KWH | BC12: 3273875 | BD12: 0.045387 | BE12: =BD12*BC12 -> 148591.3646 | BG12: KWH | BH12: 3273514 | BI12: 0.045387 | BJ12: =BI12*BH12 -> 148574.9799 | BL12: KWH | BM12: =E12+J12+O12+T12+Y12+AD12+AI12+AN12+AS12+AX12+BC12+BH12 -> 39366350 | BN12: 0.045387 | BO12: =BN12*BM12 -> 1786720.527 | BQ12: =BM12 -> 39366350 | BR12: 0.04377 | BS12: =BR12*BQ12 -> 1723065.14 | BU12: 40438434 | BV12: =BR12 -> 0.04377 | BW12: =BV12*BU12 -> 1769990.256 | BY12: 40438434 | BZ12: =(CI9/BY12)*$CD$17 -> 0.07435936691 | CA12: =BZ12*BY12 -> 3006976.351 | CB12: SL's new energy rate | CE12: Network | CF12: 9223 | CG12: =CF12/$CF$9 -> 0.001254970625 | CH12: Transmission
CE13: =CF15 -> 189781 | CF13: 1318630 | CG13: =CF13/$CF$9 -> 0.1794255574 | CH13: Distribution / Includes Network Connection Costs
A14: =A12+1 -> 3 | B14: Subtotal | G14: =G10+G12 -> 548201.7 | L14: =L10+L12 -> 545310.95 | Q14: =Q10+Q12 -> 546145.28 | V14: =V10+V12 -> 546091.84 | AA14: =AA10+AA12 -> 544168.21 | AF14: =AF10+AF12 -> 545350.38 | AK14: =AK10+AK12 -> 545317.02 | AP14: =AP10+AP12 -> 541537.77 | AU14: =AU10+AU12 -> 541025.82 | AZ14: =AZ10+AZ12 -> 543665.77 | BE14: =BE10+BE12 -> 543415.66 | BJ14: =BJ10+BJ12 -> 543364.03 | BO14: =BO10+BO12 -> 6533594.43 | BS14: =BS10+BS12 -> 1723065.14 | BW14: =BW10+BW12 -> 1769990.256 | CA14: =CA10+CA12 -> 3006976.351 | CC14: Modeled Revenue | CD14: =CA22 -> 3004475
CC15: Target Revenue | CD15: =CI9 -> 3004475 | CE15: Energy | CF15: 189781 | CG15: =CF15/$CF$9 -> 0.02582343925 | CH15: Fixed Connections
A16: =A14+1 -> 4 | B16: Trackers | G16: 76083.06 | L16: 75263.49 | Q16: 75435.08 | V16: 67174.64 | AA16: 68744.55 | AF16: 68918.22 | AK16: 67947.04 | AP16: 67437.04 | AU16: 68129.94 | AZ16: 72647.35 | BE16: 72392.33 | BJ16: 72173.83 | BO16: =G16+L16+Q16+V16+AA16+AF16+AK16+AP16+AU16+AZ16+BE16+BJ16 -> 852346.57 | BS16: =BO16 -> 852346.57 | BW16: 969338.0716 | CA16: 0 | CC16: Difference | CD16: =CD15-CD14 -> 0 | CE16: Charge | CF16: =CF17-CF15 -> 422793 | CH16: Network Connection / Distribution
CC17: Factor | CD17: 1.000832542 | CE17: =CF19/BY12 -> 0.03588306609 | CF17: 612574 | CH17: Total Connection
A18: =A16+1 -> 5 | B18: Calculated Revenue | G18: =G14+G16 -> 624284.76 | L18: =L14+L16 -> 620574.44 | Q18: =Q14+Q16 -> 621580.36 | V18: =V14+V16 -> 613266.48 | AA18: =AA14+AA16 -> 612912.76 | AF18: =AF14+AF16 -> 614268.6 | AK18: =AK14+AK16 -> 613264.06 | AP18: =AP14+AP16 -> 608974.81 | AU18: =AU14+AU16 -> 609155.76 | AZ18: =AZ14+AZ16 -> 616313.12 | BE18: =BE14+BE16 -> 615807.99 | BJ18: =BJ14+BJ16 -> 615537.86 | BO18: =BO14+BO16 -> 7385941 | BS18: =BS14+BS16 -> 2575411.71 | BW18: =BW14+BW16 -> 2739328.328 | CA18: =CA14+CA16 -> 3006976.351
CF19: 1451055 | CG19: =CF19/$CF$9 -> 0.1974445843 | CH19: Energy
A20: =A18+1 -> 6 | B20: Spread Adjustment Factor | G20: 0.997342703 | L20: 1 | Q20: 0.9955715621 | V20: 1 | AA20: 0.9999444619 | AF20: 1 | AK20: 0.9995094772 | AP20: 1 | AU20: 1 | AZ20: 0.9999201218 | BE20: 1 | BJ20: 0.9978094605 | BO20: =+BO22/BO18 -> 0.9991681507 | BS20: =BO20 -> 0.9991681507 | BW20: =+BS20 -> 0.9991681507 | CA20: =BW20 -> 0.9991681507 | CE20: =CE9+CE13+CE17 -> 1553420.036 | CF20: =CF11+CF12+CF13+CF15+CF19 -> 3004475 | CH20: Check
A22: =A20+1 -> 7 | B22: Total Proforma Revenue before Other Adjustments | G22: =G18*G20 -> 622625.85 | L22: =L18*L20 -> 620574.44 | Q22: =Q18*Q20 -> 618827.73 | V22: =V18*V20 -> 613266.48 | AA22: =AA18*AA20 -> 612878.72 | AF22: =AF18*AF20 -> 614268.6 | AK22: =AK18*AK20 -> 612963.24 | AP22: =AP18*AP20 -> 608974.81 | AU22: =AU18*AU20 -> 609155.76 | AZ22: =AZ18*AZ20 -> 616263.89 | BE22: =BE18*BE20 -> 615807.99 | BJ22: =BJ18*BJ20 -> 614189.5 | BO22: =G22+L22+Q22+V22+AA22+AF22+AK22+AP22+AU22+AZ22+BE22+BJ22 -> 7379797.01 | BS22: =+BS18*BS20 -> 2573269.355 | BW22: =+BW18*BW20 -> 2737049.619 | CA22: =+CA18*CA20 -> 3004475 | CF22: 969338.0716 | CH22: Trackers Moved Into Base Rates
G23: = | L23: = | Q23: = | V23: = | AA23: = | AF23: = | AK23: = | AP23: = | AU23: = | AZ23: = | BE23: = | BJ23: = | BO23: = | BS23: = | BW23: = | CA23: = | CF23: 108480.706 | CG23: =SUM(CG11:CG19) -> 0.408817941 | CH23: Remaining In Trackers
CF24: =CF22+CF23 -> 1077818.778
BZ25: Trackers After Order | CA25: =CF23 -> 108480.706
CK26: =7565954+188340+1972+1628 -> 7757894
BZ27: Add URT | CA27: =(CA22+CA25)*0.014 -> 43581.37988 | CG27: =7565951+188340+1972+1628 -> 7757891
CF28: =CF22+CF23 -> 1077818.778
BZ29: Grandtotal | CA29: =+CA22+CA27+CA25 -> 3156537.086
A30: =A22+1 -> 8 | B30: Proforma Adjustments
BR31: Increase/(Decrease) | BS31: =BS22-BO22 -> -4806527.655 | BV31: Increase/(Decrease) | BW31: =BW22-BS22 -> 163780.2644 | BZ31: Increase/(Decrease) | CA31: =+CA29-BW22 -> 419487.4665
A32: =A30+1 -> 9 | B32: Percent Increase/(Decrease)
BR33: Pecentage | BS33: =+BS31/BO22 -> -0.6513089247 | BV33: Pecentage | BW33: =+BW31/BS22 -> 0.06364676284 | BZ33: Pecentage | CA33: =CA31/BW22 -> 0.1532626459 | CB33: Use to Increase SL Equipment Charges

Sheet Rates
E3: Present Rates | J3: Proposed | O3: Increase | T3: Percentage
C6: Mercury Vapor
C8: 175 Watts | D8: 8,000 lumens | E8: 17.47 | F8: 21.43 | G8: 8.26 | H8: 6.39 | J8: =E8+(E8*'Revenue Comparison_SL'!$CA$33) -> 20.14749842 | K8: =F8+(F8*'Revenue Comparison_SL'!$CA$33) -> 24.7144185 | L8: =G8+(G8*'Revenue Comparison_SL'!$CA$33) -> 9.525949455 | M8: =H8+(H8*'Revenue Comparison_SL'!$CA$33) -> 7.369348307 | O8: =J8-E8 -> 2.677498423 | P8: =K8-F8 -> 3.284418501 | Q8: 1.265949455 | R8: 0.979348307 | T8: =O8/E8 -> 0.1532626459 | U8: =P8/F8 -> 0.1532626459 | V8: =Q8/G8 -> 0.1532626459 | W8: =R8/H8 -> 0.1532626459
C9: 250 Watts | D9: 11,000 lumens | E9: 19.15 | F9: 22.19 | G9: 9.82 | H9: 8.02 | J9: =E9+(E9*'Revenue Comparison_SL'!$CA$33) -> 22.08497967 | K9: =F9+(F9*'Revenue Comparison_SL'!$CA$33) -> 25.59089811 | L9: =G9+(G9*'Revenue Comparison_SL'!$CA$33) -> 11.32503918 | M9: =H9+(H9*'Revenue Comparison_SL'!$CA$33) -> 9.24916642 | O9: =J9-E9 -> 2.934979668 | P9: 3.400898111 | Q9: 1.505039182 | R9: 1.22916642 | T9: =O9/E9 -> 0.1532626459 | U9: 0.1532626459 | V9: 0.1532626459 | W9: 0.1532626459
C10: 400 Watts | D10: 22,000 lumens | E10: 21.43 | F10: 24.44 | G10: 13.22 | H10: 10.22 | J10: =E10+(E10*'Revenue Comparison_SL'!$CA$33) -> 24.7144185 | K10: =F10+(F10*'Revenue Comparison_SL'!$CA$33) -> 28.18573906 | L10: =G10+(G10*'Revenue Comparison_SL'!$CA$33) -> 15.24613218 | M10: =H10+(H10*'Revenue Comparison_SL'!$CA$33) -> 11.78634424 | O10: 3.284418501 | P10: 3.745739065 | Q10: 2.026132178 | R10: 1.566344241 | T10: 0.1532626459 | U10: 0.1532626459 | V10: 0.1532626459 | W10: 0.1532626459
C11: 700 Watts | D11: 40,000 lumens | E11: 26.92 | F11: 29.88 | G11: 19.3 | H11: 15.58 | J11: =E11+(E11*'Revenue Comparison_SL'!$CA$33) -> 31.04583043 | K11: =F11+(F11*'Revenue Comparison_SL'!$CA$33) -> 34.45948786 | L11: =G11+(G11*'Revenue Comparison_SL'!$CA$33) -> 22.25796906 | M11: =H11+(H11*'Revenue Comparison_SL'!$CA$33) -> 17.96783202 | O11: 4.125830426 | P11: 4.579487858 | Q11: 2.957969065 | R11: 2.387832022 | T11: 0.1532626459 | U11: 0.1532626459 | V11: 0.1532626459 | W11: 0.1532626459
C12: 1000 Watts | D12: 59,000 lumens | E12: 31.8 | F12: 34.69 | G12: 24.2 | H12: 20.29 | J12: =E12+(E12*'Revenue Comparison_SL'!$CA$33) -> 36.67375214 | K12: =F12+(F12*'Revenue Comparison_SL'!$CA$33) -> 40.00668118 | L12: =G12+(G12*'Revenue Comparison_SL'!$CA$33) -> 27.90895603 | M12: =H12+(H12*'Revenue Comparison_SL'!$CA$33) -> 23.39969908 | O12: 4.873752138 | P12: 5.316681185 | Q12: 3.70895603 | R12: 3.109699084 | T12: 0.1532626459 | U12: 0.1532626459 | V12: 0.1532626459 | W12: 0.1532626459
C14: High Pressure Sodium
C16: 100 Watts | D16: 9,600 lumens | E16: 16.66 | F16: 19.63 | G16: 6.72 | H16: 6.03 | J16: =E16+(E16*'Revenue Comparison_SL'!$CA$33) -> 19.21335568 | K16: =F16+(F16*'Revenue Comparison_SL'!$CA$33) -> 22.63854574 | L16: =G16+(G16*'Revenue Comparison_SL'!$CA$33) -> 7.74992498 | M16: =H16+(H16*'Revenue Comparison_SL'!$CA$33) -> 6.954173754 | O16: =J16-E16 -> 2.55335568 | P16: =K16-F16 -> 3.008545738 | Q16: =L16-G16 -> 1.02992498 | R16: =M16-H16 -> 0.9241737545 | T16: =O16/E16 -> 0.1532626459 | U16: =P16/F16 -> 0.1532626459 | V16: =Q16/G16 -> 0.1532626459 | W16: =R16/H16 -> 0.1532626459
C17: 150 Watts | D17: 16,000 lumens | E17: 18.73 | F17: 21.83 | G17: 7.28 | H17: 7.17 | J17: =E17+(E17*'Revenue Comparison_SL'!$CA$33) -> 21.60060936 | K17: =F17+(F17*'Revenue Comparison_SL'!$CA$33) -> 25.17572356 | L17: =G17+(G17*'Revenue Comparison_SL'!$CA$33) -> 8.395752062 | M17: =H17+(H17*'Revenue Comparison_SL'!$CA$33) -> 8.268893171 | O17: 2.870609357 | P17: 3.345723559 | Q17: 1.115752062 | R17: 1.098893171 | T17: 0.1532626459 | U17: 0.1532626459 | V17: 0.1532626459 | W17: 0.1532626459
C18: 200 Watts | D18: 22,000 lumens | E18: 19.92 | F18: 23.02 | G18: 8.35 | H18: 8.31 | J18: =E18+(E18*'Revenue Comparison_SL'!$CA$33) -> 22.97299191 | K18: =F18+(F18*'Revenue Comparison_SL'!$CA$33) -> 26.54810611 | L18: =G18+(G18*'Revenue Comparison_SL'!$CA$33) -> 9.629743093 | M18: =H18+(H18*'Revenue Comparison_SL'!$CA$33) -> 9.583612587 | O18: 3.052991905 | P18: 3.528106108 | Q18: 1.279743093 | R18: 1.273612587 | T18: 0.1532626459 | U18: 0.1532626459 | V18: 0.1532626459 | W18: 0.1532626459
C19: 250 Watts | D19: 30,000 lumens | E19: 20.89 | F19: 24.02 | G19: 9.19 | H19: 9.41 | J19: =E19+(E19*'Revenue Comparison_SL'!$CA$33) -> 24.09165667 | K19: =F19+(F19*'Revenue Comparison_SL'!$CA$33) -> 27.70136875 | L19: =G19+(G19*'Revenue Comparison_SL'!$CA$33) -> 10.59848372 | M19: =H19+(H19*'Revenue Comparison_SL'!$CA$33) -> 10.8522015 | O19: 3.201656672 | P19: 3.681368753 | Q19: 1.408483715 | R19: 1.442201497 | T19: 0.1532626459 | U19: 0.1532626459 | V19: 0.1532626459 | W19: 0.1532626459
C20: 400 Watts | D20: 50,000 lumens | E20: 23.58 | F20: 26.69 | G20: 11.06 | H20: 11.97 | J20: =E20+(E20*'Revenue Comparison_SL'!$CA$33) -> 27.19393319 | K20: =F20+(F20*'Revenue Comparison_SL'!$CA$33) -> 30.78058002 | L20: =G20+(G20*'Revenue Comparison_SL'!$CA$33) -> 12.75508486 | M20: =H20+(H20*'Revenue Comparison_SL'!$CA$33) -> 13.80455387 | O20: 3.613933189 | P20: 4.090580018 | Q20: 1.695084863 | R20: 1.834553871 | T20: 0.1532626459 | U20: 0.1532626459 | V20: 0.1532626459 | W20: 0.1532626459
C22: Post Top
C24: 175 Watts | D24: 8,000 lumens | E24: 11.64 | F24: 12.98 | J24: =E24+(E24*'Revenue Comparison_SL'!$CA$33) -> 13.4239772 | K24: =F24+(F24*'Revenue Comparison_SL'!$CA$33) -> 14.96934914 | O24: =J24-E24 -> 1.783977198 | P24: 1.989349143 | T24: =O24/E24 -> 0.1532626459 | U24: =P24/F24 -> 0.1532626459
C25: 200 Watts | D25: 11,000 lumens | E25: 12.83 | F25: 15.06 | J25: =E25+(E25*'Revenue Comparison_SL'!$CA$33) -> 14.79635975 | K25: =F25+(F25*'Revenue Comparison_SL'!$CA$33) -> 17.36813545 | O25: 1.966359746 | P25: 2.308135447 | T25: 0.1532626459 | U25: 0.1532626459
C26: 400 Watts | D26: 22,000 lumens | E26: 20.26 | F26: 22.52 | J26: =E26+(E26*'Revenue Comparison_SL'!$CA$33) -> 23.3651012 | K26: =F26+(F26*'Revenue Comparison_SL'!$CA$33) -> 25.97147478 | O26: 3.105101205 | P26: 3.451474785 | T26: 0.1532626459 | U26: 0.1532626459
C28: High Pressure Sodium Lamps
C30: 100 Watts | D30: 9,600 lumens | E30: 10.95 | F30: 12.57 | J30: =E30+(E30*'Revenue Comparison_SL'!$CA$33) -> 12.62822597 | K30: =F30+(F30*'Revenue Comparison_SL'!$CA$33) -> 14.49651146 | O30: =J30-E30 -> 1.678225972 | P30: 1.926511458 | T30: =O30/E30 -> 0.1532626459 | U30: =P30/F30 -> 0.1532626459
C31: 150 Watts | D31: 16,000 lumens | E31: 11.77 | F31: 14.04 | J31: =E31+(E31*'Revenue Comparison_SL'!$CA$33) -> 13.57390134 | K31: =F31+(F31*'Revenue Comparison_SL'!$CA$33) -> 16.19180755 | O31: 1.803901342 | P31: 2.151807548 | T31: 0.1532626459 | U31: 0.1532626459
C32: 250 Watts | D32: 22,000 lumens | E32: 19.44 | F32: 21.77 | J32: =E32+(E32*'Revenue Comparison_SL'!$CA$33) -> 22.41942584 | K32: =F32+(F32*'Revenue Comparison_SL'!$CA$33) -> 25.1065278 | O32: 2.979425835 | P32: 3.3365278 | T32: 0.1532626459 | U32: 0.1532626459
C33: 400 Watts | D33: 50,000 lumens | E33: 19.87 | F33: 23.66 | J33: =E33+(E33*'Revenue Comparison_SL'!$CA$33) -> 22.91532877 | K33: =F33+(F33*'Revenue Comparison_SL'!$CA$33) -> 27.2861942 | O33: 3.045328773 | P33: 3.626194201 | T33: 0.1532626459 | U33: 0.1532626459
C35: Classic Fixture
C37: 100 Watts | D37: 9,600 lumens | E37: 30.78 | F37: 31.63 | J37: =E37+(E37*'Revenue Comparison_SL'!$CA$33) -> 35.49742424 | K37: =F37+(F37*'Revenue Comparison_SL'!$CA$33) -> 36.47769749 | O37: =J37-E37 -> 4.717424239 | P37: 4.847697488 | T37: =O37/E37 -> 0.1532626459 | U37: =P37/F37 -> 0.1532626459
C38: 150 Watts | D38: 16,000 lumens | E38: 31.64 | F38: 32.51 | J38: =E38+(E38*'Revenue Comparison_SL'!$CA$33) -> 36.48923011 | K38: =F38+(F38*'Revenue Comparison_SL'!$CA$33) -> 37.49256862 | O38: 4.849230115 | P38: 4.982568617 | T38: 0.1532626459 | U38: 0.1532626459
C39: 250 Watts | D39: 22,000 lumens | E39: 32.45 | F39: 33.37 | J39: =E39+(E39*'Revenue Comparison_SL'!$CA$33) -> 37.42337286 | K39: =F39+(F39*'Revenue Comparison_SL'!$CA$33) -> 38.48437449 | O39: 4.973372858 | P39: 5.114374492 | T39: 0.1532626459 | U39: 0.1532626459
C40: 400 Watts | D40: 50,000 lumens | E40: 33.55 | F40: 34.4 | J40: =E40+(E40*'Revenue Comparison_SL'!$CA$33) -> 38.69196177 | K40: =F40+(F40*'Revenue Comparison_SL'!$CA$33) -> 39.67223502 | O40: 5.141961768 | P40: 5.272235017 | T40: 0.1532626459 | U40: 0.1532626459
C42: Rectangular Cutoff
C44: 100 Watts | D44: 9,600 lumens | E44: 19.06 | F44: 22.27 | G44: 7.69 | J44: =E44+(E44*'Revenue Comparison_SL'!$CA$33) -> 21.98118603 | K44: =F44+(F44*'Revenue Comparison_SL'!$CA$33) -> 25.68315912 | L44: =G44+(G44*'Revenue Comparison_SL'!$CA$33) -> 8.868589747 | O44: =J44-E44 -> 2.92118603 | P44: 3.413159123 | Q44: 1.178589747 | T44: =O44/E44 -> 0.1532626459 | U44: =P44/F44 -> 0.1532626459 | V44: =Q44/G44 -> 0.1532626459
C45: 150 Watts | D45: 16,000 lumens | E45: 21.34 | F45: 21.8 | G45: 8.29 | J45: =E45+(E45*'Revenue Comparison_SL'!$CA$33) -> 24.61062486 | K45: =F45+(F45*'Revenue Comparison_SL'!$CA$33) -> 25.14112568 | L45: =G45+(G45*'Revenue Comparison_SL'!$CA$33) -> 9.560547334 | O45: 3.270624862 | P45: 3.34112568 | Q45: 1.270547334 | T45: 0.1532626459 | U45: 0.1532626459 | V45: 0.1532626459
C46: 200 Watts | D46: 22,000 lumens | E46: 20.74 | F46: 24.17 | G46: 9.21 | J46: =E46+(E46*'Revenue Comparison_SL'!$CA$33) -> 23.91866727 | K46: =F46+(F46*'Revenue Comparison_SL'!$CA$33) -> 27.87435815 | L46: =G46+(G46*'Revenue Comparison_SL'!$CA$33) -> 10.62154897 | O46: 3.178667275 | P46: 3.70435815 | Q46: 1.411548968 | T46: 0.1532626459 | U46: 0.1532626459 | V46: 0.1532626459
C47: 250 Watts | D47: 30,000 lumens | E47: 23.22 | F47: 25.41 | G47: 10.49 | J47: =E47+(E47*'Revenue Comparison_SL'!$CA$33) -> 26.77875864 | K47: =F47+(F47*'Revenue Comparison_SL'!$CA$33) -> 29.30440383 | L47: =G47+(G47*'Revenue Comparison_SL'!$CA$33) -> 12.09772515 | O47: 3.558758637 | P47: 3.894403831 | Q47: 1.607725155 | T47: 0.1532626459 | U47: 0.1532626459 | V47: 0.1532626459
C48: 400 Watts | D48: 50,000 lumens | E48: 25.56 | F48: 27.77 | G48: 12.84 | J48: =E48+(E48*'Revenue Comparison_SL'!$CA$33) -> 29.47739323 | K48: =F48+(F48*'Revenue Comparison_SL'!$CA$33) -> 32.02610368 | L48: =G48+(G48*'Revenue Comparison_SL'!$CA$33) -> 14.80789237 | O48: 3.917393228 | P48: 4.256103675 | Q48: 1.967892373 | T48: 0.1532626459 | U48: 0.1532626459 | V48: 0.1532626459

Sheet Bins Combined SL
A1: Metered Outdoor Lighting Service (SL)
A2: Total | B2: 12 Months Ended June 2018 | M2: 2017-07-01 | X2: 2017-08-01 | AI2: 2017-09-01 | AT2: 2017-10-01 | BE2: 2017-11-01 | BP2: 2017-12-01 | CA2: 2018-01-01 | CL2: 2018-02-01 | CW2: 2018-03-01 | DH2: 2018-04-01 | DS2: 2018-05-01 | ED2: 2018-06-01
E3: Cumulative | F3: Cumulative | G3: Percent of | J3: Percent | K3: Use to | P3: Cumulative | Q3: Cumulative | R3: Percent of | U3: Percent | V3: Use to | AA3: Cumulative | AB3: Cumulative | AC3: Percent of | AF3: Percent | AG3: Use to | AL3: Cumulative | AM3: Cumulative | AN3: Percent of | AQ3: Percent | AR3: Use to | AW3: Cumulative | AX3: Cumulative | AY3: Percent of | BB3: Percent | BC3: Use to | BH3: Cumulative | BI3: Cumulative | BJ3: Percent of | BM3: Percent | BN3: Use to | BS3: Cumulative | BT3: Cumulative | BU3: Percent of | BX3: Percent | BY3: Use to | CD3: Cumulative | CE3: Cumulative | CF3: Percent of | CI3: Percent | CJ3: Use to | CO3: Cumulative | CP3: Cumulative | CQ3: Percent of | CT3: Percent | CU3: Use to | CZ3: Cumulative | DA3: Cumulative | DB3: Percent of | DE3: Percent | DF3: Use to | DK3: Cumulative | DL3: Cumulative | DM3: Percent of | DP3: Percent | DQ3: Use to | DV3: Cumulative | DW3: Cumulative | DX3: Percent of | EA3: Percent | EB3: Use to | EG3: Cumulative | EH3: Cumulative | EI3: Percent of | EL3: Percent | EM3: Use to
B4: Ending | C4: Customer | D4: Kilowatt- | E4: Customer | F4: Kilowatt- | G4: Customer | H4: Consolodation | I4: Sales in | J4: Consolidated | K4: Average | M4: Ending | N4: Customer | O4: Kilowatt- | P4: Customer | Q4: Kilowatt- | R4: Customer | S4: Consolodation | T4: Sales in | U4: Consolidated | V4: Average | X4: Ending | Y4: Customer | Z4: Kilowatt- | AA4: Customer | AB4: Kilowatt- | AC4: Customer | AD4: Consolodation | AE4: Sales in | AF4: Consolidated | AG4: Average | AI4: Ending | AJ4: Customer | AK4: Kilowatt- | AL4: Customer | AM4: Kilowatt- | AN4: Customer | AO4: Consolodation | AP4: Sales in | AQ4: Consolidated | AR4: Average | AT4: Ending | AU4: Customer | AV4: Kilowatt- | AW4: Customer | AX4: Kilowatt- | AY4: Customer | AZ4: Consolodation | BA4: Sales in | BB4: Consolidated | BC4: Average | BE4: Ending | BF4: Customer | BG4: Kilowatt- | BH4: Customer | BI4: Kilowatt- | BJ4: Customer | BK4: Consolodation | BL4: Sales in | BM4: Consolidated | BN4: Average | BP4: Ending | BQ4: Customer | BR4: Kilowatt- | BS4: Customer | BT4: Kilowatt- | BU4: Customer | BV4: Consolodation | BW4: Sales in | BX4: Consolidated | BY4: Average | CA4: Ending | CB4: Customer | CC4: Kilowatt- | CD4: Customer | CE4: Kilowatt- | CF4: Customer | CG4: Consolodation | CH4: Sales in | CI4: Consolidated | CJ4: Average | CL4: Ending | CM4: Customer | CN4: Kilowatt- | CO4: Customer | CP4: Kilowatt- | CQ4: Customer | CR4: Consolodation | CS4: Sales in | CT4: Consolidated | CU4: Average | CW4: Ending | CX4: Customer | CY4: Kilowatt- | CZ4: Customer | DA4: Kilowatt- | DB4: Customer | DC4: Consolodation | DD4: Sales in | DE4: Consolidated | DF4: Average | DH4: Ending | DI4: Customer | DJ4: Kilowatt- | DK4: Customer | DL4: Kilowatt- | DM4: Customer | DN4: Consolodation | DO4: Sales in | DP4: Consolidated | DQ4: Average | DS4: Ending | DT4: Customer | DU4: Kilowatt- | DV4: Customer | DW4: Kilowatt- | DX4: Customer | DY4: Consolodation | DZ4: Sales in | EA4: Consolidated | EB4: Average | ED4: Ending | EE4: Customer | EF4: Kilowatt- | EG4: Customer | EH4: Kilowatt- | EI4: Customer | EJ4: Consolodation | EK4: Sales in | EL4: Consolidated | EM4: Average
A5: Line No. | B5: Internal | C5: Bills | D5: hours | E5: Bills | F5: Hours | G5: Bills | H5: Factor | I5: Interval | J5: Factor | K5: Use | M5: Internal | N5: Bills | O5: hours | P5: Bills | Q5: Hours | R5: Bills | S5: Factor | T5: Interval | U5: Factor | V5: Use | X5: Internal | Y5: Bills | Z5: hours | AA5: Bills | AB5: Hours | AC5: Bills | AD5: Factor | AE5: Interval | AF5: Factor | AG5: Use | AI5: Internal | AJ5: Bills | AK5: hours | AL5: Bills | AM5: Hours | AN5: Bills | AO5: Factor | AP5: Interval | AQ5: Factor | AR5: Use | AT5: Internal | AU5: Bills | AV5: hours | AW5: Bills | AX5: Hours | AY5: Bills | AZ5: Factor | BA5: Interval | BB5: Factor | BC5: Use | BE5: Internal | BF5: Bills | BG5: hours | BH5: Bills | BI5: Hours | BJ5: Bills | BK5: Factor | BL5: Interval | BM5: Factor | BN5: Use | BP5: Internal | BQ5: Bills | BR5: hours | BS5: Bills | BT5: Hours | BU5: Bills | BV5: Factor | BW5: Interval | BX5: Factor | BY5: Use | CA5: Internal | CB5: Bills | CC5: hours | CD5: Bills | CE5: Hours | CF5: Bills | CG5: Factor | CH5: Interval | CI5: Factor | CJ5: Use | CL5: Internal | CM5: Bills | CN5: hours | CO5: Bills | CP5: Hours | CQ5: Bills | CR5: Factor | CS5: Interval | CT5: Factor | CU5: Use | CW5: Internal | CX5: Bills | CY5: hours | CZ5: Bills | DA5: Hours | DB5: Bills | DC5: Factor | DD5: Interval | DE5: Factor | DF5: Use | DH5: Internal | DI5: Bills | DJ5: hours | DK5: Bills | DL5: Hours | DM5: Bills | DN5: Factor | DO5: Interval | DP5: Factor | DQ5: Use | DS5: Internal | DT5: Bills | DU5: hours | DV5: Bills | DW5: Hours | DX5: Bills | DY5: Factor | DZ5: Interval | EA5: Factor | EB5: Use | ED5: Internal | EE5: Bills | EF5: hours | EG5: Bills | EH5: Hours | EI5: Bills | EJ5: Factor | EK5: Interval | EL5: Factor | EM5: Use
A6: (A) | B6: (B) | C6: (C) | D6: (D) | E6: (E) | F6: (F) | G6: (G) | H6: (H) | I6: (I) | J6: (J) | K6: (K) | M6: (B) | N6: (C) | O6: (D) | P6: (E) | Q6: (F) | R6: (G) | S6: (H) | T6: (I) | U6: (J) | V6: (K) | X6: (B) | Y6: (C) | Z6: (D) | AA6: (E) | AB6: (F) | AC6: (G) | AD6: (H) | AE6: (I) | AF6: (J) | AG6: (K) | AI6: (B) | AJ6: (C) | AK6: (D) | AL6: (E) | AM6: (F) | AN6: (G) | AO6: (H) | AP6: (I) | AQ6: (J) | AR6: (K) | AT6: (B) | AU6: (C) | AV6: (D) | AW6: (E) | AX6: (F) | AY6: (G) | AZ6: (H) | BA6: (I) | BB6: (J) | BC6: (K) | BE6: (B) | BF6: (C) | BG6: (D) | BH6: (E) | BI6: (F) | BJ6: (G) | BK6: (H) | BL6: (I) | BM6: (J) | BN6: (K) | BP6: (B) | BQ6: (C) | BR6: (D) | BS6: (E) | BT6: (F) | BU6: (G) | BV6: (H) | BW6: (I) | BX6: (J) | BY6: (K) | CA6: (B) | CB6: (C) | CC6: (D) | CD6: (E) | CE6: (F) | CF6: (G) | CG6: (H) | CH6: (I) | CI6: (J) | CJ6: (K) | CL6: (B) | CM6: (C) | CN6: (D) | CO6: (E) | CP6: (F) | CQ6: (G) | CR6: (H) | CS6: (I) | CT6: (J) | CU6: (K) | CW6: (B) | CX6: (C) | CY6: (D) | CZ6: (E) | DA6: (F) | DB6: (G) | DC6: (H) | DD6: (I) | DE6: (J) | DF6: (K) | DH6: (B) | DI6: (C) | DJ6: (D) | DK6: (E) | DL6: (F) | DM6: (G) | DN6: (H) | DO6: (I) | DP6: (J) | DQ6: (K) | DS6: (B) | DT6: (C) | DU6: (D) | DV6: (E) | DW6: (F) | DX6: (G) | DY6: (H) | DZ6: (I) | EA6: (J) | EB6: (K) | ED6: (B) | EE6: (C) | EF6: (D) | EG6: (E) | EH6: (F) | EI6: (G) | EJ6: (H) | EK6: (I) | EL6: (J) | EM6: (K)
A8: 1 | B8: =+M8 -> 0 | C8: =+N8+Y8+AJ8+AU8+BF8+BQ8+CB8+CM8+CX8+DI8+DT8+EE8 -> 190 | D8: =+O8+Z8+AK8+AV8+BG8+BR8+CC8+CN8+CY8+DJ8+DU8+EF8 -> 0 | E8: =C8 -> 190 | F8: =D8 -> 0 | G8: =E8/$C$109 -> 0.009349933566 | H8: =F8+($C$109-E8)*B8 -> 0 | I8: 0 | J8: =IF(H8=0,0,IF(H8<0,0,H8/$I$109)) -> 0 | K8: =IF($K$109=0,0,IF(B8<0,0,B8/$K$109)) -> 0 | M8: 0 | N8: 16 | O8: 0 | P8: =N8 -> 16 | Q8: =O8 -> 0 | R8: =P8/N$109 -> 0.009324009324 | S8: =Q8+(N$109-P8)*M8 -> 0 | T8: 0 | U8: =IF(S8=0,0,IF(S8<0,0,S8/T$109)) -> 0 | V8: =IF($K$109=0,0,IF(M8<0,0,M8/V$109)) -> 0 | X8: 0 | Y8: 24 | Z8: 0 | AA8: =Y8 -> 24 | AB8: =Z8 -> 0 | AC8: =AA8/Y$109 -> 0.01401869159 | AD8: =AB8+(Y$109-AA8)*X8 -> 0 | AE8: 0 | AF8: =IF(AD8=0,0,IF(AD8<0,0,AD8/AE$109)) -> 0 | AG8: =IF($K$109=0,0,IF(X8<0,0,X8/AG$109)) -> 0 | AI8: 0 | AJ8: 34 | AK8: 0 | AL8: =AJ8 -> 34 | AM8: =AK8 -> 0 | AN8: =AL8/AJ$109 -> 0.01971014493 | AO8: =AM8+(AJ$109-AL8)*AI8 -> 0 | AP8: 0 | AQ8: =IF(AO8=0,0,IF(AO8<0,0,AO8/AP$109)) -> 0 | AR8: =IF($K$109=0,0,IF(AI8<0,0,AI8/AR$109)) -> 0 | AT8: 0 | AU8: 5 | AV8: 0 | AW8: =AU8 -> 5 | AX8: =AV8 -> 0 | AY8: =AW8/AU$109 -> 0.00296735905 | AZ8: =AX8+(AU$109-AW8)*AT8 -> 0 | BA8: 0 | BB8: =IF(AZ8=0,0,IF(AZ8<0,0,AZ8/BA$109)) -> 0 | BC8: =IF($K$109=0,0,IF(AT8<0,0,AT8/BC$109)) -> 0 | BE8: 0 | BF8: 17 | BG8: 0 | BH8: =BF8 -> 17 | BI8: =BG8 -> 0 | BJ8: =BH8/BF$109 -> 0.009988249119 | BK8: =BI8+(BF$109-BH8)*BE8 -> 0 | BL8: 0 | BM8: =IF(BK8=0,0,IF(BK8<0,0,BK8/BL$109)) -> 0 | BN8: =IF($K$109=0,0,IF(BE8<0,0,BE8/BN$109)) -> 0 | BP8: 0 | BQ8: 4 | BR8: 0 | BS8: =BQ8 -> 4 | BT8: =BR8 -> 0 | BU8: =BS8/BQ$109 -> 0.002386634845 | BV8: =BT8+(BQ$109-BS8)*BP8 -> 0 | BW8: 0 | BX8: =IF(BV8=0,0,IF(BV8<0,0,BV8/BW$109)) -> 0 | BY8: =IF($K$109=0,0,IF(BP8<0,0,BP8/BY$109)) -> 0 | CA8: 0 | CB8: 12 | CC8: 0 | CD8: =CB8 -> 12 | CE8: =CC8 -> 0 | CF8: =CD8/CB$109 -> 0.007109004739 | CG8: =CE8+(CB$109-CD8)*CA8 -> 0 | CH8: 0 | CI8: =IF(CG8=0,0,IF(CG8<0,0,CG8/CH$109)) -> 0 | CJ8: =IF($K$109=0,0,IF(CA8<0,0,CA8/CJ$109)) -> 0 | CL8: 0 | CM8: 24 | CN8: 0 | CO8: =CM8 -> 24 | CP8: =CN8 -> 0 | CQ8: =CO8/CM$109 -> 0.0141509434 | CR8: =CP8+(CM$109-CO8)*CL8 -> 0 | CS8: 0 | CT8: =IF(CR8=0,0,IF(CR8<0,0,CR8/CS$109)) -> 0 | CU8: =IF($K$109=0,0,IF(CL8<0,0,CL8/CU$109)) -> 0 | CW8: 0 | CX8: 40 | CY8: 0 | CZ8: =CX8 -> 40 | DA8: =CY8 -> 0 | DB8: =CZ8/CX$109 -> 0.02316155182 | DC8: =DA8+(CX$109-CZ8)*CW8 -> 0 | DD8: 0 | DE8: =IF(DC8=0,0,IF(DC8<0,0,DC8/DD$109)) -> 0 | DF8: =IF($K$109=0,0,IF(CW8<0,0,CW8/DF$109)) -> 0 | DH8: 0 | DI8: 10 | DJ8: 0 | DK8: =DI8 -> 10 | DL8: =DJ8 -> 0 | DM8: =DK8/DI$109 -> 0.005991611744 | DN8: =DL8+(DI$109-DK8)*DH8 -> 0 | DO8: 0 | DP8: =IF(DN8=0,0,IF(DN8<0,0,DN8/DO$109)) -> 0 | DQ8: =IF($K$109=0,0,IF(DH8<0,0,DH8/DQ$109)) -> 0 | DS8: 0 | DT8: 3 | DU8: 0 | DV8: =DT8 -> 3 | DW8: =DU8 -> 0 | DX8: =DV8/DT$109 -> 0.001799640072 | DY8: =DW8+(DT$109-DV8)*DS8 -> 0 | DZ8: 0 | EA8: =IF(DY8=0,0,IF(DY8<0,0,DY8/DZ$109)) -> 0 | EB8: =IF($K$109=0,0,IF(DS8<0,0,DS8/EB$109)) -> 0 | ED8: 0 | EE8: 1 | EF8: 0 | EG8: =EE8 -> 1 | EH8: =EF8 -> 0 | EI8: =EG8/EE$109 -> 0.0006031363088 | EJ8: =EH8+(EE$109-EG8)*ED8 -> 0 | EK8: 0 | EL8: =IF(EJ8=0,0,IF(EJ8<0,0,EJ8/EK$109)) -> 0 | EM8: =IF($K$109=0,0,IF(ED8<0,0,ED8/EM$109)) -> 0
A9: 2 | B9: =+M9 -> 100 | C9: =+N9+Y9+AJ9+AU9+BF9+BQ9+CB9+CM9+CX9+DI9+DT9+EE9 -> 3098 | D9: =+O9+Z9+AK9+AV9+BG9+BR9+CC9+CN9+CY9+DJ9+DU9+EF9 -> 172705.7768 | E9: =E8+C9 -> 3288 | F9: 172705.7768 | G9: =E9/$C$109 -> 0.1618030609 | H9: 1876005.777 | I9: =H9-H8 -> 1876005.777 | J9: =IF(H9=0,0,IF(H9<0,0,H9/$I$109)) -> 0.04765506014 | K9: =IF($K$109=0,0,IF(B9<0,0,B9/$K$109)) -> 0.05162022895 | M9: 100 | N9: 265 | O9: 14546.1135 | P9: =P8+N9 -> 281 | Q9: =Q8+O9 -> 14546.1135 | R9: =P9/N$109 -> 0.1637529138 | S9: =Q9+(N$109-P9)*M9 -> 158046.1135 | T9: =S9-S8 -> 158046.1135 | U9: =IF(S9=0,0,IF(S9<0,0,S9/T$109)) -> 0.04771199105 | V9: =IF($K$109=0,0,IF(M9<0,0,M9/V$109)) -> 0.05180372667 | X9: 100 | Y9: 260 | Z9: 14711.39328 | AA9: =AA8+Y9 -> 284 | AB9: =AB8+Z9 -> 14711.39328 | AC9: =AA9/Y$109 -> 0.1658878505 | AD9: =AB9+(Y$109-AA9)*X9 -> 157511.3933 | AE9: =AD9-AD8 -> 157511.3933 | AF9: =IF(AD9=0,0,IF(AD9<0,0,AD9/AE$109)) -> 0.04808712368 | AG9: =IF($K$109=0,0,IF(X9<0,0,X9/AG$109)) -> 0.05226615931 | AI9: 100 | AJ9: 261 | AK9: 12797.94263 | AL9: =AL8+AJ9 -> 295 | AM9: =AM8+AK9 -> 12797.94263 | AN9: =AL9/AJ$109 -> 0.1710144928 | AO9: =AM9+(AJ$109-AL9)*AI9 -> 155797.9426 | AP9: =AO9-AO8 -> 155797.9426 | AQ9: =IF(AO9=0,0,IF(AO9<0,0,AO9/AP$109)) -> 0.04733881048 | AR9: =IF($K$109=0,0,IF(AI9<0,0,AI9/AR$109)) -> 0.05241368833 | AT9: 100 | AU9: 261 | AV9: 13980.2125 | AW9: =AW8+AU9 -> 266 | AX9: =AX8+AV9 -> 13980.2125 | AY9: =AW9/AU$109 -> 0.1578635015 | AZ9: =AX9+(AU$109-AW9)*AT9 -> 155880.2125 | BA9: =AZ9-AZ8 -> 155880.2125 | BB9: =IF(AZ9=0,0,IF(AZ9<0,0,AZ9/BA$109)) -> 0.04737771412 | BC9: =IF($K$109=0,0,IF(AT9<0,0,AT9/BC$109)) -> 0.05121333042 | BE9: 100 | BF9: 264 | BG9: 14931.78059 | BH9: =BH8+BF9 -> 281 | BI9: =BI8+BG9 -> 14931.78059 | BJ9: =BH9/BF$109 -> 0.1650998825 | BK9: =BI9+(BF$109-BH9)*BE9 -> 157031.7806 | BL9: =BK9-BK8 -> 157031.7806 | BM9: =IF(BK9=0,0,IF(BK9<0,0,BK9/BL$109)) -> 0.04789687742 | BN9: =IF($K$109=0,0,IF(BE9<0,0,BE9/BN$109)) -> 0.05191336751 | BP9: 100 | BQ9: 256 | BR9: 14623.0115 | BS9: =BS8+BQ9 -> 260 | BT9: =BT8+BR9 -> 14623.0115 | BU9: =BS9/BQ$109 -> 0.1551312649 | BV9: =BT9+(BQ$109-BS9)*BP9 -> 156223.0115 | BW9: =BV9-BV8 -> 156223.0115 | BX9: =IF(BV9=0,0,IF(BV9<0,0,BV9/BW$109)) -> 0.04753144052 | BY9: =IF($K$109=0,0,IF(BP9<0,0,BP9/BY$109)) -> 0.05099293218 | CA9: 100 | CB9: 257 | CC9: 14574.15393 | CD9: =CD8+CB9 -> 269 | CE9: =CE8+CC9 -> 14574.15393 | CF9: =CD9/CB$109 -> 0.1593601896 | CG9: =CE9+(CB$109-CD9)*CA9 -> 156474.1539 | CH9: =CG9-CG8 -> 156474.1539 | CI9: =IF(CG9=0,0,IF(CG9<0,0,CG9/CH$109)) -> 0.04761463143 | CJ9: =IF($K$109=0,0,IF(CA9<0,0,CA9/CJ$109)) -> 0.05136535066 | CL9: 100 | CM9: 255 | CN9: 14556.97165 | CO9: =CO8+CM9 -> 279 | CP9: =CP8+CN9 -> 14556.97165 | CQ9: =CO9/CM$109 -> 0.164504717 | CR9: =CP9+(CM$109-CO9)*CL9 -> 156256.9717 | CS9: =CR9-CR8 -> 156256.9717 | CT9: =IF(CR9=0,0,IF(CR9<0,0,CR9/CS$109)) -> 0.04790451887 | CU9: =IF($K$109=0,0,IF(CL9<0,0,CL9/CU$109)) -> 0.05199516102 | CW9: 100 | CX9: 257 | CY9: 14352.99208 | CZ9: =CZ8+CX9 -> 297 | DA9: =DA8+CY9 -> 14352.99208 | DB9: =CZ9/CX$109 -> 0.1719745223 | DC9: =DA9+(CX$109-CZ9)*CW9 -> 157352.9921 | DD9: =DC9-DC8 -> 157352.9921 | DE9: =IF(DC9=0,0,IF(DC9<0,0,DC9/DD$109)) -> 0.04825146341 | DF9: =IF($K$109=0,0,IF(CW9<0,0,CW9/DF$109)) -> 0.05295754228 | DH9: 100 | DI9: 253 | DJ9: 14547.86288 | DK9: =DK8+DI9 -> 263 | DL9: =DL8+DJ9 -> 14547.86288 | DM9: =DK9/DI$109 -> 0.1575793889 | DN9: =DL9+(DI$109-DK9)*DH9 -> 155147.8629 | DO9: =DN9-DN8 -> 155147.8629 | DP9: =IF(DN9=0,0,IF(DN9<0,0,DN9/DO$109)) -> 0.04737113679 | DQ9: =IF($K$109=0,0,IF(DH9<0,0,DH9/DQ$109)) -> 0.05095940468 | DS9: 100 | DT9: 255 | DU9: 14615.1124 | DV9: =DV8+DT9 -> 258 | DW9: =DW8+DU9 -> 14615.1124 | DX9: =DV9/DT$109 -> 0.1547690462 | DY9: =DW9+(DT$109-DV9)*DS9 -> 155515.1124 | DZ9: =DY9-DY8 -> 155515.1124 | EA9: =IF(DY9=0,0,IF(DY9<0,0,DY9/DZ$109)) -> 0.04750184793 | EB9: =IF($K$109=0,0,IF(DS9<0,0,DS9/EB$109)) -> 0.05091825436 | ED9: 100 | EE9: 254 | EF9: 14468.22983 | EG9: =EG8+EE9 -> 255 | EH9: =EH8+EF9 -> 14468.22983 | EI9: =EG9/EE$109 -> 0.1537997587 | EJ9: =EH9+(EE$109-EG9)*ED9 -> 154768.2298 | EK9: =EJ9-EJ8 -> 154768.2298 | EL9: =IF(EJ9=0,0,IF(EJ9<0,0,EJ9/EK$109)) -> 0.04727892712 | EM9: =IF($K$109=0,0,IF(ED9<0,0,ED9/EM$109)) -> 0.05064893567
A10: 3 | B10: 200 | C10: 2416 | D10: 327129.9345 | E10: 5704 | F10: 499835.7113 | G10: 0.2806948477 | H10: 3423235.711 | I10: 1547229.935 | J10: =IF(H10=0,0,IF(H10<0,0,H10/$I$109)) -> 0.0869584229 | K10: 0.1032404579 | M10: 200 | N10: 202 | O10: 27599.78465 | P10: 483 | Q10: 42145.89815 | R10: 0.2814685315 | S10: 288745.8981 | T10: 130699.7847 | U10: 0.08716849408 | V10: 0.1036074533 | X10: 200 | Y10: 199 | Z10: 27177.62285 | AA10: 483 | AB10: 41889.01612 | AC10: 0.2821261682 | AD10: 287689.0161 | AE10: 130177.6228 | AF10: 0.08782943895 | AG10: 0.1045323186 | AI10: 200 | AJ10: 199 | AK10: 24047.28971 | AL10: 494 | AM10: 36845.23235 | AN10: 0.2863768116 | AO10: 283045.2323 | AP10: 127247.2897 | AQ10: 0.08600257734 | AR10: 0.1048273767 | AT10: 200 | AU10: 199 | AV10: 26268.77067 | AW10: 465 | AX10: 40248.98317 | AY10: 0.2759643917 | AZ10: 284248.9832 | BA10: 128368.7707 | BB10: 0.08639369197 | BC10: 0.1024266608 | BE10: 200 | BF10: 202 | BG10: 27998.70827 | BH10: 483 | BI10: 42930.48886 | BJ10: 0.2837837838 | BK10: 286730.4889 | BL10: 129698.7083 | BM10: 0.08745678757 | BN10: 0.103826735 | BP10: 200 | BQ10: 200 | BR10: 27727.64482 | BS10: 460 | BT10: 42350.65632 | BU10: 0.2744630072 | BV10: 285550.6563 | BW10: 129327.6448 | BX10: 0.08687986428 | BY10: 0.1019858644 | CA10: 200 | CB10: 201 | CC10: 27674.85282 | CD10: 470 | CE10: 42249.00675 | CF10: 0.278436019 | CG10: 285849.0068 | CH10: 129374.8528 | CI10: 0.0869830241 | CJ10: 0.1027307013 | CL10: 200 | CM10: 200 | CN10: 27358.62249 | CO10: 479 | CP10: 41915.59414 | CQ10: 0.2824292453 | CR10: 285315.5941 | CS10: 129058.6225 | CT10: 0.08747069728 | CU10: 0.103990322 | CW10: 200 | CX10: 210 | CY10: 27772.70253 | CZ10: 507 | DA10: 42125.69461 | DB10: 0.2935726694 | DC10: 286125.6946 | DD10: 128772.7025 | DE10: 0.08773893208 | DF10: 0.1059150846 | DH10: 200 | DI10: 201 | DJ10: 27804.82666 | DK10: 464 | DL10: 42352.68954 | DM10: 0.2780107849 | DN10: 283352.6895 | DO10: 128204.8267 | DP10: 0.08651578414 | DQ10: 0.1019188094 | DS10: 200 | DT10: 203 | DU10: 27993.66892 | DV10: 461 | DW10: 42608.78132 | DX10: 0.2765446911 | DY10: 283808.7813 | DZ10: 128293.6689 | EA10: 0.08668894852 | EB10: 0.1018365087 | ED10: 200 | EE10: 200 | EF10: 27705.4401 | EG10: 455 | EH10: 42173.66993 | EI10: 0.2744270205 | EJ10: 282773.6699 | EK10: 128005.4401 | EL10: 0.08638230047 | EM10: 0.1012978713
A11: 4 | B11: 300 | C11: 1751 | D11: 412340.1701 | E11: 7455 | F11: 912175.8814 | G11: 0.366861867 | H11: 4771975.881 | I11: 1348740.17 | J11: 0.1212196681 | K11: 0.1548606869 | M11: 300 | N11: 149 | O11: 35303.63929 | P11: 632 | Q11: 77449.53744 | R11: 0.3682983683 | S11: 402649.5374 | T11: 113903.6393 | U11: 0.1215544673 | V11: 0.15541118 | X11: 300 | Y11: 147 | Z11: 34860.67757 | AA11: 630 | AB11: 76749.69369 | AC11: 0.3679906542 | AD11: 401349.6937 | AE11: 113660.6776 | AF11: 0.1225292467 | AG11: 0.1567984779 | AI11: 300 | AJ11: 146 | AK11: 30647.36034 | AL11: 640 | AM11: 67492.59269 | AN11: 0.3710144928 | AO11: 392992.5927 | AP11: 109947.3603 | AQ11: 0.1194098045 | AR11: 0.157241065 | AT11: 300 | AU11: 147 | AV11: 33478.55372 | AW11: 612 | AX11: 73727.53689 | AY11: 0.3632047478 | AZ11: 395627.5369 | BA11: 111378.5537 | BB11: 0.1202457197 | BC11: 0.1536399913 | BE11: 300 | BF11: 146 | BG11: 35012.58852 | BH11: 629 | BI11: 77943.07738 | BJ11: 0.3695652174 | BK11: 399843.0774 | BL11: 113112.5885 | BM11: 0.1219577005 | BN11: 0.1557401025 | BP11: 300 | BQ11: 146 | BR11: 35113.62007 | BS11: 606 | BT11: 77464.2764 | BU11: 0.361575179 | BV11: 398464.2764 | BW11: 112913.6201 | BX11: 0.1212342591 | BY11: 0.1529787966 | CA11: 300 | CB11: 146 | CC11: 34996.30044 | CD11: 616 | CE11: 77245.3072 | CF11: 0.36492891 | CG11: 398845.3072 | CH11: 112996.3004 | CI11: 0.1213674708 | CJ11: 0.154096052 | CL11: 300 | CM11: 146 | CN11: 34817.00144 | CO11: 625 | CP11: 76732.59559 | CQ11: 0.3685141509 | CR11: 398032.5956 | CS11: 112717.0014 | CT11: 0.1220269393 | CU11: 0.155985483 | CW11: 300 | CX11: 146 | CY11: 34251.9248 | CZ11: 653 | DA11: 76377.61941 | DB11: 0.3781123335 | DC11: 398577.6194 | DD11: 112451.9248 | DE11: 0.1222217205 | DF11: 0.1588726268 | DH11: 300 | DI11: 144 | DJ11: 34640.29237 | DK11: 608 | DL11: 76992.9819 | DM11: 0.364289994 | DN11: 395292.9819 | DO11: 111940.2924 | DP11: 0.120694398 | DQ11: 0.152878214 | DS11: 300 | DT11: 144 | DU11: 34574.66122 | DV11: 605 | DW11: 77183.44254 | DX11: 0.3629274145 | DY11: 395783.4425 | DZ11: 111974.6612 | EA11: 0.1208914337 | EB11: 0.1527547631 | ED11: 300 | EE11: 144 | EF11: 34643.55032 | EG11: 599 | EH11: 76817.22025 | EI11: 0.361278649 | EJ11: 394517.2202 | EK11: 111743.5503 | EL11: 0.1205179572 | EM11: 0.151946807
A12: 5 | B12: 400 | C12: 1536 | D12: 504135.8079 | E12: 8991 | F12: 1416311.689 | G12: 0.4424486984 | H12: 5948311.689 | I12: 1176335.808 | J12: 0.1511014277 | K12: 0.2064809158 | M12: 400 | N12: 130 | O12: 42920.34401 | P12: 762 | Q12: 120369.8814 | R12: 0.4440559441 | S12: 501969.8814 | T12: 99320.34401 | U12: 0.1515379402 | V12: 0.2072149067 | X12: 400 | Y12: 126 | Z12: 41793.37235 | AA12: 756 | AB12: 118543.066 | AC12: 0.441588785 | AD12: 500943.066 | AE12: 99593.37235 | AF12: 0.1529344048 | AG12: 0.2090646372 | AI12: 400 | AJ12: 126 | AK12: 36979.58937 | AL12: 766 | AM12: 104472.1821 | AN12: 0.444057971 | AO12: 488072.1821 | AP12: 95079.58937 | AQ12: 0.148299497 | AR12: 0.2096547533 | AT12: 400 | AU12: 126 | AV12: 40395.75205 | AW12: 738 | AX12: 114123.2889 | AY12: 0.4379821958 | AZ12: 492923.2889 | BA12: 97295.75205 | BB12: 0.1498174675 | BC12: 0.2048533217 | BE12: 400 | BF12: 130 | BG12: 43133.81863 | BH12: 759 | BI12: 121076.896 | BJ12: 0.4459459459 | BK12: 498276.896 | BL12: 98433.81863 | BM12: 0.1519813844 | BN12: 0.20765347 | BP12: 400 | BQ12: 127 | BR12: 42612.54907 | BS12: 733 | BT12: 120076.8255 | BU12: 0.4373508353 | BV12: 497276.8255 | BW12: 98812.54907 | BX12: 0.1512983499 | BY12: 0.2039717287 | CA12: 400 | CB12: 132 | CC12: 43685.6005 | CD12: 748 | CE12: 120930.9077 | CF12: 0.4431279621 | CG12: 496930.9077 | CH12: 98085.6005 | CI12: 0.1512146347 | CJ12: 0.2054614027 | CL12: 400 | CM12: 129 | CN12: 42554.88377 | CO12: 754 | CP12: 119287.4794 | CQ12: 0.4445754717 | CR12: 496087.4794 | CS12: 98054.88377 | CT12: 0.152088139 | CU12: 0.2079806441 | CW12: 400 | CX12: 129 | CY12: 42256.64722 | CZ12: 782 | DA12: 118634.2666 | DB12: 0.4528083382 | DC12: 496634.2666 | DD12: 98056.64722 | DE12: 0.1522902731 | DF12: 0.2118301691 | DH12: 400 | DI12: 127 | DJ12: 42626.66812 | DK12: 735 | DL12: 119619.65 | DM12: 0.4403834632 | DN12: 493219.65 | DO12: 97926.66812 | DP12: 0.1505942465 | DQ12: 0.2038376187 | DS12: 400 | DT12: 127 | DU12: 42545.9056 | DV12: 732 | DW12: 119729.3481 | DX12: 0.4391121776 | DY12: 493729.3481 | DZ12: 97945.9056 | EA12: 0.1508088574 | EB12: 0.2036730174 | ED12: 400 | EE12: 127 | EF12: 42630.67719 | EG12: 726 | EH12: 119447.8974 | EI12: 0.4378769602 | EJ12: 492247.8974 | EK12: 97730.67719 | EL12: 0.1503729318 | EM12: 0.2025957427
A13: 6 | B13: 500 | C13: 1557 | D13: 672752.4691 | E13: 10548 | F13: 2089064.158 | G13: 0.5190689435 | H13: 6975564.158 | I13: 1027252.469 | J13: 0.1771961119 | K13: 0.2581011448 | M13: 500 | N13: 131 | O13: 57298.09971 | P13: 893 | Q13: 177667.9812 | R13: 0.5203962704 | S13: 589167.9812 | T13: 87198.09971 | U13: 0.177861871 | V13: 0.2590186333 | X13: 500 | Y13: 131 | Z13: 57032.28542 | AA13: 887 | AB13: 175575.3515 | AC13: 0.5181074766 | AD13: 588075.3515 | AE13: 87132.28542 | AF13: 0.1795352804 | AG13: 0.2613307966 | AI13: 500 | AJ13: 131 | AK13: 50434.4855 | AL13: 897 | AM13: 154906.6676 | AN13: 0.52 | AO13: 568906.6676 | AP13: 80834.4855 | AQ13: 0.1728608508 | AR13: 0.2620684416 | AT13: 500 | AU13: 130 | AV13: 54678.07971 | AW13: 868 | AX13: 168801.3687 | AY13: 0.5151335312 | AZ13: 577301.3687 | BA13: 84378.07971 | BB13: 0.1754630608 | BC13: 0.2560666521 | BE13: 500 | BF13: 132 | BG13: 58147.32981 | BH13: 891 | BI13: 179224.2258 | BJ13: 0.5235017626 | BK13: 584724.2258 | BL13: 86447.32981 | BM13: 0.1783490225 | BN13: 0.2595668375 | BP13: 500 | BQ13: 133 | BR13: 58475.05297 | BS13: 866 | BT13: 178551.8784 | BU13: 0.5167064439 | BV13: 583551.8784 | BW13: 86275.05297 | BX13: 0.1775478602 | BY13: 0.2549646609 | CA13: 500 | CB13: 128 | CC13: 56186.55638 | CD13: 876 | CE13: 177117.4641 | CF13: 0.518957346 | CG13: 583117.4641 | CH13: 86186.55638 | CI13: 0.1774409539 | CJ13: 0.2568267533 | CL13: 500 | CM13: 129 | CN13: 55979.96588 | CO13: 883 | CP13: 175267.4452 | CQ13: 0.5206367925 | CR13: 581767.4452 | CS13: 85679.96588 | CT13: 0.1783554952 | CU13: 0.2599758051 | CW13: 500 | CX13: 128 | CY13: 55195.5466 | CZ13: 910 | DA13: 173829.8132 | DB13: 0.526925304 | DC13: 582329.8132 | DD13: 85695.5466 | DE13: 0.1785683596 | DF13: 0.2647877114 | DH13: 500 | DI13: 128 | DJ13: 56475.58563 | DK13: 863 | DL13: 176095.2357 | DM13: 0.5170760935 | DN13: 579095.2357 | DO13: 85875.58563 | DP13: 0.1768145504 | DQ13: 0.2547970234 | DS13: 500 | DT13: 128 | DU13: 56368.58429 | DV13: 860 | DW13: 176097.9324 | DX13: 0.5158968206 | DY13: 579597.9324 | DZ13: 85868.58429 | EA13: 0.1770372823 | EB13: 0.2545912718 | ED13: 500 | EE13: 128 | EF13: 56480.8972 | EG13: 854 | EH13: 175928.7946 | EI13: 0.5150784077 | EJ13: 577928.7946 | EK13: 85680.8972 | EL13: 0.176546914 | EM13: 0.2532446783
A14: 7 | B14: 600 | C14: 744 | D14: 401402.8718 | E14: 11292 | F14: 2490467.03 | G14: 0.5556813149 | H14: 7907867.03 | I14: 932302.8718 | J14: 0.2008788478 | K14: 0.3097213737 | M14: 600 | N14: 62 | O14: 33808.22593 | P14: 955 | Q14: 211476.2071 | R14: 0.5565268065 | S14: 668076.2071 | T14: 78908.22593 | U14: 0.2016832006 | V14: 0.31082236 | X14: 600 | Y14: 62 | Z14: 33603.50421 | AA14: 949 | AB14: 209178.8557 | AC14: 0.5543224299 | AD14: 666978.8557 | AE14: 78903.50421 | AF14: 0.2036239669 | AG14: 0.3135969559 | AI14: 600 | AJ14: 62 | AK14: 29781.01928 | AL14: 959 | AM14: 184687.6868 | AN14: 0.555942029 | AO14: 644287.6868 | AP14: 75381.01928 | AQ14: 0.1957651827 | AR14: 0.31448213 | AT14: 600 | AU14: 62 | AV14: 32532.18035 | AW14: 930 | AX14: 201333.549 | AY14: 0.5519287834 | AZ14: 654333.549 | BA14: 77032.18035 | BB14: 0.1988759659 | BC14: 0.3072799825 | BE14: 600 | BF14: 62 | BG14: 34022.85098 | BH14: 953 | BI14: 213247.0768 | BJ14: 0.5599294947 | BK14: 662647.0768 | BL14: 77922.85098 | BM14: 0.2021165759 | BN14: 0.3114802051 | BP14: 600 | BQ14: 62 | BR14: 34121.02657 | BS14: 928 | BT14: 212672.905 | BU14: 0.553699284 | BV14: 661472.905 | BW14: 77921.02657 | BX14: 0.2012556264 | BY14: 0.3059575931 | CA14: 600 | CB14: 62 | CC14: 34007.02333 | CD14: 938 | CE14: 211124.4874 | CF14: 0.5556872038 | CG14: 661124.4874 | CH14: 78007.02333 | CI14: 0.201178265 | CJ14: 0.308192104 | CL14: 600 | CM14: 62 | CN14: 33832.79277 | CO14: 945 | CP14: 209100.238 | CQ14: 0.5571933962 | CR14: 659700.238 | CS14: 77932.79277 | CT14: 0.20224776 | CU14: 0.3119709661 | CW14: 600 | CX14: 62 | CY14: 33358.71075 | CZ14: 972 | DA14: 207188.524 | DB14: 0.5628257093 | DC14: 660188.524 | DD14: 77858.71075 | DE14: 0.2024433218 | DF14: 0.3177452537 | DH14: 600 | DI14: 62 | DJ14: 34132.33207 | DK14: 925 | DL14: 210227.5677 | DM14: 0.5542240863 | DN14: 656627.5677 | DO14: 77532.33207 | DP14: 0.2004874173 | DQ14: 0.3057564281 | DS14: 600 | DT14: 62 | DU14: 34067.66333 | DV14: 922 | DW14: 210165.5958 | DX14: 0.5530893821 | DY14: 657165.5958 | DZ14: 77567.66333 | EA14: 0.2007302037 | EB14: 0.3055095262 | ED14: 600 | EE14: 62 | EF14: 34135.54225 | EG14: 916 | EH14: 210064.3369 | EI14: 0.5524728589 | EJ14: 655264.3369 | EK14: 77335.54225 | EL14: 0.2001715395 | EM14: 0.303893614
A15: 8 | B15: 700 | C15: 746 | D15: 466280.1705 | E15: 12038 | F15: 2956747.201 | G15: 0.5923921067 | H15: 8754847.201 | I15: 846980.1705 | J15: 0.2223941818 | K15: 0.3613416027 | M15: 700 | N15: 63 | O15: 39793.84072 | P15: 1018 | Q15: 251270.0478 | R15: 0.5932400932 | S15: 739870.0478 | T15: 71793.84072 | U15: 0.2233567933 | V15: 0.3626260867 | X15: 700 | Y15: 63 | Z15: 39620.18798 | AA15: 1012 | AB15: 248799.0437 | AC15: 0.5911214953 | AD15: 738799.0437 | AE15: 71820.18798 | AF15: 0.2255501666 | AG15: 0.3658631152 | AI15: 700 | AJ15: 62 | AK15: 34495.72935 | AL15: 1021 | AM15: 219183.4162 | AN15: 0.591884058 | AO15: 711983.4162 | AP15: 67695.72935 | AQ15: 0.2163343587 | AR15: 0.3668958183 | AT15: 700 | AU15: 62 | AV15: 37682.43383 | AW15: 992 | AX15: 239015.9828 | AY15: 0.5887240356 | AZ15: 724115.9828 | BA15: 69782.43383 | BB15: 0.2200854071 | BC15: 0.3584933129 | BE15: 700 | BF15: 62 | BG15: 39409.09637 | BH15: 1015 | BI15: 252656.1732 | BJ15: 0.5963572268 | BK15: 733556.1732 | BL15: 70909.09637 | BM15: 0.2237448367 | BN15: 0.3633935726 | BP15: 700 | BQ15: 62 | BR15: 39522.8144 | BS15: 990 | BT15: 252195.7194 | BU15: 0.5906921241 | BV15: 732395.7194 | BW15: 70922.8144 | BX15: 0.2228341602 | BY15: 0.3569505253 | CA15: 700 | CB15: 62 | CC15: 39390.76302 | CD15: 1000 | CE15: 250515.2504 | CF15: 0.5924170616 | CG15: 732115.2504 | CH15: 70990.76302 | CI15: 0.2227805484 | CJ15: 0.3595574546 | CL15: 700 | CM15: 62 | CN15: 39188.94956 | CO15: 1007 | CP15: 248289.1876 | CQ15: 0.59375 | CR15: 730589.1876 | CS15: 70888.94956 | CT15: 0.2239805569 | CU15: 0.3639661271 | CW15: 700 | CX15: 62 | CY15: 38639.81439 | CZ15: 1034 | DA15: 245828.3384 | DB15: 0.5987261146 | DC15: 730928.3384 | DD15: 70739.81439 | DE15: 0.224135312 | DF15: 0.370702796 | DH15: 700 | DI15: 62 | DJ15: 39535.90971 | DK15: 987 | DL15: 249763.4774 | DM15: 0.5913720791 | DN15: 727163.4774 | DO15: 70535.90971 | DP15: 0.2220240738 | DQ15: 0.3567158328 | DS15: 700 | DT15: 62 | DU15: 39461.00308 | DV15: 984 | DW15: 249626.5988 | DX15: 0.5902819436 | DY15: 727726.5988 | DZ15: 70561.00308 | EA15: 0.2222829518 | EB15: 0.3564277805 | ED15: 700 | EE15: 62 | EF15: 39539.62809 | EG15: 978 | EH15: 249603.965 | EI15: 0.58986731 | EJ15: 725603.965 | EK15: 70339.62809 | EL15: 0.2216590383 | EM15: 0.3545425497
A16: 9 | B16: 800 | C16: 735 | D16: 530898.8761 | E16: 12773 | F16: 3487646.077 | G16: 0.6285615865 | H16: 9526046.077 | I16: 771198.8761 | J16: 0.2419844887 | K16: 0.4129618316 | M16: 800 | N16: 61 | O16: 44640.56454 | P16: 1079 | Q16: 295910.6123 | R16: 0.6287878788 | S16: 805510.6123 | T16: 65640.56454 | U16: 0.2431727948 | V16: 0.4144298133 | X16: 800 | Y16: 62 | Z16: 45215.84192 | AA16: 1074 | AB16: 294014.8856 | AC16: 0.6273364486 | AD16: 804414.8856 | AE16: 65615.84192 | AF16: 0.2455822229 | AG16: 0.4181292745 | AI16: 800 | AJ16: 61 | AK16: 39326.47503 | AL16: 1082 | AM16: 258509.8912 | AN16: 0.6272463768 | AO16: 772909.8912 | AP16: 60926.47503 | AQ16: 0.2348467139 | AR16: 0.4193095066 | AT16: 800 | AU16: 61 | AV16: 42959.44226 | AW16: 1053 | AX16: 281975.4251 | AY16: 0.624925816 | AZ16: 787575.4251 | BA16: 63459.44226 | BB16: 0.2393730592 | BC16: 0.4097066434 | BE16: 800 | BF16: 61 | BG16: 44927.90481 | BH16: 1076 | BI16: 297584.078 | BJ16: 0.6321974148 | BK16: 798384.078 | BL16: 64827.90481 | BM16: 0.2435182494 | BN16: 0.4153069401 | BP16: 800 | BQ16: 61 | BR16: 45057.54778 | BS16: 1051 | BT16: 297253.2672 | BU16: 0.6270883055 | BV16: 797253.2672 | BW16: 64857.54778 | BX16: 0.2425673138 | BY16: 0.4079434575 | CA16: 800 | CB16: 61 | CC16: 44907.00407 | CD16: 1061 | CE16: 295422.2545 | CF16: 0.6285545024 | CG16: 797022.2545 | CH16: 64907.00407 | CI16: 0.2425315615 | CJ16: 0.4109228053 | CL16: 800 | CM16: 61 | CN16: 44676.92886 | CO16: 1068 | CP16: 292966.1164 | CQ16: 0.6297169811 | CR16: 795366.1164 | CS16: 64776.92886 | CT16: 0.2438395595 | CU16: 0.4159612881 | CW16: 800 | CX16: 61 | CY16: 44050.89339 | CZ16: 1095 | DA16: 289879.2318 | DB16: 0.6340474812 | DC16: 795479.2318 | DD16: 64550.89339 | DE16: 0.2439295023 | DF16: 0.4236603382 | DH16: 800 | DI16: 62 | DJ16: 45072.47695 | DK16: 1049 | DL16: 294835.9544 | DM16: 0.6285200719 | DN16: 790835.9544 | DO16: 63672.47695 | DP16: 0.2414651254 | DQ16: 0.4076752375 | DS16: 800 | DT16: 62 | DU16: 44987.08048 | DV16: 1046 | DW16: 294613.6793 | DX16: 0.6274745051 | DY16: 791413.6793 | DZ16: 63687.08048 | EA16: 0.241736071 | EB16: 0.4073460349 | ED16: 800 | EE16: 61 | EF16: 45076.71605 | EG16: 1039 | EH16: 294680.681 | EI16: 0.6266586248 | EJ16: 789880.681 | EK16: 64276.71605 | EL16: 0.2412944258 | EM16: 0.4051914854
A17: 10 | B17: 900 | C17: 633 | D17: 517243.1026 | E17: 13406 | F17: 4004889.179 | G17: 0.6597116284 | H17: 10228389.18 | I17: 702343.1026 | J17: 0.2598256932 | K17: 0.4645820606 | M17: 900 | N17: 56 | O17: 46302.35501 | P17: 1135 | Q17: 342212.9673 | R17: 0.6614219114 | S17: 865112.9673 | T17: 59602.35501 | U17: 0.2611659423 | V17: 0.46623354 | X17: 900 | Y17: 53 | Z17: 43712.16399 | AA17: 1127 | AB17: 337727.0496 | AC17: 0.6582943925 | AD17: 864227.0496 | AE17: 59812.16399 | AF17: 0.2638424571 | AG17: 0.4703954338 | AI17: 900 | AJ17: 53 | AK17: 38677.37357 | AL17: 1135 | AM17: 297187.2648 | AN17: 0.6579710145 | AO17: 828187.2648 | AP17: 55277.37357 | AQ17: 0.2516426039 | AR17: 0.471723195 | AT17: 900 | AU17: 53 | AV17: 42250.37701 | AW17: 1106 | AX17: 324225.8021 | AY17: 0.656379822 | AZ17: 845325.8021 | BA17: 57750.37701 | BB17: 0.256925517 | BC17: 0.4609199738 | BE17: 900 | BF17: 53 | BG17: 43368.04654 | BH17: 1129 | BI17: 340952.1245 | BJ17: 0.6633372503 | BK17: 856652.1245 | BL17: 58268.04654 | BM17: 0.2612908141 | BN17: 0.4672203076 | BP17: 900 | BQ17: 52 | BR17: 43493.18843 | BS17: 1103 | BT17: 340746.4556 | BU17: 0.6581145585 | BV17: 856446.4556 | BW17: 59193.18843 | BX17: 0.2605770646 | BY17: 0.4589363897 | CA17: 900 | CB17: 52 | CC17: 43347.87146 | CD17: 1113 | CE17: 338770.1259 | CF17: 0.6593601896 | CG17: 856270.1259 | CH17: 59247.87146 | CI17: 0.2605605171 | CJ17: 0.462288156 | CL17: 900 | CM17: 52 | CN17: 43125.78427 | CO17: 1120 | CP17: 336091.9007 | CQ17: 0.6603773585 | CR17: 854491.9007 | CS17: 59125.78427 | CT17: 0.2619660611 | CU17: 0.4679564491 | CW17: 900 | CX17: 53 | CY17: 42521.48421 | CZ17: 1148 | DA17: 332400.716 | DB17: 0.6647365373 | DC17: 853500.716 | DD17: 58021.48421 | DE17: 0.2617214838 | DF17: 0.4766178805 | DH17: 900 | DI17: 52 | DJ17: 43507.59926 | DK17: 1101 | DL17: 338343.5536 | DM17: 0.659676453 | DN17: 849543.5536 | DO17: 58707.59926 | DP17: 0.2593902561 | DQ17: 0.4586346421 | DS17: 900 | DT17: 52 | DU17: 43425.16769 | DV17: 1098 | DW17: 338038.847 | DX17: 0.6586682663 | DY17: 850138.847 | DZ17: 58725.16769 | EA17: 0.2596735816 | EB17: 0.4582642893 | ED17: 900 | EE17: 52 | EF17: 43511.69119 | EG17: 1091 | EH17: 338192.3722 | EI17: 0.6580217129 | EJ17: 848492.3722 | EK17: 58611.69119 | EL17: 0.2591992496 | EM17: 0.455840421
A18: 11 | B18: 1000 | C18: 421 | D18: 391316.3418 | E18: 13827 | F18: 4396205.521 | G18: 0.6804291127 | H18: 10890205.52 | I18: 661816.3418 | J18: 0.2766374206 | K18: 0.5162022895 | M18: 1000 | N18: 35 | O18: 32951.58186 | P18: 1170 | Q18: 375164.5492 | R18: 0.6818181818 | S18: 921164.5492 | T18: 56051.58186 | U18: 0.2780871592 | V18: 0.5180372667 | X18: 1000 | Y18: 35 | Z18: 32807.78743 | AA18: 1162 | AB18: 370534.837 | AC18: 0.6787383178 | AD18: 920534.837 | AE18: 56307.78743 | AF18: 0.2810328297 | AG18: 0.5226615931 | AI18: 1000 | AJ18: 35 | AK18: 29028.96893 | AL18: 1170 | AM18: 326216.2337 | AN18: 0.6782608696 | AO18: 881216.2337 | AP18: 53028.96893 | AQ18: 0.2677553219 | AR18: 0.5241368833 | AT18: 1000 | AU18: 35 | AV18: 31710.65583 | AW18: 1141 | AX18: 355936.4579 | AY18: 0.6771513353 | AZ18: 899936.4579 | BA18: 54610.65583 | BB18: 0.2735236984 | BC18: 0.5121333042 | BE18: 1000 | BF18: 35 | BG18: 33163.68304 | BH18: 1164 | BI18: 374115.8076 | BJ18: 0.6839012926 | BK18: 912115.8076 | BL18: 55463.68304 | BM18: 0.278208009 | BN18: 0.5191336751 | BP18: 1000 | BQ18: 35 | BR18: 33259.37943 | BS18: 1138 | BT18: 374005.835 | BU18: 0.6789976134 | BV18: 912005.835 | BW18: 55559.37943 | BX18: 0.2774812154 | BY18: 0.5099293218 | CA18: 1000 | CB18: 35 | CC18: 33148.25509 | CD18: 1148 | CE18: 371918.381 | CF18: 0.6800947867 | CG18: 911918.381 | CH18: 55648.25509 | CI18: 0.2774941198 | CJ18: 0.5136535066 | CL18: 1000 | CM18: 35 | CN18: 32978.42431 | CO18: 1155 | CP18: 369070.325 | CQ18: 0.6810141509 | CR18: 910070.325 | CS18: 55578.42431 | CT18: 0.27900503 | CU18: 0.5199516102 | CW18: 1000 | CX18: 36 | CY18: 32516.31413 | CZ18: 1184 | DA18: 364917.0301 | DB18: 0.685581934 | DC18: 907917.0301 | DD18: 54416.31413 | DE18: 0.2784079589 | DF18: 0.5295754228 | DH18: 1000 | DI18: 35 | DJ18: 33270.39945 | DK18: 1136 | DL18: 371613.9531 | DM18: 0.6806470941 | DN18: 904613.9531 | DO18: 55070.39945 | DP18: 0.2762048443 | DQ18: 0.5095940468 | DS18: 1000 | DT18: 35 | DU18: 33207.36376 | DV18: 1133 | DW18: 371246.2108 | DX18: 0.6796640672 | DY18: 905246.2108 | DZ18: 55107.36376 | EA18: 0.2765060397 | EB18: 0.5091825436 | ED18: 1000 | EE18: 35 | EF18: 33273.52855 | EG18: 1126 | EH18: 371465.9008 | EI18: 0.6791314837 | EJ18: 903465.9008 | EK18: 54973.52855 | EL18: 0.2759926797 | EM18: 0.5064893567
A19: 12 | B19: 1500 | C19: 1625 | D19: 1970761.637 | E19: 15452 | F19: 6366967.159 | G19: 0.7603956498 | H19: 13670467.16 | I19: 2780261.637 | J19: 0.3472627551 | K19: 0.7743034343 | M19: 1500 | N19: 138 | O19: 168896.54 | P19: 1308 | Q19: 544061.0892 | R19: 0.7622377622 | S19: 1156061.089 | T19: 234896.54 | U19: 0.348999258 | V19: 0.7770559 | X19: 1500 | Y19: 145 | Z19: 174620.8857 | AA19: 1307 | AB19: 545155.7227 | AC19: 0.7634345794 | AD19: 1152655.723 | AE19: 232120.8857 | AF19: 0.3518977081 | AG19: 0.7839923897 | AI19: 1500 | AJ19: 135 | AK19: 145957.0939 | AL19: 1305 | AM19: 472173.3276 | AN19: 0.7565217391 | AO19: 1102173.328 | AP19: 220957.0939 | AQ19: 0.3348925755 | AR19: 0.7862053249 | AT19: 1500 | AU19: 135 | AV19: 159385.2872 | AW19: 1276 | AX19: 515321.7451 | AY19: 0.7572700297 | AZ19: 1128821.745 | BA19: 228885.2872 | BB19: 0.3430903324 | BC19: 0.7681999563 | BE19: 1500 | BF19: 135 | BG19: 166688.547 | BH19: 1299 | BI19: 540804.3545 | BJ19: 0.7632197415 | BK19: 1145304.355 | BL19: 233188.547 | BM19: 0.3493337595 | BN19: 0.7787005126 | BP19: 1500 | BQ19: 135 | BR19: 167169.5398 | BS19: 1273 | BT19: 541175.3748 | BU19: 0.7595465394 | BV19: 1145675.375 | BW19: 233669.5398 | BX19: 0.3485760543 | BY19: 0.7648939828 | CA19: 1500 | CB19: 135 | CC19: 166611.0024 | CD19: 1283 | CE19: 538529.3835 | CF19: 0.76007109 | CG19: 1146029.383 | CH19: 234111.0024 | CI19: 0.3487334191 | CJ19: 0.7704802599 | CL19: 1500 | CM19: 136 | CN19: 167167.7944 | CO19: 1291 | CP19: 536238.1194 | CQ19: 0.7612028302 | CR19: 1143738.119 | CS19: 233667.7944 | CT19: 0.3506417905 | CU19: 0.7799274152 | CW19: 1500 | CX19: 134 | CY19: 162210.2125 | CZ19: 1318 | DA19: 527127.2426 | DB19: 0.7631731326 | DC19: 1140627.243 | DD19: 232710.2125 | DE19: 0.3497673157 | DF19: 0.7943631342 | DH19: 1500 | DI19: 133 | DJ19: 164923.1089 | DK19: 1269 | DL19: 536537.062 | DM19: 0.7603355303 | DN19: 1136537.062 | DO19: 231923.1089 | DP19: 0.3470176877 | DQ19: 0.7643910702 | DS19: 1500 | DT19: 132 | DU19: 163403.0246 | DV19: 1265 | DW19: 534649.2354 | DX19: 0.7588482304 | DY19: 1137649.235 | DZ19: 232403.0246 | EA19: 0.3474931802 | EB19: 0.7637738154 | ED19: 1500 | EE19: 132 | EF19: 163728.6008 | EG19: 1258 | EH19: 535194.5016 | EI19: 0.7587454765 | EJ19: 1135194.502 | EK19: 231728.6008 | EL19: 0.3467816242 | EM19: 0.759734035
A20: 13 | B20: 2000 | C20: 1022 | D20: 1725125.189 | E20: 16474 | F20: 8092092.348 | G20: 0.8106884504 | H20: 15786092.35 | I20: 2115625.189 | J20: 0.4010047248 | K20: 1.032404579 | M20: 2000 | N20: 87 | O20: 148419.2804 | P20: 1395 | Q20: 692480.3697 | R20: 0.8129370629 | S20: 1334480.37 | T20: 178419.2804 | U20: 0.4028616335 | V20: 1.036074533 | X20: 2000 | Y20: 86 | Z20: 145689.1363 | AA20: 1393 | AB20: 690844.859 | AC20: 0.8136682243 | AD20: 1328844.859 | AE20: 176189.1363 | AF20: 0.4056870158 | AG20: 1.045323186 | AI20: 2000 | AJ20: 86 | AK20: 129132.8029 | AL20: 1391 | AM20: 601306.1305 | AN20: 0.8063768116 | AO20: 1269306.131 | AP20: 167132.8029 | AQ20: 0.3856754546 | AR20: 1.048273767 | AT20: 2000 | AU20: 86 | AV20: 141062.05 | AW20: 1362 | AX20: 656383.7951 | AY20: 0.8083086053 | AZ20: 1302383.795 | BA20: 173562.05 | BB20: 0.3958422055 | BC20: 1.024266608 | BE20: 2000 | BF20: 85 | BG20: 146005.7235 | BH20: 1384 | BI20: 686810.078 | BJ20: 0.8131609871 | BK20: 1322810.078 | BL20: 177505.7235 | BM20: 0.4034754743 | BN20: 1.03826735 | BP20: 2000 | BQ20: 85 | BR20: 146427.0344 | BS20: 1358 | BT20: 687602.4092 | BU20: 0.8102625298 | BV20: 1323602.409 | BW20: 177927.0344 | BX20: 0.4027110256 | BY20: 1.019858644 | CA20: 2000 | CB20: 85 | CC20: 145937.8007 | CD20: 1368 | CE20: 684467.1842 | CF20: 0.8104265403 | CG20: 1324467.184 | CH20: 178437.8007 | CI20: 0.4030315246 | CJ20: 1.027307013 | CL20: 2000 | CM20: 86 | CN20: 146600.5091 | CO20: 1377 | CP20: 682838.6285 | CQ20: 0.8119103774 | CR20: 1320838.628 | CS20: 177100.5091 | CT20: 0.404936422 | CU20: 1.03990322 | CW20: 2000 | CX20: 84 | CY20: 141565.6317 | CZ20: 1402 | DA20: 668692.8743 | DB20: 0.8118123914 | DC20: 1318692.874 | DD20: 178065.6317 | DE20: 0.4043702006 | DF20: 1.059150846 | DH20: 2000 | DI20: 84 | DJ20: 144848.678 | DK20: 1353 | DL20: 681385.74 | DM20: 0.8106650689 | DN20: 1313385.74 | DO20: 176848.678 | DP20: 0.401014712 | DQ20: 1.019188094 | DS20: 2000 | DT20: 84 | DU20: 144574.2408 | DV20: 1349 | DW20: 679223.4762 | DX20: 0.8092381524 | DY20: 1315223.476 | DZ20: 177574.2408 | EA20: 0.4017329544 | EB20: 1.018365087 | ED20: 2000 | EE20: 84 | EF20: 144862.3011 | EG20: 1342 | EH20: 680056.8028 | EI20: 0.8094089264 | EJ20: 1312056.803 | EK20: 176862.3011 | EL20: 0.400809895 | EM20: 1.012978713
A21: 14 | B21: 2500 | C21: 573 | D21: 1253180.03 | E21: 17047 | F21: 9345272.378 | G21: 0.8388858816 | H21: 17530272.38 | I21: 1744180.03 | J21: 0.4453110938 | K21: 1.290505724 | M21: 2500 | N21: 48 | O21: 106843.8181 | P21: 1443 | Q21: 799324.1878 | R21: 0.8409090909 | S21: 1481824.188 | T21: 147343.8181 | U21: 0.4473427459 | V21: 1.295093167 | X21: 2500 | Y21: 48 | Z21: 106377.5721 | AA21: 1441 | AB21: 797222.4311 | AC21: 0.8417056075 | AD21: 1474722.431 | AE21: 145877.5721 | AF21: 0.4502224154 | AG21: 1.306653983 | AI21: 2500 | AJ21: 48 | AK21: 94124.94642 | AL21: 1439 | AM21: 695431.0769 | AN21: 0.8342028986 | AO21: 1410431.077 | AP21: 141124.9464 | AQ21: 0.4285559123 | AR21: 1.310342208 | AT21: 2500 | AU21: 48 | AV21: 102782.0572 | AW21: 1410 | AX21: 759165.8523 | AY21: 0.8367952522 | AZ21: 1446665.852 | BA21: 144282.0572 | BB21: 0.4396948148 | BC21: 1.28033326 | BE21: 2500 | BF21: 48 | BG21: 105320.8325 | BH21: 1432 | BI21: 792130.9105 | BJ21: 0.8413631022 | BK21: 1467130.911 | BL21: 144320.8325 | BM21: 0.4474953357 | BN21: 1.297834188 | BP21: 2500 | BQ21: 48 | BR21: 105624.744 | BS21: 1406 | BT21: 793227.1532 | BU21: 0.838902148 | BV21: 1468227.153 | BW21: 144624.744 | BX21: 0.4467136495 | BY21: 1.274823305 | CA21: 2500 | CB21: 47 | CC21: 105271.8366 | CD21: 1415 | CE21: 789739.0208 | CF21: 0.8382701422 | CG21: 1472239.021 | CH21: 147771.8366 | CI21: 0.4479980661 | CJ21: 1.284133767 | CL21: 2500 | CM21: 49 | CN21: 104732.49 | CO21: 1426 | CP21: 787571.1184 | CQ21: 0.8408018868 | CR21: 1462571.118 | CS21: 141732.49 | CT21: 0.4483880943 | CU21: 1.299879025 | CW21: 2500 | CX21: 47 | CY21: 103264.926 | CZ21: 1449 | DA21: 771957.8003 | DB21: 0.8390272148 | DC21: 1466957.8 | DD21: 148264.926 | DE21: 0.4498348566 | DF21: 1.323938557 | DH21: 2500 | DI21: 47 | DJ21: 105659.7412 | DK21: 1400 | DL21: 787045.4812 | DM21: 0.8388256441 | DN21: 1459545.481 | DO21: 146159.7412 | DP21: 0.4456415148 | DQ21: 1.273985117 | DS21: 2500 | DT21: 48 | DU21: 107566.3889 | DV21: 1397 | DW21: 786789.8651 | DX21: 0.8380323935 | DY21: 1461789.865 | DZ21: 146566.3889 | EA21: 0.4465014288 | EB21: 1.272956359 | ED21: 2500 | EE21: 47 | EF21: 105610.6776 | EG21: 1389 | EH21: 785667.4804 | EI21: 0.8377563329 | EJ21: 1458167.48 | EK21: 146110.6776 | EL21: 0.4454440948 | EM21: 1.266223392
A22: 15 | B22: 3000 | C22: 481 | D22: 1285653.485 | E22: 17528 | F22: 10630925.86 | G22: 0.8625559766 | H22: 19009925.86 | I22: 1479653.485 | J22: 0.4828978522 | K22: 1.548606869 | M22: 3000 | N22: 40 | O22: 108118.3857 | P22: 1483 | Q22: 907442.5735 | R22: 0.8642191142 | S22: 1606442.573 | T22: 124618.3857 | U22: 0.4849633565 | V22: 1.5541118 | X22: 3000 | Y22: 40 | Z22: 107646.5776 | AA22: 1481 | AB22: 904869.0087 | AC22: 0.8650700935 | AD22: 1597869.009 | AE22: 123146.5776 | AF22: 0.4878182019 | AG22: 1.567984779 | AI22: 3000 | AJ22: 40 | AK22: 95247.78725 | AL22: 1479 | AM22: 790678.8642 | AN22: 0.8573913043 | AO22: 1528678.864 | AP22: 118247.7873 | AQ22: 0.4644852031 | AR22: 1.57241065 | AT22: 3000 | AU22: 41 | AV22: 106361.693 | AW22: 1451 | AX22: 865527.5453 | AY22: 0.8611275964 | AZ22: 1567527.545 | BA22: 120861.693 | BB22: 0.4764291164 | BC22: 1.536399913 | BE22: 3000 | BF22: 40 | BG22: 108736.5732 | BH22: 1472 | BI22: 900867.4837 | BJ22: 0.8648648649 | BK22: 1590867.484 | BL22: 123736.5732 | BM22: 0.4852367118 | BN22: 1.557401025 | BP22: 3000 | BQ22: 40 | BR22: 109050.3411 | BS22: 1446 | BT22: 902277.4943 | BU22: 0.8627684964 | BV22: 1592277.494 | BW22: 124050.3411 | BX22: 0.4844564337 | BY22: 1.529787966 | CA22: 3000 | CB22: 40 | CC22: 108685.9883 | CD22: 1455 | CE22: 898425.009 | CF22: 0.8619668246 | CG22: 1597425.009 | CH22: 125185.9883 | CI22: 0.4860917995 | CJ22: 1.54096052 | CL22: 3000 | CM22: 40 | CN22: 108129.1498 | CO22: 1466 | CP22: 895700.2682 | CQ22: 0.8643867925 | CR22: 1585700.268 | CS22: 123129.1498 | CT22: 0.4861364432 | CU22: 1.55985483 | CW22: 3000 | CX22: 40 | CY22: 106613.99 | CZ22: 1489 | DA22: 878571.7903 | DB22: 0.8621887666 | DC22: 1592571.79 | DD22: 125613.99 | DE22: 0.4883537228 | DF22: 1.588726268 | DH22: 3000 | DI22: 40 | DJ22: 109086.4733 | DK22: 1440 | DL22: 896131.9545 | DM22: 0.8627920911 | DN22: 1583131.955 | DO22: 123586.4733 | DP22: 0.4833760452 | DQ22: 1.52878214 | DS22: 3000 | DT22: 40 | DU22: 108879.7929 | DV22: 1437 | DW22: 895669.658 | DX22: 0.8620275945 | DY22: 1585669.658 | DZ22: 123879.7929 | EA22: 0.4843403178 | EB22: 1.527547631 | ED22: 3000 | EE22: 40 | EF22: 109096.733 | EG22: 1429 | EH22: 894764.2134 | EI22: 0.8618817853 | EJ22: 1581764.213 | EK22: 123596.733 | EL22: 0.4832006869 | EM22: 1.51946807
A23: 16 | B23: 3500 | C23: 264 | D23: 843502.0146 | E23: 17792 | F23: 11474427.88 | G23: 0.8755474632 | H23: 20325927.88 | I23: 1316002.015 | J23: 0.5163274695 | K23: 1.806708013 | M23: 3500 | N23: 22 | O23: 71055.90258 | P23: 1505 | Q23: 978498.476 | R23: 0.877039627 | S23: 1716998.476 | T23: 110555.9026 | U23: 0.5183386931 | V23: 1.813130433 | X23: 3500 | Y23: 22 | Z23: 70745.82816 | AA23: 1503 | AB23: 975614.8369 | AC23: 0.8779205607 | AD23: 1707114.837 | AE23: 109245.8282 | AF23: 0.5211701871 | AG23: 1.829315576 | AI23: 3500 | AJ23: 22 | AK23: 62597.28584 | AL23: 1501 | AM23: 853276.15 | AN23: 0.8701449275 | AO23: 1637276.15 | AP23: 108597.2858 | AQ23: 0.4974822135 | AR23: 1.834479091 | AT23: 3500 | AU23: 22 | AV23: 68380.00316 | AW23: 1473 | AX23: 933907.5485 | AY23: 0.8741839763 | AZ23: 1675907.548 | BA23: 108380.0032 | BB23: 0.5093697747 | BC23: 1.792466565 | BE23: 3500 | BF23: 22 | BG23: 71513.27185 | BH23: 1494 | BI23: 972380.7556 | BJ23: 0.8777908343 | BK23: 1700380.756 | BL23: 109513.2719 | BM23: 0.518639783 | BN23: 1.816967863 | BP23: 3500 | BQ23: 22 | BR23: 71719.62898 | BS23: 1468 | BT23: 973997.1233 | BU23: 0.8758949881 | BV23: 1701997.123 | BW23: 109719.629 | BX23: 0.5178390447 | BY23: 1.784752626 | CA23: 3500 | CB23: 22 | CC23: 71480.00343 | CD23: 1477 | CE23: 969905.0125 | CF23: 0.875 | CG23: 1708405.012 | CH23: 110980.0034 | CI23: 0.5198626928 | CJ23: 1.797787273 | CL23: 3500 | CM23: 22 | CN23: 71113.78492 | CO23: 1488 | CP23: 966814.0531 | CQ23: 0.8773584906 | CR23: 1694814.053 | CS23: 109113.7849 | CT23: 0.5195880282 | CU23: 1.819830636 | CW23: 3500 | CX23: 22 | CY23: 70038.14507 | CZ23: 1511 | DA23: 948609.9354 | DB23: 0.8749276202 | DC23: 1704609.935 | DD23: 112038.1451 | DE23: 0.5227096278 | DF23: 1.85351398 | DH23: 3500 | DI23: 22 | DJ23: 71662.39856 | DK23: 1462 | DL23: 967794.3531 | DM23: 0.8759736369 | DN23: 1692294.353 | DO23: 109162.3986 | DP23: 0.5167064876 | DQ23: 1.783579164 | DS23: 3500 | DT23: 22 | DU23: 71526.62356 | DV23: 1459 | DW23: 967196.2816 | DX23: 0.875224955 | DY23: 1695196.282 | DZ23: 109526.6236 | EA23: 0.5177950537 | EB23: 1.782138903 | ED23: 3500 | EE23: 22 | EF23: 71669.13847 | EG23: 1451 | EH23: 966433.3519 | EI23: 0.8751507841 | EJ23: 1690933.352 | EK23: 109169.1385 | EL23: 0.5165499069 | EM23: 1.772712748
A24: 17 | B24: 4000 | C24: 472 | D24: 1709610.643 | E24: 18264 | F24: 13184038.52 | G24: 0.8987746666 | H24: 21412038.52 | I24: 1086110.643 | J24: 0.5439172928 | K24: 2.064809158 | M24: 4000 | N24: 39 | O24: 142744.6324 | P24: 1544 | Q24: 1121243.108 | R24: 0.8997668998 | S24: 1809243.108 | T24: 92244.63241 | U24: 0.5461861041 | V24: 2.072149067 | X24: 4000 | Y24: 39 | Z24: 142121.722 | AA24: 1542 | AB24: 1117736.559 | AC24: 0.9007009346 | AD24: 1797736.559 | AE24: 90621.72203 | AF24: 0.5488363632 | AG24: 2.090646372 | AI24: 4000 | AJ24: 39 | AK24: 125752.0661 | AL24: 1540 | AM24: 979028.2161 | AN24: 0.8927536232 | AO24: 1719028.216 | AP24: 81752.06609 | AQ24: 0.5223223719 | AR24: 2.096547533 | AT24: 4000 | AU24: 39 | AV24: 137369.0019 | AW24: 1512 | AX24: 1071276.55 | AY24: 0.8973293769 | AZ24: 1763276.55 | BA24: 87369.00188 | BB24: 0.535924419 | BC24: 2.048533217 | BE24: 4000 | BF24: 39 | BG24: 143663.4443 | BH24: 1533 | BI24: 1116044.2 | BJ24: 0.9007050529 | BK24: 1792044.2 | BL24: 91663.4443 | BM24: 0.5465984086 | BN24: 2.0765347 | BP24: 4000 | BQ24: 39 | BR24: 144077.9964 | BS24: 1507 | BT24: 1118075.12 | BU24: 0.8991646778 | BV24: 1794075.12 | BW24: 92077.99638 | BX24: 0.5458541224 | BY24: 2.039717287 | CA24: 4000 | CB24: 42 | CC24: 154988.7398 | CD24: 1519 | CE24: 1124893.752 | CF24: 0.8998815166 | CG24: 1800893.752 | CH24: 92488.73983 | CI24: 0.5480067482 | CJ24: 2.054614027 | CL24: 4000 | CM24: 39 | CN24: 142782.612 | CO24: 1527 | CP24: 1109596.665 | CQ24: 0.9003537736 | CR24: 1785596.665 | CS24: 90782.61199 | CT24: 0.5474197294 | CU24: 2.079806441 | CW24: 4000 | CX24: 39 | CY24: 140781.8706 | CZ24: 1550 | DA24: 1089391.806 | DB24: 0.8975101332 | DC24: 1797391.806 | DD24: 92781.87061 | DE24: 0.5511606981 | DF24: 2.118301691 | DH24: 4000 | DI24: 39 | DJ24: 144046.7407 | DK24: 1501 | DL24: 1111841.094 | DM24: 0.8993409227 | DN24: 1783841.094 | DO24: 91546.7407 | DP24: 0.5446583594 | DQ24: 2.038376187 | DS24: 4000 | DT24: 40 | DU24: 147462.5319 | DV24: 1499 | DW24: 1114658.814 | DX24: 0.899220156 | DY24: 1786658.814 | DZ24: 91462.53192 | EA24: 0.5457321411 | EB24: 2.036730174 | ED24: 4000 | EE24: 39 | EF24: 143819.2846 | EG24: 1490 | EH24: 1110252.636 | EI24: 0.8986731001 | EJ24: 1782252.636 | EK24: 91319.28458 | EL24: 0.5444463156 | EM24: 2.025957427
A25: 18 | B25: 4500 | C25: 254 | D25: 1057223.62 | E25: =E24+C25 -> 18518 | F25: 14241262.14 | G25: 0.9112740515 | H25: 22354762.14 | I25: 942723.6203 | J25: 0.5678647408 | K25: 2.322910303 | M25: 4500 | N25: 21 | O25: 88263.05958 | P25: 1565 | Q25: 1209506.168 | R25: 0.912004662 | S25: 1889006.168 | T25: 79763.05958 | U25: 0.5702654965 | V25: 2.3311677 | X25: 4500 | Y25: 21 | Z25: 87877.89641 | AA25: 1563 | AB25: 1205614.455 | AC25: 0.9129672897 | AD25: 1876114.455 | AE25: 78377.89641 | AF25: 0.5727645853 | AG25: 2.351977169 | AI25: 4500 | AJ25: 22 | AK25: 81190.90187 | AL25: 1562 | AM25: 1060219.118 | AN25: 0.9055072464 | AO25: 1793719.118 | AP25: 74690.90187 | AQ25: 0.5450170133 | AR25: 2.358615975 | AT25: 4500 | AU25: 21 | AV25: 84862.911 | AW25: 1533 | AX25: 1156139.461 | AY25: 0.9097922849 | AZ25: 1840139.461 | BA25: 76862.911 | BB25: 0.5592858769 | BC25: 2.304599869 | BE25: 4500 | BF25: 21 | BG25: 89063.42155 | BH25: 1554 | BI25: 1205107.621 | BJ25: 0.9130434783 | BK25: 1871107.621 | BL25: 79063.42155 | BM25: 0.5707138519 | BN25: 2.336101538 | BP25: 4500 | BQ25: 21 | BR25: 89240.45375 | BS25: 1528 | BT25: 1207315.573 | BU25: 0.9116945107 | BV25: 1873315.573 | BW25: 79240.45375 | BX25: 0.5699633293 | BY25: 2.294681948 | CA25: 4500 | CB25: 21 | CC25: 88942.28862 | CD25: 1540 | CE25: 1213836.041 | CF25: 0.9123222749 | CG25: 1879836.041 | CH25: 78942.28862 | CI25: 0.5720286578 | CJ25: 2.31144078 | CL25: 4500 | CM25: 21 | CN25: 88486.60436 | CO25: 1548 | CP25: 1198083.269 | CQ25: 0.9127358491 | CR25: 1864083.269 | CS25: 78486.60436 | CT25: 0.5714817791 | CU25: 2.339782246 | CW25: 4500 | CX25: 21 | CY25: 87246.6858 | CZ25: 1571 | DA25: 1176638.492 | DB25: 0.9096699479 | DC25: 1878638.492 | DD25: 81246.6858 | DE25: 0.5760745649 | DF25: 2.383089403 | DH25: 4500 | DI25: 21 | DJ25: 89270.02228 | DK25: 1522 | DL25: 1201111.116 | DM25: 0.9119233074 | DN25: 1862611.116 | DO25: 78770.02228 | DP25: 0.568709129 | DQ25: 2.293173211 | DS25: 4500 | DT25: 21 | DU25: 89100.88703 | DV25: 1520 | DW25: 1203759.701 | DX25: 0.9118176365 | DY25: 1865259.701 | DZ25: 78600.88703 | EA25: 0.5697406592 | EB25: 2.291321446 | ED25: 4500 | EE25: 22 | EF25: 93678.48809 | EG25: 1512 | EH25: 1203931.125 | EI25: 0.9119420989 | EJ25: 1860931.125 | EK25: 78678.48809 | EL25: 0.568481187 | EM25: 2.279202105
A26: 19 | B26: 5000 | C26: 174 | D26: 798165.5946 | E26: 18692 | F26: 15039427.74 | G26: 0.9198366222 | H26: 23184427.74 | I26: 829665.5946 | J26: 0.588940243 | K26: 2.581011448 | M26: 5000 | N26: 15 | O26: 69489.18475 | P26: 1580 | Q26: 1278995.353 | R26: 0.9207459207 | S26: 1958995.353 | T26: 69989.18475 | U26: 0.5913942879 | V26: 2.590186333 | X26: 5000 | Y26: 15 | Z26: 69185.94719 | AA26: 1578 | AB26: 1274800.403 | AC26: 0.921728972 | AD26: 1944800.403 | AE26: 68685.94719 | AF26: 0.5937339233 | AG26: 2.613307966 | AI26: 5000 | AJ26: 15 | AK26: 61217.07279 | AL26: 1577 | AM26: 1121436.191 | AN26: 0.9142028986 | AO26: 1861436.191 | AP26: 67717.07279 | AQ26: 0.5655926745 | AR26: 2.620684416 | AT26: 5000 | AU26: 15 | AV26: 66872.28647 | AW26: 1548 | AX26: 1223011.748 | AY26: 0.918694362 | AZ26: 1908011.748 | BA26: 67872.28647 | BB26: 0.5799147542 | BC26: 2.560666521 | BE26: 5000 | BF26: 15 | BG26: 69936.46944 | BH26: 1569 | BI26: 1275044.091 | BJ26: 0.9218566392 | BK26: 1940044.091 | BL26: 68936.46944 | BM26: 0.591740434 | BN26: 2.595668375 | BP26: 5000 | BQ26: 15 | BR26: 70138.27658 | BS26: 1543 | BT26: 1277453.85 | BU26: 0.9206443914 | BV26: 1942453.85 | BW26: 69138.27658 | BX26: 0.5909989108 | BY26: 2.549646609 | CA26: 5000 | CB26: 15 | CC26: 69903.93456 | CD26: 1555 | CE26: 1283739.975 | CF26: 0.9212085308 | CG26: 1948739.975 | CH26: 68903.93456 | CI26: 0.5929959253 | CJ26: 2.568267533 | CL26: 5000 | CM26: 14 | CN26: 65059.86084 | CO26: 1562 | CP26: 1263143.13 | CQ26: 0.920990566 | CR26: 1933143.13 | CS26: 69059.86084 | CT26: 0.5926538227 | CU26: 2.599758051 | CW26: 5000 | CX26: 14 | CY26: 64148.20953 | CZ26: 1585 | DA26: 1240786.701 | DB26: 0.917776491 | DC26: 1950786.701 | DD26: 72148.20953 | DE26: 0.598198432 | DF26: 2.647877114 | DH26: 5000 | DI26: 14 | DJ26: 65635.86962 | DK26: 1536 | DL26: 1266746.986 | DM26: 0.9203115638 | DN26: 1931746.986 | DO26: 69135.86962 | DP26: 0.5898183127 | DQ26: 2.547970234 | DS26: 5000 | DT26: 14 | DU26: 65511.51277 | DV26: 1534 | DW26: 1269271.213 | DX26: 0.9202159568 | DY26: 1934271.213 | DZ26: 69011.51277 | EA26: 0.5908201178 | EB26: 2.545912718 | ED26: 5000 | EE26: 13 | EF26: 61066.97005 | EG26: 1525 | EH26: 1264998.095 | EI26: 0.9197828709 | EJ26: 1929998.095 | EK26: 69066.97005 | EL26: 0.5895799116 | EM26: 2.532446783
A27: 20 | B27: 5500 | C27: 245 | D27: 1258952.467 | E27: 18937 | F27: 16298380.2 | G27: 0.9318931155 | H27: 23910380.2 | I27: 725952.4668 | J27: 0.6073811822 | K27: 2.839112592 | M27: 5500 | N27: 20 | O27: 103811.3971 | P27: 1600 | Q27: 1382806.75 | R27: 0.9324009324 | S27: 2020806.75 | T27: 61811.39713 | U27: 0.6100543154 | V27: 2.849204967 | X27: 5500 | Y27: 20 | Z27: 103358.384 | AA27: 1598 | AB27: 1378158.786 | AC27: 0.933411215 | AD27: 2005158.786 | AE27: 60358.38397 | AF27: 0.6121609146 | AG27: 2.874638762 | AI27: 5500 | AJ27: 20 | AK27: 91453.51003 | AL27: 1597 | AM27: 1212889.701 | AN27: 0.9257971014 | AO27: 1916889.701 | AP27: 55453.51003 | AQ27: 0.5824420831 | AR27: 2.882752858 | AT27: 5500 | AU27: 20 | AV27: 99901.95614 | AW27: 1568 | AX27: 1322913.704 | AY27: 0.9305637982 | AZ27: 1966413.704 | BA27: 58401.95614 | BB27: 0.5976652508 | BC27: 2.816733173 | BE27: 5500 | BF27: 20 | BG27: 104479.6054 | BH27: 1589 | BI27: 1379523.696 | BJ27: 0.9336075206 | BK27: 2001023.696 | BL27: 60979.60541 | BM27: 0.6103400619 | BN27: 2.855235213 | BP27: 5500 | BQ27: 20 | BR27: 104781.0895 | BS27: 1563 | BT27: 1382234.939 | BU27: 0.9325775656 | BV27: 2003734.939 | BW27: 61281.08946 | BX27: 0.6096439134 | BY27: 2.80461127 | CA27: 5500 | CB27: 20 | CC27: 104431.0008 | CD27: 1575 | CE27: 1388170.976 | CF27: 0.933056872 | CG27: 2009670.976 | CH27: 60931.00085 | CI27: 0.6115370522 | CJ27: 2.825094286 | CL27: 5500 | CM27: 20 | CN27: 103895.9622 | CO27: 1582 | CP27: 1367039.092 | CQ27: 0.9327830189 | CR27: 1994039.092 | CS27: 60895.96218 | CT27: 0.611323017 | CU27: 2.859733856 | CW27: 5500 | CX27: 25 | CY27: 128754.7532 | CZ27: 1610 | DA27: 1369541.455 | DB27: 0.9322524609 | DC27: 2013041.455 | DD27: 62254.75319 | DE27: 0.6172885231 | DF27: 2.912664825 | DH27: 5500 | DI27: 20 | DJ27: 104757.8117 | DK27: 1556 | DL27: 1371504.797 | DM27: 0.9322947873 | DN27: 1993004.797 | DO27: 61257.81169 | DP27: 0.6085220971 | DQ27: 2.802767257 | DS27: 5500 | DT27: 20 | DU27: 104559.3325 | DV27: 1554 | DW27: 1373830.546 | DX27: 0.9322135573 | DY27: 1995330.546 | DZ27: 61059.33254 | EA27: 0.6094705955 | EB27: 2.80050399 | ED27: 5500 | EE27: 20 | EF27: 104767.6642 | EG27: 1545 | EH27: 1369765.759 | EI27: 0.9318455971 | EJ27: 1991265.759 | EK27: 61267.66424 | EL27: 0.6082960876 | EM27: 2.785691462
A28: 21 | B28: 6000 | C28: 85 | D28: 475893.7426 | E28: 19022 | F28: 16774273.94 | G28: 0.9360759805 | H28: 24568273.94 | I28: 657893.7426 | J28: 0.6240932661 | K28: 3.097213737 | M28: 6000 | N28: 8 | O28: 45150.58962 | P28: 1608 | Q28: 1427957.34 | R28: 0.9370629371 | S28: 2075957.34 | T28: 55150.58962 | U28: 0.6267035349 | V28: 3.1082236 | X28: 6000 | Y28: 7 | Z28: 39401.29191 | AA28: 1605 | AB28: 1417560.078 | AC28: 0.9375 | AD28: 2059560.078 | AE28: 54401.29191 | AF28: 0.6287692475 | AG28: 3.135969559 | AI28: 6000 | AJ28: 7 | AK28: 34863.03004 | AL28: 1604 | AM28: 1247752.731 | AN28: 0.9298550725 | AO28: 1973752.731 | AP28: 56863.03004 | AQ28: 0.5997197708 | AR28: 3.1448213 | AT28: 6000 | AU28: 7 | AV28: 38121.78743 | AW28: 1575 | AX28: 1361035.491 | AY28: 0.9347181009 | AZ28: 2021035.491 | BA28: 54621.78743 | BB28: 0.6142668155 | BC28: 3.072799825 | BE28: 6000 | BF28: 7 | BG28: 39868.58178 | BH28: 1596 | BI28: 1419392.278 | BJ28: 0.937720329 | BK28: 2055392.278 | BL28: 54368.58178 | BM28: 0.6269232356 | BN28: 3.114802051 | BP28: 6000 | BQ28: 7 | BR28: 39983.62568 | BS28: 1570 | BT28: 1422218.565 | BU28: 0.9367541766 | BV28: 2058218.565 | BW28: 54483.62568 | BX28: 0.626220762 | BY28: 3.059575931 | CA28: 6000 | CB28: 7 | CC28: 39850.03467 | CD28: 1582 | CE28: 1428021.011 | CF28: 0.9372037915 | CG28: 2064021.011 | CH28: 54350.03467 | CI28: 0.6280756102 | CJ28: 3.08192104 | CL28: 6000 | CM28: 7 | CN28: 39645.86819 | CO28: 1589 | CP28: 1406684.961 | CQ28: 0.9369103774 | CR28: 2048684.961 | CS28: 54645.86819 | CT28: 0.6280760873 | CU28: 3.119709661 | CW28: 6000 | CX28: 7 | CY28: 39090.33045 | CZ28: 1617 | DA28: 1408631.785 | DB28: 0.9363057325 | DC28: 2068631.785 | DD28: 55590.33045 | DE28: 0.6343350041 | DF28: 3.177452537 | DH28: 6000 | DI28: 7 | DJ28: 39996.87368 | DK28: 1563 | DL28: 1411501.671 | DM28: 0.9364889155 | DN28: 2047501.671 | DO28: 54496.87368 | DP28: 0.6251615713 | DQ28: 3.057564281 | DS28: 6000 | DT28: 7 | DU28: 39921.09369 | DV28: 1561 | DW28: 1413751.64 | DX28: 0.9364127175 | DY28: 2049751.64 | DZ28: 54421.09369 | EA28: 0.6260934335 | EB28: 3.055095262 | ED28: 6000 | EE28: 7 | EF28: 40000.63541 | EG28: 1552 | EH28: 1409766.394 | EI28: 0.9360675513 | EJ28: 2045766.394 | EK28: 54500.63541 | EL28: 0.6249450573 | EM28: 3.03893614
A29: 22 | B29: 6500 | C29: 120 | D29: 735765.9862 | E29: 19142 | F29: 17510039.93 | G29: 0.9419812017 | H29: 25173539.93 | I29: 605265.9862 | J29: 0.6394684783 | K29: 3.355314882 | M29: 6500 | N29: 10 | O29: 61956.65893 | P29: 1618 | Q29: 1489913.998 | R29: 0.9428904429 | S29: 2126913.998 | T29: 50956.65893 | U29: 0.6420866633 | V29: 3.367242233 | X29: 6500 | Y29: 10 | Z29: 61686.29188 | AA29: 1615 | AB29: 1479246.37 | AC29: 0.9433411215 | AD29: 2109746.37 | AE29: 50186.29188 | AF29: 0.6440907704 | AG29: 3.397300355 | AI29: 6500 | AJ29: 10 | AK29: 54581.23179 | AL29: 1614 | AM29: 1302333.963 | AN29: 0.9356521739 | AO29: 2023833.963 | AP29: 50081.23179 | AQ29: 0.6149368264 | AR29: 3.406889741 | AT29: 6500 | AU29: 10 | AV29: 59623.42859 | AW29: 1585 | AX29: 1420658.92 | AY29: 0.940652819 | AZ29: 2070658.92 | BA29: 49623.42859 | BB29: 0.6293491956 | BC29: 3.328866477 | BE29: 6500 | BF29: 10 | BG29: 62355.45862 | BH29: 1606 | BI29: 1481747.737 | BJ29: 0.9435957697 | BK29: 2105747.737 | BL29: 50355.45862 | BM29: 0.642282351 | BN29: 3.374368888 | BP29: 6500 | BQ29: 10 | BR29: 62535.39016 | BS29: 1580 | BT29: 1484753.955 | BU29: 0.9427207637 | BV29: 2108753.955 | BW29: 50535.39016 | BX29: 0.6415963451 | BY29: 3.314540592 | CA29: 6500 | CB29: 10 | CC29: 62326.45047 | CD29: 1592 | CE29: 1490347.461 | CF29: 0.9431279621 | CG29: 2114347.461 | CH29: 50326.45047 | CI29: 0.6433898032 | CJ29: 3.338747793 | CL29: 6500 | CM29: 10 | CN29: 62007.12899 | CO29: 1599 | CP29: 1468692.09 | CQ29: 0.9428066038 | CR29: 2099192.09 | CS29: 50507.12899 | CT29: 0.6435603226 | CU29: 3.379685466 | CW29: 6500 | CX29: 10 | CY29: 61138.25409 | CZ29: 1627 | DA29: 1469770.039 | DB29: 0.9420961204 | DC29: 2119770.039 | DD29: 51138.25409 | DE29: 0.6500162795 | DF29: 3.442240248 | DH29: 6500 | DI29: 10 | DJ29: 62556.11035 | DK29: 1573 | DL29: 1474057.781 | DM29: 0.9424805273 | DN29: 2098057.781 | DO29: 50556.11035 | DP29: 0.6405978162 | DQ29: 3.312361304 | DS29: 6500 | DT29: 10 | DU29: 62437.58856 | DV29: 1571 | DW29: 1476189.228 | DX29: 0.9424115177 | DY29: 2100189.228 | DZ29: 50437.58856 | EA29: 0.641499516 | EB29: 3.309686534 | ED29: 6500 | EE29: 10 | EF29: 62561.9938 | EG29: 1562 | EH29: 1472328.388 | EI29: 0.9420989144 | EJ29: 2096328.388 | EK29: 50561.9938 | EL29: 0.6403908424 | EM29: 3.292180819
A30: 23 | B30: 7000 | C30: 72 | D30: 470901.5215 | E30: 19214 | F30: 17980941.45 | G30: 0.9455243344 | H30: 25729941.45 | I30: 556401.5215 | J30: 0.6536024156 | K30: 3.613416027 | M30: 7000 | N30: 6 | O30: 39653.21244 | P30: 1624 | Q30: 1529567.211 | R30: 0.9463869464 | S30: 2173567.211 | T30: 46653.21244 | U30: 0.6561706392 | V30: 3.626260867 | X30: 7000 | Y30: 6 | Z30: 39480.17338 | AA30: 1621 | AB30: 1518726.544 | AC30: 0.9468457944 | AD30: 2155726.544 | AE30: 45980.17338 | AF30: 0.6581281949 | AG30: 3.658631152 | AI30: 7000 | AJ30: 6 | AK30: 34932.8259 | AL30: 1620 | AM30: 1337266.789 | AN30: 0.9391304348 | AO30: 2072266.789 | AP30: 48432.8259 | AQ30: 0.6296530179 | AR30: 3.668958183 | AT30: 7000 | AU30: 6 | AV30: 38159.90922 | AW30: 1591 | AX30: 1458818.829 | AY30: 0.9442136499 | AZ30: 2116818.829 | BA30: 46159.90922 | BB30: 0.6433788851 | BC30: 3.584933129 | BE30: 7000 | BF30: 6 | BG30: 39908.45036 | BH30: 1612 | BI30: 1521656.187 | BJ30: 0.9471210341 | BK30: 2151656.187 | BL30: 45908.45036 | BM30: 0.6562850669 | BN30: 3.633935726 | BP30: 7000 | BQ30: 6 | BR30: 40023.60931 | BS30: 1586 | BT30: 1524777.565 | BU30: 0.946300716 | BV30: 2154777.565 | BW30: 46023.60931 | BX30: 0.6555992018 | BY30: 3.569505253 | CA30: 7000 | CB30: 6 | CC30: 39889.8847 | CD30: 1598 | CE30: 1530237.346 | CF30: 0.9466824645 | CG30: 2160237.346 | CH30: 45889.8847 | CI30: 0.6573539621 | CJ30: 3.595574546 | CL30: 7000 | CM30: 6 | CN30: 39685.51406 | CO30: 1605 | CP30: 1508377.604 | CQ30: 0.9463443396 | CR30: 2145377.604 | CS30: 46185.51406 | CT30: 0.6577196577 | CU30: 3.639661271 | CW30: 7000 | CX30: 6 | CY30: 39129.42078 | CZ30: 1633 | DA30: 1508899.46 | DB30: 0.9455703532 | DC30: 2166899.46 | DD30: 47129.42078 | DE30: 0.6644682673 | DF30: 3.70702796 | DH30: 7000 | DI30: 6 | DJ30: 40036.87055 | DK30: 1579 | DL30: 1514094.652 | DM30: 0.9460754943 | DN30: 2144094.652 | DO30: 46036.87055 | DP30: 0.6546542064 | DQ30: 3.567158328 | DS30: 7000 | DT30: 6 | DU30: 39961.01478 | DV30: 1577 | DW30: 1516150.243 | DX30: 0.9460107978 | DY30: 2146150.243 | DZ30: 45961.01478 | EA30: 0.6555382362 | EB30: 3.564277805 | ED30: 7000 | EE30: 6 | EF30: 40040.63605 | EG30: 1568 | EH30: 1512369.024 | EI30: 0.9457177322 | EJ30: 2142369.024 | EK30: 46040.63605 | EL30: 0.6544554335 | EM30: 3.545425497
A31: 24 | B31: 7500 | C31: 96 | D31: 679469.6543 | E31: 19310 | F31: 18660411.11 | G31: 0.9502485114 | H31: 26242911.11 | I31: 512969.6543 | J31: 0.6666330789 | K31: 3.871517171 | M31: 7500 | N31: 8 | O31: 57236.69863 | P31: 1632 | Q31: 1586803.91 | R31: 0.951048951 | S31: 2216803.91 | T31: 43236.69863 | U31: 0.6692232157 | V31: 3.8852795 | X31: 7500 | Y31: 8 | Z31: 56986.92858 | AA31: 1629 | AB31: 1575713.472 | AC31: 0.9515186916 | AD31: 2198213.472 | AE31: 42486.92858 | AF31: 0.6710991562 | AG31: 3.919961948 | AI31: 7500 | AJ31: 8 | AK31: 50423.14367 | AL31: 1628 | AM31: 1387689.932 | AN31: 0.9437681159 | AO31: 2115189.932 | AP31: 42923.14367 | AQ31: 0.6426951064 | AR31: 3.931026625 | AT31: 7500 | AU31: 8 | AV31: 55081.21762 | AW31: 1599 | AX31: 1513900.047 | AY31: 0.9489614243 | AZ31: 2158900.047 | BA31: 42081.21762 | BB31: 0.6561689106 | BC31: 3.840999781 | BE31: 7500 | BF31: 8 | BG31: 57605.1171 | BH31: 1620 | BI31: 1579261.304 | BJ31: 0.9518213866 | BK31: 2194261.304 | BL31: 42605.1171 | BM31: 0.6692802203 | BN31: 3.893502563 | BP31: 7500 | BQ31: 8 | BR31: 57771.34116 | BS31: 1594 | BT31: 1582548.906 | BU31: 0.9510739857 | BV31: 2197548.906 | BW31: 42771.34116 | BX31: 0.6686125437 | BY31: 3.824469914 | CA31: 7500 | CB31: 8 | CC31: 57537.47255 | CD31: 1606 | CE31: 1587774.819 | CF31: 0.9514218009 | CG31: 2202774.819 | CH31: 42537.47255 | CI31: 0.6702979917 | CJ31: 3.8524013 | CL31: 7500 | CM31: 8 | CN31: 57242.68678 | CO31: 1613 | CP31: 1565620.291 | CQ31: 0.9510613208 | CR31: 2188120.291 | CS31: 42742.68678 | CT31: 0.6708235072 | CU31: 3.899637076 | CW31: 7500 | CX31: 8 | CY31: 56440.57362 | CZ31: 1641 | DA31: 1565340.033 | DB31: 0.9502026636 | DC31: 2210340.033 | DD31: 43440.57362 | DE31: 0.6777890896 | DF31: 3.971815671 | DH31: 7500 | DI31: 8 | DJ31: 57749.48606 | DK31: 1587 | DL31: 1571844.138 | DM31: 0.9508687837 | DN31: 2186844.138 | DO31: 42749.48606 | DP31: 0.6677068628 | DQ31: 3.821955351 | DS31: 7500 | DT31: 8 | DU31: 57640.07112 | DV31: 1585 | DW31: 1573790.314 | DX31: 0.950809838 | DY31: 2188790.314 | DZ31: 42640.07112 | EA31: 0.6685625792 | EB31: 3.818869077 | ED31: 7500 | EE31: 8 | EF31: 57754.91744 | EG31: 1576 | EH31: 1570123.942 | EI31: 0.9505428227 | EJ31: 2185123.942 | EK31: 42754.91744 | EL31: 0.6675162964 | EM31: 3.798670175
A32: 25 | B32: 8000 | C32: 74 | D32: 560529.0144 | E32: 19384 | F32: 19220940.12 | G32: 0.9538900645 | H32: 26716940.12 | I32: 474029.0144 | J32: 0.6786745563 | K32: 4.129618316 | M32: 8000 | N32: 5 | O32: 38049.85203 | P32: 1637 | Q32: 1624853.762 | R32: 0.953962704 | S32: 2256853.762 | T32: 40049.85203 | U32: 0.6813137261 | V32: 4.144298133 | X32: 8000 | Y32: 5 | Z32: 37883.80972 | AA32: 1634 | AB32: 1613597.282 | AC32: 0.9544392523 | AD32: 2237597.282 | AE32: 39383.80972 | AF32: 0.6831227571 | AG32: 4.181292745 | AI32: 8000 | AJ32: 5 | AK32: 33520.33226 | AL32: 1633 | AM32: 1421210.264 | AN32: 0.9466666667 | AO32: 2157210.264 | AP32: 42020.33226 | AQ32: 0.655462878 | AR32: 4.193095066 | AT32: 8000 | AU32: 5 | AV32: 36616.92987 | AW32: 1604 | AX32: 1550516.977 | AY32: 0.9519287834 | AZ32: 2198516.977 | BA32: 39616.92987 | BB32: 0.6682099487 | BC32: 4.097066434 | BE32: 8000 | BF32: 5 | BG32: 38294.76951 | BH32: 1625 | BI32: 1617556.074 | BJ32: 0.9547591069 | BK32: 2233556.074 | BL32: 39294.76951 | BM32: 0.6812656716 | BN32: 4.153069401 | BP32: 8000 | BQ32: 5 | BR32: 38405.27206 | BS32: 1599 | BT32: 1620954.178 | BU32: 0.9540572792 | BV32: 2236954.178 | BW32: 39405.27206 | BX32: 0.6806017464 | BY32: 4.079434575 | CA32: 8000 | CB32: 5 | CC32: 38276.95455 | CD32: 1611 | CE32: 1626051.773 | CF32: 0.9543838863 | CG32: 2242051.773 | CH32: 39276.95455 | CI32: 0.6822498551 | CJ32: 4.109228053 | CL32: 8000 | CM32: 7 | CN32: 53396.04642 | CO32: 1620 | CP32: 1619016.337 | CQ32: 0.9551886792 | CR32: 2227016.337 | CS32: 38896.04642 | CT32: 0.6827480721 | CU32: 4.159612881 | CW32: 8000 | CX32: 11 | CY32: 83919.12142 | CZ32: 1652 | DA32: 1649259.155 | DB32: 0.9565720903 | DC32: 2249259.155 | DD32: 38919.12142 | DE32: 0.6897234325 | DF32: 4.236603382 | DH32: 8000 | DI32: 7 | DJ32: 54087.77227 | DK32: 1594 | DL32: 1625931.91 | DM32: 0.9550629119 | DN32: 2225931.91 | DO32: 39087.77227 | DP32: 0.679641492 | DQ32: 4.076752375 | DS32: 8000 | DT32: 7 | DU32: 53985.295 | DV32: 1592 | DW32: 1627775.609 | DX32: 0.9550089982 | DY32: 2227775.609 | DZ32: 38985.295 | EA32: 0.6804705766 | EB32: 4.073460349 | ED32: 8000 | EE32: 7 | EF32: 54092.85927 | EG32: 1583 | EH32: 1624216.801 | EI32: 0.9547647768 | EJ32: 2224216.801 | EK32: 39092.85927 | EL32: 0.679458466 | EM32: 4.051914854
A33: 26 | B33: 8500 | C33: 75 | D33: 598375.5003 | E33: 19459 | F33: 19819315.62 | G33: 0.9575808277 | H33: 27146315.62 | I33: 429375.5003 | J33: 0.6895817271 | K33: 4.387719461 | M33: 8500 | N33: 7 | O33: 56473.14651 | P33: 1644 | Q33: 1681326.908 | R33: 0.958041958 | S33: 2293326.908 | T33: 36473.14651 | U33: 0.6923244773 | V33: 4.403316767 | X33: 8500 | Y33: 7 | Z33: 56226.70846 | AA33: 1641 | AB33: 1669823.99 | AC33: 0.9585280374 | AD33: 2273323.99 | AE33: 35726.70846 | AF33: 0.6940298706 | AG33: 4.442623541 | AI33: 8500 | AJ33: 7 | AK33: 49750.48611 | AL33: 1640 | AM33: 1470960.751 | AN33: 0.9507246377 | AO33: 2193460.751 | AP33: 36250.48611 | AQ33: 0.6664774965 | AR33: 4.455163508 | AT33: 8500 | AU33: 7 | AV33: 54346.42016 | AW33: 1611 | AX33: 1604863.397 | AY33: 0.9560830861 | AZ33: 2233863.397 | BA33: 35346.42016 | BB33: 0.6789530223 | BC33: 4.353133086 | BE33: 8500 | BF33: 7 | BG33: 56836.65018 | BH33: 1632 | BI33: 1674392.724 | BJ33: 0.9588719154 | BK33: 2269392.724 | BL33: 35836.65018 | BM33: 0.6921963484 | BN33: 4.412636238 | BP33: 8500 | BQ33: 7 | BR33: 57000.65677 | BS33: 1606 | BT33: 1677954.835 | BU33: 0.9582338902 | BV33: 2272954.835 | BW33: 36000.65677 | BX33: 0.691555082 | BY33: 4.334399236 | CA33: 8500 | CB33: 7 | CC33: 56810.20942 | CD33: 1618 | CE33: 1682861.983 | CF33: 0.9585308057 | CG33: 2277861.983 | CH33: 35810.20942 | CI33: 0.693146798 | CJ33: 4.366054806 | CL33: 8500 | CM33: 6 | CN33: 48559.2505 | CO33: 1626 | CP33: 1667575.587 | CQ33: 0.9587264151 | CR33: 2262575.587 | CS33: 35559.2505 | CT33: 0.6936496579 | CU33: 4.419588686 | CW33: 8500 | CX33: 5 | CY33: 39917.09094 | CZ33: 1657 | DA33: 1689176.246 | DB33: 0.9594672843 | DC33: 2284176.246 | DD33: 34917.09094 | DE33: 0.7004305739 | DF33: 4.501391094 | DH33: 8500 | DI33: 5 | DJ33: 40842.80755 | DK33: 1599 | DL33: 1666774.718 | DM33: 0.9580587178 | DN33: 2261774.718 | DO33: 35842.80755 | DP33: 0.6905853394 | DQ33: 4.331549398 | DS33: 8500 | DT33: 5 | DU33: 40765.42482 | DV33: 1597 | DW33: 1668541.034 | DX33: 0.9580083983 | DY33: 2263541.034 | DZ33: 35765.42482 | EA33: 0.6913950697 | EB33: 4.328051621 | ED33: 8500 | EE33: 5 | EF33: 40846.64885 | EG33: 1588 | EH33: 1665063.45 | EI33: 0.9577804584 | EJ33: 2260063.45 | EK33: 35846.64885 | EL33: 0.6904089763 | EM33: 4.305159532
A34: 27 | B34: 9000 | C34: 36 | D34: 313659.9295 | E34: 19495 | F34: 20132975.55 | G34: 0.9593523941 | H34: 27566975.55 | I34: 420659.9295 | J34: 0.7002675013 | K34: 4.645820606 | M34: 9000 | N34: 3 | O34: 26412.36703 | P34: 1647 | Q34: 1707739.275 | R34: 0.9597902098 | S34: 2328739.275 | T34: 35412.36703 | U34: 0.7030149935 | V34: 4.6623354 | X34: 9000 | Y34: 3 | Z34: 26297.10849 | AA34: 1644 | AB34: 1696121.099 | AC34: 0.9602803738 | AD34: 2308121.099 | AE34: 34797.10849 | AF34: 0.7046531838 | AG34: 4.703954338 | AI34: 9000 | AJ34: 3 | AK34: 23268.19347 | AL34: 1643 | AM34: 1494228.944 | AN34: 0.9524637681 | AO34: 2232228.944 | AP34: 38768.19347 | AQ34: 0.6782571139 | AR34: 4.71723195 | AT34: 9000 | AU34: 3 | AV34: 25417.70177 | AW34: 1614 | AX34: 1630281.099 | AY34: 0.9578635015 | AZ34: 2269281.099 | BA34: 35417.70177 | BB34: 0.6897177609 | BC34: 4.609199738 | BE34: 9000 | BF34: 3 | BG34: 26582.3769 | BH34: 1635 | BI34: 1700975.101 | BJ34: 0.9606345476 | BK34: 2303975.101 | BL34: 34582.3769 | BM34: 0.7027444544 | BN34: 4.672203076 | BP34: 9000 | BQ34: 3 | BR34: 26659.08242 | BS34: 1609 | BT34: 1704613.917 | BU34: 0.9600238663 | BV34: 2307613.917 | BW34: 34659.08242 | BX34: 0.7021002385 | BY34: 4.589363897 | CA34: 9000 | CB34: 3 | CC34: 26570.01061 | CD34: 1621 | CE34: 1709431.993 | CF34: 0.9603080569 | CG34: 2312431.993 | CH34: 34570.01061 | CI34: 0.703666352 | CJ34: 4.62288156 | CL34: 9000 | CM34: 3 | CN34: 26433.88261 | CO34: 1629 | CP34: 1694009.47 | CQ34: 0.960495283 | CR34: 2297009.47 | CS34: 34433.88261 | CT34: 0.7042062338 | CU34: 4.679564491 | CW34: 9000 | CX34: 3 | CY34: 26063.47783 | CZ34: 1660 | DA34: 1715239.724 | DB34: 0.9612044007 | DC34: 2318239.724 | DD34: 34063.47783 | DE34: 0.7108759594 | DF34: 4.766178805 | DH34: 9000 | DI34: 3 | DJ34: 26667.91552 | DK34: 1602 | DL34: 1693442.633 | DM34: 0.9598562013 | DN34: 2296442.633 | DO34: 34667.91552 | DP34: 0.7011704583 | DQ34: 4.586346421 | DS34: 9000 | DT34: 3 | DU34: 26617.38922 | DV34: 1600 | DW34: 1695158.423 | DX34: 0.9598080384 | DY34: 2298158.423 | DZ34: 34617.38922 | EA34: 0.7019688971 | EB34: 4.582642893 | ED34: 9000 | EE34: 3 | EF34: 26670.42366 | EG34: 1591 | EH34: 1691733.873 | EI34: 0.9595898673 | EJ34: 2294733.873 | EK34: 34670.42366 | EL34: 0.7010001709 | EM34: 4.55840421
A35: 28 | B35: 9500 | C35: 48 | D35: 430856.075 | E35: 19543 | F35: 20563831.63 | G35: 0.9617144826 | H35: 27954831.63 | I35: 387856.075 | J35: 0.7101199788 | K35: 4.90392175 | M35: 9500 | N35: 4 | O35: 36281.10484 | P35: 1651 | Q35: 1744020.38 | R35: 0.9621212121 | S35: 2361520.38 | T35: 32781.10484 | U35: 0.7129111672 | V35: 4.921354033 | X35: 9500 | Y35: 4 | Z35: 36122.78101 | AA35: 1648 | AB35: 1732243.88 | AC35: 0.9626168224 | AD35: 2340243.88 | AE35: 32122.78101 | AF35: 0.7144600435 | AG35: 4.965285134 | AI35: 9500 | AJ35: 4 | AK35: 31962.13978 | AL35: 1647 | AM35: 1526191.084 | AN35: 0.9547826087 | AO35: 2267191.084 | AP35: 34962.13978 | AQ35: 0.6888802716 | AR35: 4.979300391 | AT35: 9500 | AU35: 4 | AV35: 34914.79206 | AW35: 1618 | AX35: 1665195.891 | AY35: 0.9602373887 | AZ35: 2301695.891 | BA35: 32414.79206 | BB35: 0.6995698052 | BC35: 4.86526639 | BE35: 9500 | BF35: 4 | BG35: 36514.63734 | BH35: 1639 | BI35: 1737489.738 | BJ35: 0.9629847239 | BK35: 2335989.738 | BL35: 32014.63734 | BM35: 0.7125093641 | BN35: 4.931769913 | BP35: 9500 | BQ35: 4 | BR35: 36620.00317 | BS35: 1613 | BT35: 1741233.92 | BU35: 0.9624105012 | BV35: 2339733.92 | BW35: 32120.00317 | BX35: 0.7118728707 | BY35: 4.844328558 | CA35: 9500 | CB35: 4 | CC35: 36497.6505 | CD35: 1625 | CE35: 1745929.644 | CF35: 0.9626777251 | CG35: 2344429.644 | CH35: 31997.6505 | CI35: 0.7134031443 | CJ35: 4.879708313 | CL35: 9500 | CM35: 4 | CN35: 36310.65953 | CO35: 1633 | CP35: 1730320.13 | CQ35: 0.9628537736 | CR35: 2328820.13 | CS35: 31810.65953 | CT35: 0.7139585944 | CU35: 4.939540297 | CW35: 9500 | CX35: 4 | CY35: 35801.8564 | CZ35: 1664 | DA35: 1751041.58 | DB35: 0.9635205559 | DC35: 2349541.58 | DD35: 31301.8564 | DE35: 0.7204745082 | DF35: 5.030966517 | DH35: 9500 | DI35: 4 | DJ35: 36632.13668 | DK35: 1606 | DL35: 1730074.77 | DM35: 0.962252846 | DN35: 2328574.77 | DO35: 32132.13668 | DP35: 0.7109813304 | DQ35: 4.841143445 | DS35: 9500 | DT35: 4 | DU35: 36562.73168 | DV35: 1604 | DW35: 1731721.155 | DX35: 0.9622075585 | DY35: 2330221.155 | DZ35: 32062.73168 | EA35: 0.7117624084 | EB35: 4.837234164 | ED35: 9500 | EE35: 4 | EF35: 36635.58196 | EG35: 1595 | EH35: 1728369.455 | EI35: 0.9620024125 | EJ35: 2326869.455 | EK35: 32135.58196 | EL35: 0.7108170166 | EM35: 4.811648889
A36: 29 | B36: 10000 | C36: 25 | D36: 238872.612 | E36: 19568 | F36: 20802704.24 | G36: 0.962944737 | H36: 28332704.24 | I36: 377872.612 | J36: 0.7197188522 | K36: 5.162022895 | M36: 10000 | N36: 3 | O36: 29150.65705 | P36: 1654 | Q36: 1773171.037 | R36: 0.9638694639 | S36: 2393171.037 | T36: 31650.65705 | U36: 0.7224660738 | V36: 5.180372667 | X36: 10000 | Y36: 2 | Z36: 19199.74865 | AA36: 1650 | AB36: 1751443.629 | AC36: 0.9637850467 | AD36: 2371443.629 | AE36: 31199.74865 | AF36: 0.723985108 | AG36: 5.226615931 | AI36: 10000 | AJ36: 2 | AK36: 16988.31133 | AL36: 1649 | AM36: 1543179.395 | AN36: 0.955942029 | AO36: 2303179.395 | AP36: 35988.31133 | AQ36: 0.6998152289 | AR36: 5.241368833 | AT36: 10000 | AU36: 2 | AV36: 18557.68612 | AW36: 1620 | AX36: 1683753.577 | AY36: 0.9614243323 | AZ36: 2333753.577 | BA36: 32057.68612 | BB36: 0.7093133119 | BC36: 5.121333042 | BE36: 10000 | BF36: 2 | BG36: 19408.02561 | BH36: 1641 | BI36: 1756897.764 | BJ36: 0.964159812 | BK36: 2366897.764 | BL36: 30908.02561 | BM36: 0.7219367418 | BN36: 5.191336751 | BP36: 10000 | BQ36: 2 | BR36: 19464.02898 | BS36: 1615 | BT36: 1760697.949 | BU36: 0.9636038186 | BV36: 2370697.949 | BW36: 30964.02898 | BX36: 0.7212937933 | BY36: 5.099293218 | CA36: 10000 | CB36: 2 | CC36: 19398.99688 | CD36: 1627 | CE36: 1765328.641 | CF36: 0.9638625592 | CG36: 2375328.641 | CH36: 30898.99688 | CI36: 0.7228056195 | CJ36: 5.136535066 | CL36: 10000 | CM36: 2 | CN36: 19299.60863 | CO36: 1635 | CP36: 1749619.738 | CQ36: 0.9640330189 | CR36: 2359619.738 | CS36: 30799.60863 | CT36: 0.7234009919 | CU36: 5.199516102 | CW36: 10000 | CX36: 2 | CY36: 19029.17286 | CZ36: 1666 | DA36: 1770070.753 | DB36: 0.9646786335 | DC36: 2380070.753 | DD36: 30529.17286 | DE36: 0.7298361177 | DF36: 5.295754228 | DH36: 10000 | DI36: 2 | DJ36: 19470.47811 | DK36: 1608 | DL36: 1749545.248 | DM36: 0.9634511684 | DN36: 2359545.248 | DO36: 30970.47811 | DP36: 0.7204375145 | DQ36: 5.095940468 | DS36: 10000 | DT36: 2 | DU36: 19433.58841 | DV36: 1606 | DW36: 1751154.743 | DX36: 0.9634073185 | DY36: 2361154.743 | DZ36: 30933.58841 | EA36: 0.7212110246 | EB36: 5.091825436 | ED36: 10000 | EE36: 2 | EF36: 19472.30932 | EG36: 1597 | EH36: 1747841.765 | EI36: 0.9632086852 | EJ36: 2357841.765 | EK36: 30972.30932 | EL36: 0.7202785033 | EM36: 5.064893567
A37: 30 | B37: 10500 | C37: 47 | D37: 475445.4431 | E37: 19615 | F37: 21278149.68 | G37: 0.9652576153 | H37: 28691149.68 | I37: 358445.4431 | J37: 0.7288242288 | K37: 5.42012404 | M37: 10500 | N37: 3 | O37: 30723.31692 | P37: 1657 | Q37: 1803894.354 | R37: 0.9656177156 | S37: 2423394.354 | T37: 30223.31692 | U37: 0.7315900858 | V37: 5.4393913 | X37: 10500 | Y37: 4 | Z37: 40713.68229 | AA37: 1654 | AB37: 1792157.311 | AC37: 0.9661214953 | AD37: 2401157.311 | AE37: 29713.68229 | AF37: 0.7330564868 | AG37: 5.487946728 | AI37: 10500 | AJ37: 4 | AK37: 36024.25859 | AL37: 1653 | AM37: 1579203.654 | AN37: 0.9582608696 | AO37: 2335203.654 | AP37: 32024.25859 | AQ37: 0.7095457188 | AR37: 5.503437274 | AT37: 10500 | AU37: 4 | AV37: 39352.16812 | AW37: 1624 | AX37: 1723105.745 | AY37: 0.9637982196 | AZ37: 2363605.745 | BA37: 29852.16812 | BB37: 0.7183864807 | BC37: 5.377399694 | BE37: 10500 | BF37: 4 | BG37: 41155.34026 | BH37: 1645 | BI37: 1798053.104 | BJ37: 0.9665099882 | BK37: 2396553.104 | BL37: 29655.34026 | BM37: 0.7309820331 | BN37: 5.450903588 | BP37: 10500 | BQ37: 4 | BR37: 41274.0972 | BS37: 1619 | BT37: 1801972.046 | BU37: 0.9659904535 | BV37: 2400472.046 | BW37: 29774.0972 | BX37: 0.7303526747 | BY37: 5.354257879 | CA37: 10500 | CB37: 4 | CC37: 41136.19453 | CD37: 1631 | CE37: 1806464.835 | CF37: 0.9662322275 | CG37: 2404964.835 | CH37: 29636.19453 | CI37: 0.7318238276 | CJ37: 5.39336182 | CL37: 10500 | CM37: 4 | CN37: 40925.43858 | CO37: 1639 | CP37: 1790545.177 | CQ37: 0.9663915094 | CR37: 2389045.177 | CS37: 29425.43858 | CT37: 0.7324221028 | CU37: 5.459491907 | CW37: 10500 | CX37: 4 | CY37: 40351.97087 | CZ37: 1670 | DA37: 1810422.724 | DB37: 0.9669947887 | DC37: 2408922.724 | DD37: 28851.97087 | DE37: 0.7386834221 | DF37: 5.560541939 | DH37: 10500 | DI37: 4 | DJ37: 41287.77277 | DK37: 1612 | DL37: 1790833.021 | DM37: 0.9658478131 | DN37: 2389333.021 | DO37: 29787.77277 | DP37: 0.7295325844 | DQ37: 5.350737492 | DS37: 10500 | DT37: 4 | DU37: 41209.54699 | DV37: 1610 | DW37: 1792364.29 | DX37: 0.9658068386 | DY37: 2390864.29 | DZ37: 29709.54699 | EA37: 0.7302857593 | EB37: 5.346416708 | ED37: 10500 | EE37: 4 | EF37: 41291.65592 | EG37: 1601 | EH37: 1789133.421 | EI37: 0.9656212304 | EJ37: 2387633.421 | EK37: 29791.65592 | EL37: 0.7293793216 | EM37: 5.318138245
A38: 31 | B38: 11000 | C38: 12 | D38: 127134.0022 | E38: 19627 | F38: 21405283.68 | G38: 0.9658481374 | H38: 29039283.68 | I38: 348134.0022 | J38: 0.7376676701 | K38: 5.678225185 | M38: 11000 | N38: 1 | O38: 10705.57509 | P38: 1658 | Q38: 1814599.929 | R38: 0.9662004662 | S38: 2452599.929 | T38: 29205.57509 | U38: 0.7404068552 | V38: 5.698409934 | X38: 11000 | Y38: 1 | Z38: 10658.858 | AA38: 1655 | AB38: 1802816.169 | AC38: 0.9667056075 | AD38: 2429816.169 | AE38: 28658.858 | AF38: 0.7418058351 | AG38: 5.749277524 | AI38: 11000 | AJ38: 1 | AK38: 9431.165033 | AL38: 1654 | AM38: 1588634.819 | AN38: 0.9588405797 | AO38: 2369634.819 | AP38: 34431.16503 | AQ38: 0.7200075411 | AR38: 5.765505716 | AT38: 11000 | AU38: 1 | AV38: 10302.41305 | AW38: 1625 | AX38: 1733408.158 | AY38: 0.9643916914 | AZ38: 2393408.158 | BA38: 29802.41305 | BB38: 0.7274445271 | BC38: 5.633466346 | BE38: 11000 | BF38: 1 | BG38: 10774.48423 | BH38: 1646 | BI38: 1808827.588 | BJ38: 0.9670975323 | BK38: 2424827.588 | BL38: 28274.48423 | BM38: 0.7396061441 | BN38: 5.710470426 | BP38: 11000 | BQ38: 1 | BR38: 10805.57484 | BS38: 1620 | BT38: 1812777.621 | BU38: 0.9665871122 | BV38: 2428777.621 | BW38: 28305.57484 | BX38: 0.7389647526 | BY38: 5.60922254 | CA38: 11000 | CB38: 1 | CC38: 10769.47187 | CD38: 1632 | CE38: 1817234.307 | CF38: 0.9668246445 | CG38: 2433234.307 | CH38: 28269.47187 | CI38: 0.7404261459 | CJ38: 5.650188573 | CL38: 11000 | CM38: 1 | CN38: 10714.29588 | CO38: 1640 | CP38: 1801259.473 | CQ38: 0.9669811321 | CR38: 2417259.473 | CS38: 28214.29588 | CT38: 0.7410719074 | CU38: 5.719467712 | CW38: 11000 | CX38: 1 | CY38: 10564.16181 | CZ38: 1671 | DA38: 1820986.886 | DB38: 0.9675738274 | DC38: 2436986.886 | DD38: 28064.16181 | DE38: 0.747289149 | DF38: 5.825329651 | DH38: 11000 | DI38: 1 | DJ38: 10809.15511 | DK38: 1613 | DL38: 1801642.176 | DM38: 0.9664469742 | DN38: 2417642.176 | DO38: 28309.15511 | DP38: 0.7381761895 | DQ38: 5.605534515 | DS38: 11000 | DT38: 1 | DU38: 10788.67557 | DV38: 1611 | DW38: 1803152.966 | DX38: 0.9664067187 | DY38: 2419152.966 | DZ38: 28288.67557 | EA38: 0.738926491 | EB38: 5.60100798 | ED38: 11000 | EE38: 1 | EF38: 10810.17172 | EG38: 1602 | EH38: 1799943.592 | EI38: 0.9662243667 | EJ38: 2415943.592 | EK38: 28310.17172 | EL38: 0.7380275729 | EM38: 5.571382924
A39: 32 | B39: 12000 | C39: 84 | D39: 937639.7279 | E39: 19711 | F39: 22342923.41 | G39: 0.9699817922 | H39: 29662923.41 | I39: 623639.7279 | J39: 0.7535096195 | K39: 6.194427474 | M39: 12000 | N39: 7 | O39: 78955.84453 | P39: 1665 | Q39: 1893555.774 | R39: 0.9702797203 | S39: 2505555.774 | T39: 52955.84453 | U39: 0.7563935107 | V39: 6.2164472 | X39: 12000 | Y39: 7 | Z39: 78611.29627 | AA39: 1662 | AB39: 1881427.465 | AC39: 0.9707943925 | AD39: 2481427.465 | AE39: 51611.29627 | AF39: 0.7575624019 | AG39: 6.271939117 | AI39: 12000 | AJ39: 7 | AK39: 69556.80513 | AL39: 1661 | AM39: 1658191.624 | AN39: 0.9628985507 | AO39: 2426191.624 | AP39: 56556.80513 | AQ39: 0.7371921832 | AR39: 6.289642599 | AT39: 12000 | AU39: 7 | AV39: 75982.44062 | AW39: 1632 | AX39: 1809390.599 | AY39: 0.9685459941 | AZ39: 2445390.599 | BA39: 51982.44062 | BB39: 0.7432438975 | BC39: 6.14559965 | BE39: 12000 | BF39: 7 | BG39: 79464.06377 | BH39: 1653 | BI39: 1888291.652 | BJ39: 0.9712103408 | BK39: 2476291.652 | BL39: 51464.06377 | BM39: 0.7553033995 | BN39: 6.229604101 | BP39: 12000 | BQ39: 7 | BR39: 79693.36353 | BS39: 1627 | BT39: 1892470.985 | BU39: 0.9707637232 | BV39: 2480470.985 | BW39: 51693.36353 | BX39: 0.7546926534 | BY39: 6.119151862 | CA39: 12000 | CB39: 7 | CC39: 79427.09659 | CD39: 1639 | CE39: 1896661.404 | CF39: 0.970971564 | CG39: 2484661.404 | CH39: 51427.09659 | CI39: 0.7560752623 | CJ39: 6.16384208 | CL39: 12000 | CM39: 7 | CN39: 79020.16218 | CO39: 1647 | CP39: 1880279.635 | CQ39: 0.9711084906 | CR39: 2468279.635 | CS39: 51020.16218 | CT39: 0.756713426 | CU39: 6.239419322 | CW39: 12000 | CX39: 7 | CY39: 77912.89214 | CZ39: 1678 | DA39: 1898899.778 | DB39: 0.971627099 | DC39: 2486899.778 | DD39: 49912.89214 | DE39: 0.7625946736 | DF39: 6.354905074 | DH39: 12000 | DI39: 7 | DJ39: 79719.76877 | DK39: 1620 | DL39: 1881361.945 | DM39: 0.9706411025 | DN39: 2469361.945 | DO39: 51719.76877 | DP39: 0.7539677331 | DQ39: 6.115128562 | DS39: 12000 | DT39: 7 | DU39: 79568.72789 | DV39: 1618 | DW39: 1882721.694 | DX39: 0.9706058788 | DY39: 2470721.694 | DZ39: 51568.72789 | EA39: 0.7546780783 | EB39: 6.110190523 | ED39: 12000 | EE39: 7 | EF39: 79727.26647 | EG39: 1609 | EH39: 1879670.859 | EI39: 0.9704463209 | EJ39: 2467670.859 | EK39: 51727.26647 | EL39: 0.753829328 | EM39: 6.07787228
A40: 33 | B40: 13000 | C40: 24 | D40: 289338.6422 | E40: 19735 | F40: 22632262.05 | G40: 0.9711628365 | H40: 30250262.05 | I40: 587338.6422 | J40: 0.7684294341 | K40: 6.710629764 | M40: 13000 | N40: 2 | O40: 24364.34397 | P40: 1667 | Q40: 1917920.117 | R40: 0.9714452214 | S40: 2554920.117 | T40: 49364.34397 | U40: 0.7712959407 | V40: 6.734484467 | X40: 13000 | Y40: 2 | Z40: 24258.02261 | AA40: 1664 | AB40: 1905685.488 | AC40: 0.9719626168 | AD40: 2529685.488 | AE40: 48258.02261 | AF40: 0.7722952378 | AG40: 6.79460071 | AI40: 13000 | AJ40: 2 | AK40: 21463.9706 | AL40: 1663 | AM40: 1679655.595 | AN40: 0.964057971 | AO40: 2485655.595 | AP40: 59463.9706 | AQ40: 0.7552601601 | AR40: 6.813779483 | AT40: 13000 | AU40: 2 | AV40: 23446.80536 | AW40: 1634 | AX40: 1832837.404 | AY40: 0.9697329377 | AZ40: 2495837.404 | BA40: 50446.80536 | BB40: 0.758576532 | BC40: 6.657732955 | BE40: 13000 | BF40: 2 | BG40: 24521.17122 | BH40: 1655 | BI40: 1912812.823 | BJ40: 0.9723854289 | BK40: 2523812.823 | BL40: 47521.17122 | BM40: 0.7697980177 | BN40: 6.748737776 | BP40: 13000 | BQ40: 2 | BR40: 24591.92898 | BS40: 1629 | BT40: 1917062.914 | BU40: 0.9719570406 | BV40: 2528062.914 | BW40: 47591.92898 | BX40: 0.7691726773 | BY40: 6.629081184 | CA40: 13000 | CB40: 2 | CC40: 24509.76382 | CD40: 1641 | CE40: 1921171.167 | CF40: 0.9721563981 | CG40: 2532171.167 | CH40: 47509.76382 | CI40: 0.7705323457 | CJ40: 6.677495586 | CL40: 13000 | CM40: 2 | CN40: 24384.19123 | CO40: 1649 | CP40: 1904663.826 | CQ40: 0.9722877358 | CR40: 2515663.826 | CS40: 47384.19123 | CT40: 0.7712402459 | CU40: 6.759370932 | CW40: 13000 | CX40: 2 | CY40: 24042.50775 | CZ40: 1680 | DA40: 1922942.285 | DB40: 0.9727851766 | DC40: 2533942.285 | DD40: 47042.50775 | DE40: 0.7770200099 | DF40: 6.884480496 | DH40: 13000 | DI40: 2 | DJ40: 24600.07715 | DK40: 1622 | DL40: 1905962.022 | DM40: 0.9718394248 | DN40: 2516962.022 | DO40: 47600.07715 | DP40: 0.7685014155 | DQ40: 6.624722609 | DS40: 13000 | DT40: 2 | DU40: 24553.46867 | DV40: 1620 | DW40: 1907275.162 | DX40: 0.9718056389 | DY40: 2518275.162 | DZ40: 47553.46867 | EA40: 0.7692032109 | EB40: 6.619373067 | ED40: 13000 | EE40: 2 | EF40: 24602.39081 | EG40: 1611 | EH40: 1904273.25 | EI40: 0.9716525935 | EJ40: 2515273.25 | EK40: 47602.39081 | EL40: 0.7683710073 | EM40: 6.584361637
A41: 34 | B41: 14000 | C41: 37 | D41: 472668.9092 | E41: =E40+C41 -> 19772 | F41: 23104930.96 | G41: 0.972983613 | H41: 30790930.96 | I41: 540668.9092 | J41: 0.7821637252 | K41: 7.226832053 | M41: 14000 | N41: 3 | O41: 39769.08222 | P41: 1670 | Q41: 1957689.2 | R41: 0.9731934732 | S41: 2601689.2 | T41: 46769.08222 | U41: 0.7854148961 | V41: 7.252521734 | X41: 14000 | Y41: 3 | Z41: 39595.53752 | AA41: 1667 | AB41: 1945281.025 | AC41: 0.9737149533 | AD41: 2575281.025 | AE41: 45595.53752 | AF41: 0.7862152356 | AG41: 7.317262303 | AI41: 14000 | AJ41: 4 | AK41: 35069.80026 | AL41: 1667 | AM41: 1714725.395 | AN41: 0.9663768116 | AO41: 2526725.395 | AP41: 41069.80026 | AQ41: 0.767739115 | AR41: 7.337916366 | AT41: 14000 | AU41: 3 | AV41: 38309.53723 | AW41: 1637 | AX41: 1871146.941 | AY41: 0.9715133531 | AZ41: 2543146.941 | BA41: 47309.53723 | BB41: 0.7729556356 | BC41: 7.169866259 | BE41: 14000 | BF41: 3 | BG41: 40064.93454 | BH41: 1658 | BI41: 1952877.758 | BJ41: 0.9741480611 | BK41: 2568877.758 | BL41: 45064.93454 | BM41: 0.7835434496 | BN41: 7.267871451 | BP41: 14000 | BQ41: 3 | BR41: 40180.54504 | BS41: 1632 | BT41: 1957243.459 | BU41: 0.9737470167 | BV41: 2573243.459 | BW41: 45180.54504 | BX41: 0.7829190286 | BY41: 7.139010506 | CA41: 14000 | CB41: 3 | CC41: 40046.29609 | CD41: 1644 | CE41: 1961217.464 | CF41: 0.9739336493 | CG41: 2577217.464 | CH41: 45046.29609 | CI41: 0.784239803 | CJ41: 7.191149093 | CL41: 14000 | CM41: 3 | CN41: 39841.12409 | CO41: 1652 | CP41: 1944504.95 | CQ41: 0.9740566038 | CR41: 2560504.95 | CS41: 44841.12409 | CT41: 0.7849874243 | CU41: 7.279322542 | CW41: 14000 | CX41: 3 | CY41: 39282.85033 | CZ41: 1683 | DA41: 1962225.136 | DB41: 0.974522293 | DC41: 2578225.136 | DD41: 44282.85033 | DE41: 0.790599112 | DF41: 7.414055919 | DH41: 14000 | DI41: 3 | DJ41: 40193.85828 | DK41: 1625 | DL41: 1946155.88 | DM41: 0.9736369083 | DN41: 2562155.88 | DO41: 45193.85828 | DP41: 0.7823004096 | DQ41: 7.134316655 | DS41: 14000 | DT41: 3 | DU41: 40117.70508 | DV41: 1623 | DW41: 1947392.867 | DX41: 0.9736052789 | DY41: 2563392.867 | DZ41: 45117.70508 | EA41: 0.7829843434 | EB41: 7.128555611 | ED41: 14000 | EE41: 3 | EF41: 40197.63854 | EG41: 1614 | EH41: 1944470.888 | EI41: 0.9734620024 | EJ41: 2560470.888 | EK41: 45197.63854 | EL41: 0.7821780778 | EM41: 7.090850994
A42: 35 | B42: 15000 | C42: 24 | D42: 338269.518 | E42: 19796 | F42: 23443200.48 | G42: 0.9741646573 | H42: 31318200.48 | I42: 527269.518 | J42: 0.7955576395 | K42: 7.743034343 | M42: 15000 | N42: 2 | O42: 28488.11961 | P42: 1672 | Q42: 1986177.319 | R42: 0.9743589744 | S42: 2646177.319 | T42: 44488.11961 | U42: 0.7988452597 | V42: 7.770559 | X42: 15000 | Y42: 2 | Z42: 28363.80288 | AA42: 1669 | AB42: 1973644.828 | AC42: 0.9748831776 | AD42: 2618644.828 | AE42: 43363.80288 | AF42: 0.7994539005 | AG42: 7.839923897 | AI42: 15000 | AJ42: 2 | AK42: 25096.8449 | AL42: 1669 | AM42: 1739822.24 | AN42: 0.9675362319 | AO42: 2579822.24 | AP42: 53096.8449 | AQ42: 0.7838724569 | AR42: 7.862053249 | AT42: 15000 | AU42: 2 | AV42: 27415.28343 | AW42: 1639 | AX42: 1898562.225 | AY42: 0.9727002967 | AZ42: 2588562.225 | BA42: 45415.28343 | BB42: 0.7867590061 | BC42: 7.681999563 | BE42: 15000 | BF42: 2 | BG42: 28671.49059 | BH42: 1660 | BI42: 1981549.248 | BJ42: 0.9753231492 | BK42: 2611549.248 | BL42: 42671.49059 | BM42: 0.7965588478 | BN42: 7.787005126 | BP42: 15000 | BQ42: 2 | BR42: 28754.22441 | BS42: 1634 | BT42: 1985997.683 | BU42: 0.9749403341 | BV42: 2615997.683 | BW42: 42754.22441 | BX42: 0.7959271626 | BY42: 7.648939828 | CA42: 15000 | CB42: 2 | CC42: 28658.15243 | CD42: 1646 | CE42: 1989875.616 | CF42: 0.9751184834 | CG42: 2619875.616 | CH42: 42658.15243 | CI42: 0.7972205552 | CJ42: 7.704802599 | CL42: 15000 | CM42: 2 | CN42: 28511.32611 | CO42: 1654 | CP42: 1973016.276 | CQ42: 0.9752358491 | CR42: 2603016.276 | CS42: 42511.32611 | CT42: 0.7980203444 | CU42: 7.799274152 | CW42: 15000 | CX42: 2 | CY42: 28111.81115 | CZ42: 1685 | DA42: 1990336.947 | DB42: 0.9756803706 | DC42: 2620336.947 | DD42: 42111.81115 | DE42: 0.8035124763 | DF42: 7.943631342 | DH42: 15000 | DI42: 2 | DJ42: 28763.7517 | DK42: 1627 | DL42: 1974919.632 | DM42: 0.9748352307 | DN42: 2604919.632 | DO42: 42763.7517 | DP42: 0.7953574217 | DQ42: 7.643910702 | DS42: 15000 | DT42: 2 | DU42: 28709.25453 | DV42: 1625 | DW42: 1976102.122 | DX42: 0.974805039 | DY42: 2606102.122 | DZ42: 42709.25453 | EA42: 0.7960298184 | EB42: 7.637738154 | ED42: 15000 | EE42: 2 | EF42: 28725.45631 | EG42: 1616 | EH42: 1973196.344 | EI42: 0.974668275 | EJ42: 2603196.344 | EK42: 42725.45631 | EL42: 0.7952299408 | EM42: 7.59734035
A43: 36 | B43: 16000 | C43: 24 | D43: 367312.5954 | E43: 19820 | F43: 23810513.08 | G43: 0.9753457015 | H43: 31826513.08 | I43: 508312.5954 | J43: 0.8084700023 | K43: 8.259236632 | M43: 16000 | N43: 2 | O43: 30930.29798 | P43: 1674 | Q43: 2017107.617 | R43: 0.9755244755 | S43: 2689107.617 | T43: 42930.29798 | U43: 0.8118053379 | V43: 8.288596267 | X43: 16000 | Y43: 2 | Z43: 30795.32405 | AA43: 1671 | AB43: 2004440.152 | AC43: 0.9760514019 | AD43: 2660440.152 | AE43: 41795.32405 | AF43: 0.8122137198 | AG43: 8.36258549 | AI43: 16000 | AJ43: 2 | AK43: 27248.30216 | AL43: 1671 | AM43: 1767070.542 | AN43: 0.9686956522 | AO43: 2631070.542 | AP43: 51248.30216 | AQ43: 0.7994441238 | AR43: 8.386190133 | AT43: 16000 | AU43: 2 | AV43: 29765.49163 | AW43: 1641 | AX43: 1928327.716 | AY43: 0.9738872404 | AZ43: 2632327.716 | BA43: 43765.49163 | BB43: 0.8000609442 | BC43: 8.194132867 | BE43: 16000 | BF43: 2 | BG43: 31129.38865 | BH43: 1662 | BI43: 2012678.637 | BJ43: 0.9764982374 | BK43: 2652678.637 | BL43: 41129.38865 | BM43: 0.8091038834 | BN43: 8.306138801 | BP43: 16000 | BQ43: 2 | BR43: 31219.21493 | BS43: 1636 | BT43: 2017216.898 | BU43: 0.9761336516 | BV43: 2657216.898 | BW43: 41219.21493 | BX43: 0.8084682642 | BY43: 8.15886915 | CA43: 16000 | CB43: 2 | CC43: 31114.90707 | CD43: 1648 | CE43: 2020990.523 | CF43: 0.9763033175 | CG43: 2660990.523 | CH43: 41114.90707 | CI43: 0.8097317022 | CJ43: 8.218456106 | CL43: 16000 | CM43: 2 | CN43: 30955.49388 | CO43: 1656 | CP43: 2003971.77 | CQ43: 0.9764150943 | CR43: 2643971.77 | CS43: 40955.49388 | CT43: 0.8105762849 | CU43: 8.319225763 | CW43: 16000 | CX43: 2 | CY43: 30521.73002 | CZ43: 1687 | DA43: 2020858.677 | DB43: 0.9768384482 | DC43: 2660858.677 | DD43: 40521.73002 | DE43: 0.8159382506 | DF43: 8.473206765 | DH43: 16000 | DI43: 2 | DJ43: 31229.55897 | DK43: 1629 | DL43: 2006149.191 | DM43: 0.976033553 | DN43: 2646149.191 | DO43: 41229.55897 | DP43: 0.8079460004 | DQ43: 8.153504749 | DS43: 16000 | DT43: 2 | DU43: 31170.38995 | DV43: 1627 | DW43: 2007272.512 | DX43: 0.976004799 | DY43: 2647272.512 | DZ43: 41170.38995 | EA43: 0.8086052497 | EB43: 8.146920698 | ED43: 16000 | EE43: 2 | EF43: 31232.49613 | EG43: 1618 | EH43: 2004428.84 | EI43: 0.9758745476 | EJ43: 2644428.84 | EK43: 41232.49613 | EL43: 0.8078257312 | EM43: 8.103829707
A44: 37 | B44: 17000 | C44: 48 | D44: 774964.6568 | E44: 19868 | F44: 24585477.73 | G44: 0.97770779 | H44: 32286477.73 | I44: 459964.6568 | J44: 0.8201542112 | K44: 8.775438922 | M44: 17000 | N44: 4 | O44: 65257.46205 | P44: 1678 | Q44: 2082365.079 | R44: 0.9778554779 | S44: 2728365.079 | T44: 39257.46205 | U44: 0.8236566365 | V44: 8.806633534 | X44: 17000 | Y44: 4 | Z44: 64972.69092 | AA44: 1675 | AB44: 2069412.843 | AC44: 0.9783878505 | AD44: 2698412.843 | AE44: 37972.69092 | AF44: 0.823806516 | AG44: 8.885247083 | AI44: 17000 | AJ44: 4 | AK44: 57489.10164 | AL44: 1675 | AM44: 1824559.643 | AN44: 0.9710144928 | AO44: 2674559.643 | AP44: 43489.10164 | AQ44: 0.8126581772 | AR44: 8.910327016 | AT44: 17000 | AU44: 4 | AV44: 62799.92653 | AW44: 1645 | AX44: 1991127.643 | AY44: 0.9762611276 | AZ44: 2671127.643 | BA44: 38799.92653 | BB44: 0.8118536651 | BC44: 8.706266171 | BE44: 17000 | BF44: 4 | BG44: 65677.50819 | BH44: 1666 | BI44: 2078356.145 | BJ44: 0.9788484136 | BK44: 2690356.145 | BL44: 37677.50819 | BM44: 0.8205960475 | BN44: 8.825272477 | BP44: 17000 | BQ44: 4 | BR44: 65867.02577 | BS44: 1640 | BT44: 2083083.924 | BU44: 0.9785202864 | BV44: 2695083.924 | BW44: 37867.02577 | BX44: 0.8199894497 | BY44: 8.668798471 | CA44: 17000 | CB44: 4 | CC44: 65646.95461 | CD44: 1652 | CE44: 2086637.478 | CF44: 0.9786729858 | CG44: 2698637.478 | CH44: 37646.95461 | CI44: 0.8211875613 | CJ44: 8.732109613 | CL44: 17000 | CM44: 4 | CN44: 65310.62096 | CO44: 1660 | CP44: 2069282.391 | CQ44: 0.9787735849 | CR44: 2681282.391 | CS44: 37310.62096 | CT44: 0.8220147975 | CU44: 8.839177373 | CW44: 17000 | CX44: 4 | CY44: 64395.45587 | CZ44: 1691 | DA44: 2085254.133 | DB44: 0.9791546034 | DC44: 2697254.133 | DD44: 36395.45587 | DE44: 0.8270987248 | DF44: 9.002782187 | DH44: 17000 | DI44: 4 | DJ44: 65888.84985 | DK44: 1633 | DL44: 2072038.041 | DM44: 0.9784301977 | DN44: 2684038.041 | DO44: 37888.84985 | DP44: 0.8195145638 | DQ44: 8.663098796 | DS44: 17000 | DT44: 4 | DU44: 65764.01369 | DV44: 1631 | DW44: 2073036.525 | DX44: 0.9784043191 | DY44: 2685036.525 | DZ44: 37764.01369 | EA44: 0.8201402086 | EB44: 8.656103242 | ED44: 17000 | EE44: 4 | EF44: 65895.04675 | EG44: 1622 | EH44: 2070323.887 | EI44: 0.9782870929 | EJ44: 2682323.887 | EK44: 37895.04675 | EL44: 0.8194019904 | EM44: 8.610319064
A45: 38 | B45: 18000 | C45: 13 | D45: 222211.6576 | E45: 19881 | F45: 24807689.39 | G45: 0.9783475223 | H45: 32727689.39 | I45: 441211.6576 | J45: 0.8313620488 | K45: 9.291641211 | M45: 18000 | N45: 1 | O45: 17254.69332 | P45: 1679 | Q45: 2099619.773 | R45: 0.9784382284 | S45: 2765619.773 | T45: 37254.69332 | U45: 0.8349033262 | V45: 9.3246708 | X45: 18000 | Y45: 2 | Z45: 34483.03255 | AA45: 1677 | AB45: 2103895.876 | AC45: 0.9795560748 | AD45: 2733895.876 | AE45: 35483.03255 | AF45: 0.834639237 | AG45: 9.407908676 | AI45: 18000 | AJ45: 1 | AK45: 15200.66497 | AL45: 1676 | AM45: 1839760.308 | AN45: 0.9715942029 | AO45: 2721760.308 | AP45: 47200.66497 | AQ45: 0.8269999798 | AR45: 9.434463899 | AT45: 18000 | AU45: 1 | AV45: 16604.89756 | AW45: 1646 | AX45: 2007732.54 | AY45: 0.9768545994 | AZ45: 2709732.54 | BA45: 38604.89756 | BB45: 0.8235871094 | BC45: 9.218399476 | BE45: 18000 | BF45: 1 | BG45: 17365.75751 | BH45: 1667 | BI45: 2095721.903 | BJ45: 0.9794359577 | BK45: 2725721.903 | BL45: 35365.75751 | BM45: 0.8313830955 | BN45: 9.344406152 | BP45: 18000 | BQ45: 1 | BR45: 17415.86776 | BS45: 1641 | BT45: 2100499.792 | BU45: 0.9791169451 | BV45: 2730499.792 | BW45: 35415.86776 | BX45: 0.830764861 | BY45: 9.178727793 | CA45: 18000 | CB45: 1 | CC45: 17357.67885 | CD45: 1653 | CE45: 2103995.157 | CF45: 0.9792654028 | CG45: 2733995.157 | CH45: 35357.67885 | CI45: 0.8319468005 | CJ45: 9.245763119 | CL45: 18000 | CM45: 1 | CN45: 17268.74904 | CO45: 1661 | CP45: 2086551.14 | CQ45: 0.9793632075 | CR45: 2716551.14 | CS45: 35268.74904 | CT45: 0.8328273228 | CU45: 9.359128983 | CW45: 18000 | CX45: 1 | CY45: 17026.77069 | CZ45: 1692 | DA45: 2102280.904 | DB45: 0.9797336422 | DC45: 2732280.904 | DD45: 35026.77069 | DE45: 0.837839499 | DF45: 9.53235761 | DH45: 18000 | DI45: 1 | DJ45: 17421.63825 | DK45: 1634 | DL45: 2089459.679 | DM45: 0.9790293589 | DN45: 2719459.679 | DO45: 35421.63825 | DP45: 0.8303298161 | DQ45: 9.172692843 | DS45: 18000 | DT45: 1 | DU45: 17388.63038 | DV45: 1632 | DW45: 2090425.156 | DX45: 0.9790041992 | DY45: 2720425.156 | DZ45: 35388.63038 | EA45: 0.8309496104 | EB45: 9.165285785 | ED45: 18000 | EE45: 1 | EF45: 17423.27677 | EG45: 1623 | EH45: 2087747.164 | EI45: 0.9788902292 | EJ45: 2717747.164 | EK45: 35423.27677 | EL45: 0.8302231681 | EM45: 9.116808421
A46: 39 | B46: 19000 | C46: 40 | D46: 720308.1092 | E46: 19921 | F46: 25527997.5 | G46: 0.9803159293 | H46: 33127997.5 | I46: 400308.1092 | J46: 0.8415308379 | K46: 9.807843501 | M46: 19000 | N46: 5 | O46: 91443.04123 | P46: 1684 | Q46: 2191062.814 | R46: 0.9813519814 | S46: 2799062.814 | T46: 33443.04123 | U46: 0.8449993295 | V46: 9.842708067 | X46: 19000 | Y46: 3 | Z46: 55099.68952 | AA46: 1680 | AB46: 2158995.565 | AC46: 0.9813084112 | AD46: 2766995.565 | AE46: 33099.68952 | AF46: 0.8447443401 | AG46: 9.930570269 | AI46: 19000 | AJ46: 5 | AK46: 80068.93348 | AL46: 1681 | AM46: 1919829.242 | AN46: 0.9744927536 | AO46: 2755829.242 | AP46: 34068.93348 | AQ46: 0.837351739 | AR46: 9.958600782 | AT46: 19000 | AU46: 3 | AV46: 52795.81646 | AW46: 1649 | AX46: 2060528.357 | AY46: 0.9786350148 | AZ46: 2744528.357 | BA46: 34795.81646 | BB46: 0.8341628343 | BC46: 9.73053278 | BE46: 19000 | BF46: 3 | BG46: 55214.99562 | BH46: 1670 | BI46: 2150936.898 | BJ46: 0.9811985899 | BK46: 2758936.898 | BL46: 33214.99562 | BM46: 0.8415141312 | BN46: 9.863539827 | BP46: 19000 | BQ46: 3 | BR46: 55374.3228 | BS46: 1644 | BT46: 2155874.114 | BU46: 0.9809069212 | BV46: 2763874.114 | BW46: 33374.3228 | BX46: 0.8409191246 | BY46: 9.688657115 | CA46: 19000 | CB46: 3 | CC46: 55189.30926 | CD46: 1656 | CE46: 2159184.466 | CF46: 0.981042654 | CG46: 2767184.466 | CH46: 33189.30926 | CI46: 0.8420462111 | CJ46: 9.759416626 | CL46: 19000 | CM46: 3 | CN46: 54906.554 | CO46: 1664 | CP46: 2141457.694 | CQ46: 0.9811320755 | CR46: 2749457.694 | CS46: 32906.554 | CT46: 0.8429156575 | CU46: 9.879080593 | CW46: 19000 | CX46: 3 | CY46: 54137.1759 | CZ46: 1695 | DA46: 2156418.079 | DB46: 0.9814707585 | DC46: 2764418.079 | DD46: 32137.1759 | DE46: 0.8476941941 | DF46: 10.06193303 | DH46: 19000 | DI46: 3 | DJ46: 55392.67028 | DK46: 1637 | DL46: 2144852.349 | DM46: 0.9808268424 | DN46: 2752852.349 | DO46: 33392.67028 | DP46: 0.8405255656 | DQ46: 9.68228689 | DS46: 19000 | DT46: 3 | DU46: 55287.72068 | DV46: 1635 | DW46: 2145712.877 | DX46: 0.9808038392 | DY46: 2753712.877 | DZ46: 33287.72068 | EA46: 0.8411172927 | EB46: 9.674468329 | ED46: 19000 | EE46: 3 | EF46: 55397.88 | EG46: 1626 | EH46: 2143145.044 | EI46: 0.9806996381 | EJ46: 2751145.044 | EK46: 33397.88 | EL46: 0.8404256234 | EM46: 9.623297777
A47: 40 | B47: 20000 | C47: 12 | D47: 226724.264 | E47: 19933 | F47: 25754721.76 | G47: 0.9809064515 | H47: 33514721.76 | I47: 386724.264 | J47: 0.8513545646 | K47: 10.32404579 | M47: 20000 | N47: 1 | O47: 19091.77396 | P47: 1685 | Q47: 2210154.588 | R47: 0.9819347319 | S47: 2830154.588 | T47: 31091.77396 | U47: 0.8543855169 | V47: 10.36074533 | X47: 20000 | Y47: 1 | Z47: 19008.4611 | AA47: 1681 | AB47: 2178004.026 | AC47: 0.9818925234 | AD47: 2798004.026 | AE47: 31008.4611 | AF47: 0.8542110058 | AG47: 10.45323186 | AI47: 20000 | AJ47: 1 | AK47: 16819.05638 | AL47: 1682 | AM47: 1936648.298 | AN47: 0.9750724638 | AO47: 2796648.298 | AP47: 40819.05638 | AQ47: 0.8497545059 | AR47: 10.48273767 | AT47: 20000 | AU47: 1 | AV47: 18372.79545 | AW47: 1650 | AX47: 2078901.152 | AY47: 0.9792284866 | AZ47: 2778901.152 | BA47: 34372.79545 | BB47: 0.8446099876 | BC47: 10.24266608 | BE47: 20000 | BF47: 1 | BG47: 19214.66299 | BH47: 1671 | BI47: 2170151.561 | BJ47: 0.981786134 | BK47: 2790151.561 | BL47: 31214.66299 | BM47: 0.8510350376 | BN47: 10.3826735 | BP47: 20000 | BQ47: 1 | BR47: 19270.1084 | BS47: 1645 | BT47: 2175144.223 | BU47: 0.98150358 | BV47: 2795144.223 | BW47: 31270.1084 | BX47: 0.850433173 | BY47: 10.19858644 | CA47: 20000 | CB47: 1 | CC47: 19205.72421 | CD47: 1657 | CE47: 2178390.19 | CF47: 0.9816350711 | CG47: 2798390.19 | CH47: 31205.72421 | CI47: 0.8515420225 | CJ47: 10.27307013 | CL47: 20000 | CM47: 1 | CN47: 19107.32617 | CO47: 1665 | CP47: 2160565.02 | CQ47: 0.9817216981 | CR47: 2780565.02 | CS47: 31107.32617 | CT47: 0.8524523936 | CU47: 10.3990322 | CW47: 20000 | CX47: 1 | CY47: 18839.58476 | CZ47: 1696 | DA47: 2175257.664 | DB47: 0.9820497973 | DC47: 2795257.664 | DD47: 30839.58476 | DE47: 0.8571509898 | DF47: 10.59150846 | DH47: 20000 | DI47: 1 | DJ47: 19276.49327 | DK47: 1638 | DL47: 2164128.843 | DM47: 0.9814260036 | DN47: 2784128.843 | DO47: 31276.49327 | DP47: 0.850075185 | DQ47: 10.19188094 | DS47: 20000 | DT47: 1 | DU47: 19239.9711 | DV47: 1636 | DW47: 2164952.848 | DX47: 0.9814037193 | DY47: 2784952.848 | DZ47: 31239.9711 | EA47: 0.850659493 | EB47: 10.18365087 | ED47: 20000 | EE47: 1 | EF47: 19278.30624 | EG47: 1627 | EH47: 2162423.35 | EI47: 0.9813027744 | EJ47: 2782423.35 | EK47: 31278.30624 | EL47: 0.8499805867 | EM47: 10.12978713
A48: 41 | B48: 21000 | C48: 36 | D48: 728533.1082 | E48: 19969 | F48: 26483254.87 | G48: 0.9826780178 | H48: 33875254.87 | I48: 360533.1082 | J48: 0.8605129729 | K48: 10.84024808 | M48: 21000 | N48: 3 | O48: 61347.59985 | P48: 1688 | Q48: 2271502.188 | R48: 0.9836829837 | S48: 2859502.188 | T48: 29347.59985 | U48: 0.8632451617 | V48: 10.8787826 | X48: 21000 | Y48: 3 | Z48: 61079.89061 | AA48: 1684 | AB48: 2239083.917 | AC48: 0.9836448598 | AD48: 2827083.917 | AE48: 29079.89061 | AF48: 0.8630888924 | AG48: 10.97589346 | AI48: 21000 | AJ48: 3 | AK48: 54044.67615 | AL48: 1685 | AM48: 1990692.974 | AN48: 0.9768115942 | AO48: 2830692.974 | AP48: 34044.67615 | AQ48: 0.8600988946 | AR48: 11.00687455 | AT48: 21000 | AU48: 3 | AV48: 59037.30611 | AW48: 1653 | AX48: 2137938.458 | AY48: 0.9810089021 | AZ48: 2809938.458 | BA48: 31037.30611 | BB48: 0.8540433634 | BC48: 10.75479939 | BE48: 21000 | BF48: 3 | BG48: 61742.47917 | BH48: 1674 | BI48: 2231894.04 | BJ48: 0.9835487662 | BK48: 2819894.04 | BL48: 29742.47917 | BM48: 0.8601069075 | BN48: 10.90180718 | BP48: 21000 | BQ48: 3 | BR48: 61920.64191 | BS48: 1648 | BT48: 2237064.865 | BU48: 0.9832935561 | BV48: 2825064.865 | BW48: 29920.64191 | BX48: 0.8595366412 | BY48: 10.70851576 | CA48: 21000 | CB48: 3 | CC48: 61713.75619 | CD48: 1660 | CE48: 2240103.946 | CF48: 0.9834123223 | CG48: 2828103.946 | CH48: 29713.75619 | CI48: 0.8605838324 | CJ48: 10.78672364 | CL48: 21000 | CM48: 3 | CN48: 61397.57377 | CO48: 1668 | CP48: 2221962.594 | CQ48: 0.983490566 | CR48: 2809962.594 | CS48: 29397.57377 | CT48: 0.8614649619 | CU48: 10.91898381 | CW48: 21000 | CX48: 3 | CY48: 60537.24026 | CZ48: 1699 | DA48: 2235794.904 | DB48: 0.9837869137 | DC48: 2823794.904 | DD48: 28537.24026 | DE48: 0.8659017837 | DF48: 11.12108388 | DH48: 21000 | DI48: 3 | DJ48: 61941.15842 | DK48: 1641 | DL48: 2226070.001 | DM48: 0.9832234871 | DN48: 2814070.001 | DO48: 29941.15842 | DP48: 0.859217088 | DQ48: 10.70147498 | DS48: 21000 | DT48: 3 | DU48: 61823.80174 | DV48: 1639 | DW48: 2226776.649 | DX48: 0.9832033593 | DY48: 2814776.649 | DZ48: 29823.80174 | EA48: 0.8597691266 | EB48: 10.69283342 | ED48: 21000 | EE48: 3 | EF48: 61946.98403 | EG48: 1630 | EH48: 2224370.334 | EI48: 0.9831121834 | EJ48: 2812370.334 | EK48: 29946.98403 | EL48: 0.8591288549 | EM48: 10.63627649
A49: 42 | B49: 22000 | C49: 24 | D49: 505137.1441 | E49: 19993 | F49: 26988392.02 | G49: 0.9838590621 | H49: 34204392.02 | I49: 329137.1441 | J49: 0.8688738483 | K49: 11.35645037 | M49: 22000 | N49: 2 | O49: 42536.0921 | P49: 1690 | Q49: 2314038.28 | R49: 0.9848484848 | S49: 2886038.28 | T49: 26536.0921 | U49: 0.8712560501 | V49: 11.39681987 | X49: 22000 | Y49: 2 | Z49: 42350.4727 | AA49: 1686 | AB49: 2281434.39 | AC49: 0.9848130841 | AD49: 2853434.39 | AE49: 26350.4727 | AF49: 0.8711335069 | AG49: 11.49855505 | AI49: 22000 | AJ49: 2 | AK49: 37472.5226 | AL49: 1687 | AM49: 2028165.497 | AN49: 0.9779710145 | AO49: 2864165.497 | AP49: 33472.5226 | AQ49: 0.8702694358 | AR49: 11.53101143 | AT49: 22000 | AU49: 2 | AV49: 40934.2223 | AW49: 1655 | AX49: 2178872.681 | AY49: 0.9821958457 | AZ49: 2838872.681 | BA49: 28934.2223 | BB49: 0.8628375348 | BC49: 11.26693269 | BE49: 22000 | BF49: 2 | BG49: 42809.8864 | BH49: 1676 | BI49: 2274703.927 | BJ49: 0.9847238543 | BK49: 2846703.927 | BL49: 26809.8864 | BM49: 0.8682842958 | BN49: 11.42094085 | BP49: 22000 | BQ49: 2 | BR49: 42933.41767 | BS49: 1650 | BT49: 2279998.282 | BU49: 0.9844868735 | BV49: 2851998.282 | BW49: 26933.41767 | BX49: 0.8677312351 | BY49: 11.21844508 | CA49: 22000 | CB49: 2 | CC49: 42789.97097 | CD49: 1662 | CE49: 2282893.917 | CF49: 0.9845971564 | CG49: 2854893.917 | CH49: 26789.97097 | CI49: 0.8687359429 | CJ49: 11.30037715 | CL49: 22000 | CM49: 2 | CN49: 42570.74211 | CO49: 1670 | CP49: 2264533.336 | CQ49: 0.9846698113 | CR49: 2836533.336 | CS49: 26570.74211 | CT49: 0.8696108935 | CU49: 11.43893542 | CW49: 22000 | CX49: 2 | CY49: 41974.21958 | CZ49: 1701 | DA49: 2277769.124 | DB49: 0.9849449913 | DC49: 2849769.124 | DD49: 25974.21958 | DE49: 0.8738666408 | DF49: 11.6506593 | DH49: 22000 | DI49: 2 | DJ49: 42947.64303 | DK49: 1643 | DL49: 2269017.644 | DM49: 0.9844218095 | DN49: 2841017.644 | DO49: 26947.64303 | DP49: 0.867444984 | DQ49: 11.21106903 | DS49: 22000 | DT49: 2 | DU49: 42866.27238 | DV49: 1641 | DW49: 2269642.922 | DX49: 0.9844031194 | DY49: 2841642.922 | DZ49: 26866.27238 | EA49: 0.8679753875 | EB49: 11.20201596 | ED49: 22000 | EE49: 2 | EF49: 42951.68229 | EG49: 1632 | EH49: 2267322.017 | EI49: 0.984318456 | EJ49: 2839322.017 | EK49: 26951.68229 | EL49: 0.867362112 | EM49: 11.14276585
A50: 43 | B50: 23000 | C50: 37 | D50: 825645.3751 | E50: 20030 | F50: 27814037.39 | G50: 0.9856798386 | H50: 34507037.39 | I50: 302645.3751 | J50: 0.8765617689 | K50: 11.87265266 | M50: 23000 | N50: 3 | O50: 67713.50518 | P50: 1693 | Q50: 2381751.785 | R50: 0.9865967366 | S50: 2910751.785 | T50: 24713.50518 | U50: 0.8787167242 | V50: 11.91485713 | X50: 23000 | Y50: 3 | Z50: 67418.01635 | AA50: 1689 | AB50: 2348852.406 | AC50: 0.9865654206 | AD50: 2877852.406 | AE50: 24418.01635 | AF50: 0.8785881561 | AG50: 12.02121664 | AI50: 23000 | AJ50: 3 | AK50: 59652.77317 | AL50: 1690 | AM50: 2087818.27 | AN50: 0.9797101449 | AO50: 2892818.27 | AP50: 28652.77317 | AQ50: 0.8789755084 | AR50: 12.05514832 | AT50: 23000 | AU50: 4 | AV50: 86995.82501 | AW50: 1659 | AX50: 2265868.506 | AY50: 0.9845697329 | AZ50: 2863868.506 | BA50: 24995.82501 | BB50: 0.8704346828 | BC50: 11.779066 | BE50: 23000 | BF50: 3 | BG50: 68109.49168 | BH50: 1679 | BI50: 2342813.419 | BJ50: 0.9864864865 | BK50: 2871813.419 | BL50: 25109.49168 | BM50: 0.87594304 | BN50: 11.94007453 | BP50: 23000 | BQ50: 3 | BR50: 68306.02693 | BS50: 1653 | BT50: 2348304.309 | BU50: 0.9862768496 | BV50: 2877304.309 | BW50: 25306.02693 | BX50: 0.8754306893 | BY50: 11.7283744 | CA50: 23000 | CB50: 3 | CC50: 68077.80672 | CD50: 1665 | CE50: 2350971.724 | CF50: 0.9863744076 | CG50: 2879971.724 | CH50: 25077.80672 | CI50: 0.8763670468 | CJ50: 11.81403065 | CL50: 23000 | CM50: 3 | CN50: 67729.01892 | CO50: 1673 | CP50: 2332262.355 | CQ50: 0.9864386792 | CR50: 2861262.355 | CS50: 24729.01892 | CT50: 0.8771921985 | CU50: 11.95888703 | CW50: 23000 | CX50: 3 | CY50: 66779.96603 | CZ50: 1704 | DA50: 2344549.09 | DB50: 0.9866821077 | DC50: 2873549.09 | DD50: 23779.96603 | DE50: 0.8811586417 | DF50: 12.18023472 | DH50: 23000 | DI50: 3 | DJ50: 68328.65914 | DK50: 1646 | DL50: 2337346.303 | DM50: 0.986219293 | DN50: 2866346.303 | DO50: 25328.65914 | DP50: 0.8751785573 | DQ50: 11.72066308 | DS50: 23000 | DT50: 3 | DU50: 68199.2004 | DV50: 1644 | DW50: 2337842.122 | DX50: 0.9862027594 | DY50: 2866842.122 | DZ50: 25199.2004 | EA50: 0.8756724439 | EB50: 11.7111985 | ED50: 23000 | EE50: 3 | EF50: 68335.08551 | EG50: 1635 | EH50: 2335657.102 | EI50: 0.9861278649 | EJ50: 2864657.102 | EK50: 25335.08551 | EL50: 0.8751015276 | EM50: 11.6492552
A51: 44 | B51: 24000 | C51: 0 | D51: 0 | E51: 20030 | F51: 27814037.39 | G51: 0.9856798386 | H51: 34798037.39 | I51: 291000 | J51: 0.883953869 | K51: 12.38885495 | M51: 24000 | N51: 0 | O51: 0 | P51: 1693 | Q51: 2381751.785 | R51: 0.9865967366 | S51: 2933751.785 | T51: 23000 | U51: 0.8856601141 | V51: 12.4328944 | X51: 24000 | Y51: 0 | Z51: 0 | AA51: 1689 | AB51: 2348852.406 | AC51: 0.9865654206 | AD51: 2900852.406 | AE51: 23000 | AF51: 0.8856098948 | AG51: 12.54387823 | AI51: 24000 | AJ51: 0 | AK51: 0 | AL51: 1690 | AM51: 2087818.27 | AN51: 0.9797101449 | AO51: 2927818.27 | AP51: 35000 | AQ51: 0.8896101698 | AR51: 12.5792852 | AT51: 24000 | AU51: 0 | AV51: 0 | AW51: 1659 | AX51: 2265868.506 | AY51: 0.9845697329 | AZ51: 2889868.506 | BA51: 26000 | BB51: 0.8783370365 | BC51: 12.2911993 | BE51: 24000 | BF51: 0 | BG51: 0 | BH51: 1679 | BI51: 2342813.419 | BJ51: 0.9864864865 | BK51: 2894813.419 | BL51: 23000 | BM51: 0.88295836 | BN51: 12.4592082 | BP51: 24000 | BQ51: 0 | BR51: 0 | BS51: 1653 | BT51: 2348304.309 | BU51: 0.9862768496 | BV51: 2900304.309 | BW51: 23000 | BX51: 0.882428526 | BY51: 12.23830372 | CA51: 24000 | CB51: 0 | CC51: 0 | CD51: 1665 | CE51: 2350971.724 | CF51: 0.9863744076 | CG51: 2902971.724 | CH51: 23000 | CI51: 0.8833658801 | CJ51: 12.32768416 | CL51: 24000 | CM51: 0 | CN51: 0 | CO51: 1673 | CP51: 2332262.355 | CQ51: 0.9864386792 | CR51: 2884262.355 | CS51: 23000 | CT51: 0.8842434291 | CU51: 12.47883864 | CW51: 24000 | CX51: 0 | CY51: 0 | CZ51: 1704 | DA51: 2344549.09 | DB51: 0.9866821077 | DC51: 2896549.09 | DD51: 23000 | DE51: 0.8882114702 | DF51: 12.70981015 | DH51: 24000 | DI51: 0 | DJ51: 0 | DK51: 1646 | DL51: 2337346.303 | DM51: 0.986219293 | DN51: 2889346.303 | DO51: 23000 | DP51: 0.8822011236 | DQ51: 12.23025712 | DS51: 24000 | DT51: 0 | DU51: 0 | DV51: 1644 | DW51: 2337842.122 | DX51: 0.9862027594 | DY51: 2889842.122 | DZ51: 23000 | EA51: 0.8826977579 | EB51: 12.22038105 | ED51: 24000 | EE51: 0 | EF51: 0 | EG51: 1635 | EH51: 2335657.102 | EI51: 0.9861278649 | EJ51: 2887657.102 | EK51: 23000 | EL51: 0.8821276164 | EM51: 12.15574456
A52: 45 | B52: 25000 | C52: 12 | D52: 287903.8273 | E52: 20042 | F52: 28101941.22 | G52: 0.9862703607 | H52: 35076941.22 | I52: 278903.8273 | J52: 0.8910386972 | K52: 12.90505724 | M52: 25000 | N52: 1 | O52: 24243.52249 | P52: 1694 | Q52: 2405995.307 | R52: 0.9871794872 | S52: 2955995.307 | T52: 22243.52249 | U52: 0.8923751337 | V52: 12.95093167 | X52: 25000 | Y52: 1 | Z52: 24137.72838 | AA52: 1690 | AB52: 2372990.134 | AC52: 0.9871495327 | AD52: 2922990.134 | AE52: 22137.72838 | AF52: 0.892368388 | AG52: 13.06653983 | AI52: 25000 | AJ52: 1 | AK52: 21357.53192 | AL52: 1691 | AM52: 2109175.802 | AN52: 0.9802898551 | AO52: 2959175.802 | AP52: 31357.53192 | AQ52: 0.8991380765 | AR52: 13.10342208 | AT52: 25000 | AU52: 1 | AV52: 23330.53391 | AW52: 1660 | AX52: 2289199.04 | AY52: 0.9851632047 | AZ52: 2914199.04 | BA52: 24330.53391 | BB52: 0.8857319782 | BC52: 12.8033326 | BE52: 25000 | BF52: 1 | BG52: 24399.57205 | BH52: 1680 | BI52: 2367212.991 | BJ52: 0.9870740306 | BK52: 2917212.991 | BL52: 22399.57205 | BM52: 0.889790541 | BN52: 12.97834188 | BP52: 25000 | BQ52: 1 | BR52: 24469.97892 | BS52: 1654 | BT52: 2372774.288 | BU52: 0.9868735084 | BV52: 2922774.288 | BW52: 22469.97892 | BX52: 0.8892651019 | BY52: 12.74823305 | CA52: 25000 | CB52: 1 | CC52: 24388.22122 | CD52: 1666 | CE52: 2375359.945 | CF52: 0.9869668246 | CG52: 2925359.945 | CH52: 22388.22122 | CI52: 0.8901785509 | CJ52: 12.84133767 | CL52: 25000 | CM52: 1 | CN52: 24263.27133 | CO52: 1674 | CP52: 2356525.626 | CQ52: 0.9870283019 | CR52: 2906525.626 | CS52: 22263.27133 | CT52: 0.8910687969 | CU52: 12.99879025 | CW52: 25000 | CX52: 1 | CY52: 23923.28224 | CZ52: 1705 | DA52: 2368472.372 | DB52: 0.9872611465 | DC52: 2918472.372 | DD52: 21923.28224 | DE52: 0.8949341288 | DF52: 13.23938557 | DH52: 25000 | DI52: 1 | DJ52: 24478.08669 | DK52: 1647 | DL52: 2361824.39 | DM52: 0.9868184542 | DN52: 2911824.39 | DO52: 22478.08669 | DP52: 0.8890643346 | DQ52: 12.73985117 | DS52: 25000 | DT52: 1 | DU52: 24431.70934 | DV52: 1645 | DW52: 2362273.832 | DX52: 0.9868026395 | DY52: 2912273.832 | DZ52: 22431.70934 | EA52: 0.8895494885 | EB52: 12.72956359 | ED52: 25000 | EE52: 1 | EF52: 24480.38887 | EG52: 1636 | EH52: 2360137.491 | EI52: 0.9867310012 | EJ52: 2910137.491 | EK52: 22480.38887 | EL52: 0.8889949733 | EM52: 12.66223392
A53: 46 | B53: 26000 | C53: 12 | D53: 297394.7746 | E53: 20054 | F53: 28399335.99 | G53: 0.9868608828 | H53: 35341335.99 | I53: 264394.7746 | J53: 0.8977549606 | K53: 13.42125953 | M53: 26000 | N53: 1 | O53: 25042.72685 | P53: 1695 | Q53: 2431038.034 | R53: 0.9877622378 | S53: 2977038.034 | T53: 21042.72685 | U53: 0.8987276493 | V53: 13.46896893 | X53: 26000 | Y53: 1 | Z53: 24933.44516 | AA53: 1691 | AB53: 2397923.579 | AC53: 0.9877336449 | AD53: 2943923.579 | AE53: 20933.44516 | AF53: 0.898759222 | AG53: 13.58920142 | AI53: 26000 | AJ53: 1 | AK53: 22061.59761 | AL53: 1692 | AM53: 2131237.4 | AN53: 0.9808695652 | AO53: 2989237.4 | AP53: 30061.59761 | AQ53: 0.9082722169 | AR53: 13.62755897 | AT53: 26000 | AU53: 1 | AV53: 24099.64097 | AW53: 1661 | AX53: 2313298.681 | AY53: 0.9857566766 | AZ53: 2937298.681 | BA53: 23099.64097 | BB53: 0.8927528063 | BC53: 13.31546591 | BE53: 26000 | BF53: 1 | BG53: 25203.92069 | BH53: 1681 | BI53: 2392416.911 | BJ53: 0.9876615746 | BK53: 2938416.911 | BL53: 21203.92069 | BM53: 0.8962580318 | BN53: 13.49747555 | BP53: 26000 | BQ53: 1 | BR53: 25276.64857 | BS53: 1655 | BT53: 2398050.937 | BU53: 0.9874701671 | BV53: 2944050.937 | BW53: 21276.64857 | BX53: 0.8957386024 | BY53: 13.25816237 | CA53: 26000 | CB53: 1 | CC53: 25192.19566 | CD53: 1667 | CE53: 2400552.141 | CF53: 0.9875592417 | CG53: 2946552.141 | CH53: 21192.19566 | CI53: 0.8966272746 | CJ53: 13.35499117 | CL53: 26000 | CM53: 1 | CN53: 25063.12672 | CO53: 1675 | CP53: 2381588.753 | CQ53: 0.9876179245 | CR53: 2927588.753 | CS53: 21063.12672 | CT53: 0.89752623 | CU53: 13.51874186 | CW53: 26000 | CX53: 1 | CY53: 24711.92965 | CZ53: 1706 | DA53: 2393184.302 | DB53: 0.9878401853 | DC53: 2939184.302 | DD53: 20711.92965 | DE53: 0.9012853326 | DF53: 13.76896099 | DH53: 26000 | DI53: 1 | DJ53: 25285.02362 | DK53: 1648 | DL53: 2387109.413 | DM53: 0.9874176153 | DN53: 2933109.413 | DO53: 21285.02362 | DP53: 0.8955632689 | DQ53: 13.24944522 | DS53: 26000 | DT53: 1 | DU53: 25237.1174 | DV53: 1646 | DW53: 2387510.949 | DX53: 0.9874025195 | DY53: 2933510.949 | DZ53: 21237.1174 | EA53: 0.8960363328 | EB53: 13.23874613 | ED53: 26000 | EE53: 1 | EF53: 25287.40169 | EG53: 1637 | EH53: 2385424.893 | EI53: 0.9873341375 | EJ53: 2931424.893 | EK53: 21287.40169 | EL53: 0.8954978939 | EM53: 13.16872327
A54: 47 | B54: 27000 | C54: 13 | D54: 333313.5316 | E54: 20067 | F54: 28732649.52 | G54: 0.9875006151 | H54: 35590649.52 | I54: 249313.5316 | J54: 0.9040881241 | K54: 13.93746182 | M54: 27000 | N54: 1 | O54: 26685.70086 | P54: 1696 | Q54: 2457723.735 | R54: 0.9883449883 | S54: 2997723.735 | T54: 20685.70086 | U54: 0.9049723835 | V54: 13.9870062 | X54: 27000 | Y54: 1 | Z54: 26569.24955 | AA54: 1692 | AB54: 2424492.829 | AC54: 0.988317757 | AD54: 2964492.829 | AE54: 20569.24955 | AF54: 0.9050388696 | AG54: 14.11186301 | AI54: 27000 | AJ54: 1 | AK54: 23508.98918 | AL54: 1693 | AM54: 2154746.389 | AN54: 0.9814492754 | AO54: 3018746.389 | AP54: 29508.98918 | AQ54: 0.9172384485 | AR54: 14.15169585 | AT54: 27000 | AU54: 2 | AV54: 49569.7602 | AW54: 1663 | AX54: 2362868.441 | AY54: 0.9869436202 | AZ54: 2956868.441 | BA54: 19569.7602 | BB54: 0.8987007743 | BC54: 13.82759921 | BE54: 27000 | BF54: 1 | BG54: 25920.55844 | BH54: 1682 | BI54: 2418337.47 | BJ54: 0.9882491187 | BK54: 2958337.47 | BL54: 19920.55844 | BM54: 0.9023340792 | BN54: 14.01660923 | BP54: 27000 | BQ54: 1 | BR54: 25995.35424 | BS54: 1656 | BT54: 2424046.291 | BU54: 0.9880668258 | BV54: 2964046.291 | BW54: 19995.35424 | BX54: 0.9018222644 | BY54: 13.76809169 | CA54: 27000 | CB54: 1 | CC54: 25908.50004 | CD54: 1668 | CE54: 2426460.641 | CF54: 0.9881516588 | CG54: 2966460.641 | CH54: 19908.50004 | CI54: 0.9026853735 | CJ54: 13.86864468 | CL54: 27000 | CM54: 1 | CN54: 25775.7612 | CO54: 1676 | CP54: 2407364.514 | CQ54: 0.9882075472 | CR54: 2947364.514 | CS54: 19775.7612 | CT54: 0.9035889888 | CU54: 14.03869347 | CW54: 27000 | CX54: 1 | CY54: 25414.57834 | CZ54: 1707 | DA54: 2418598.88 | DB54: 0.9884192241 | DC54: 2958598.88 | DD54: 19414.57834 | DE54: 0.9072387104 | DF54: 14.29853642 | DH54: 27000 | DI54: 1 | DJ54: 26003.96742 | DK54: 1649 | DL54: 2413113.381 | DM54: 0.9880167765 | DN54: 2953113.381 | DO54: 20003.96742 | DP54: 0.9016710596 | DQ54: 13.75903926 | DS54: 27000 | DT54: 1 | DU54: 25954.69906 | DV54: 1647 | DW54: 2413465.648 | DX54: 0.9880023995 | DY54: 2953465.648 | DZ54: 19954.69906 | EA54: 0.9021314644 | EB54: 13.74792868 | ED54: 27000 | EE54: 1 | EF54: 26006.41311 | EG54: 1638 | EH54: 2411431.306 | EI54: 0.9879372738 | EJ54: 2951431.306 | EK54: 20006.41311 | EL54: 0.9016094954 | EM54: 13.67521263
A55: 48 | B55: 28000 | C55: 24 | D55: 648865.603 | E55: 20091 | F55: 29381515.13 | G55: 0.9886816594 | H55: 35821515.13 | I55: 230865.603 | J55: 0.9099526659 | K55: 14.45366411 | M55: 28000 | N55: 2 | O55: 54639.03688 | P55: 1698 | Q55: 2512362.772 | R55: 0.9895104895 | S55: 3016362.772 | T55: 18639.03688 | U55: 0.9105992574 | V55: 14.50504347 | X55: 28000 | Y55: 2 | Z55: 54400.60254 | AA55: 1694 | AB55: 2478893.432 | AC55: 0.9894859813 | AD55: 2982893.432 | AE55: 18400.60254 | AF55: 0.9106564445 | AG55: 14.63452461 | AI55: 28000 | AJ55: 2 | AK55: 48134.71205 | AL55: 1695 | AM55: 2202881.101 | AN55: 0.9826086957 | AO55: 3042881.101 | AP55: 24134.71205 | AQ55: 0.9245717197 | AR55: 14.67583273 | AT55: 28000 | AU55: 2 | AV55: 52581.3814 | AW55: 1665 | AX55: 2415449.822 | AY55: 0.9881305638 | AZ55: 2975449.822 | BA55: 18581.3814 | BB55: 0.9043483376 | BC55: 14.33973252 | BE55: 28000 | BF55: 2 | BG55: 54990.73485 | BH55: 1684 | BI55: 2473328.205 | BJ55: 0.9894242068 | BK55: 2977328.205 | BL55: 18990.73485 | BM55: 0.9081265175 | BN55: 14.5357429 | BP55: 28000 | BQ55: 2 | BR55: 55149.4149 | BS55: 1658 | BT55: 2479195.706 | BU55: 0.9892601432 | BV55: 2983195.706 | BW55: 19149.4149 | BX55: 0.9076485461 | BY55: 14.27802101 | CA55: 28000 | CB55: 2 | CC55: 54965.15281 | CD55: 1670 | CE55: 2481425.794 | CF55: 0.9893364929 | CG55: 2985425.794 | CH55: 18965.15281 | CI55: 0.9084564145 | CJ55: 14.38229819 | CL55: 28000 | CM55: 2 | CN55: 54683.54599 | CO55: 1678 | CP55: 2462048.06 | CQ55: 0.9893867925 | CR55: 2966048.06 | CS55: 18683.54599 | CT55: 0.9093169014 | CU55: 14.55864508 | CW55: 28000 | CX55: 2 | CY55: 53917.29279 | CZ55: 1709 | DA55: 2472516.173 | DB55: 0.9895773017 | DC55: 2976516.173 | DD55: 17917.29279 | DE55: 0.9127329536 | DF55: 14.82811184 | DH55: 28000 | DI55: 2 | DJ55: 55167.68786 | DK55: 1651 | DL55: 2468281.069 | DM55: 0.9892150989 | DN55: 2972281.069 | DO55: 19167.68786 | DP55: 0.9075235099 | DQ55: 14.26863331 | DS55: 28000 | DT55: 2 | DU55: 55063.16453 | DV55: 1649 | DW55: 2468528.813 | DX55: 0.9892021596 | DY55: 2972528.813 | DZ55: 19063.16453 | EA55: 0.9079542782 | EB55: 14.25711122 | ED55: 28000 | EE55: 2 | EF55: 55172.87643 | EG55: 1640 | EH55: 2466604.182 | EI55: 0.9891435464 | EJ55: 2970604.182 | EK55: 19172.87643 | EL55: 0.9074664664 | EM55: 14.18170199
A56: 49 | B56: 29000 | C56: 12 | D56: 339604.2042 | E56: 20103 | F56: 29721119.33 | G56: 0.9892721815 | H56: 36043119.33 | I56: 221604.2042 | J56: 0.9155819458 | K56: 14.9698664 | M56: 29000 | N56: 1 | O56: 28597.057 | P56: 1699 | Q56: 2540959.829 | R56: 0.9900932401 | S56: 3033959.829 | T56: 17597.057 | U56: 0.9159115717 | V56: 15.02308073 | X56: 29000 | Y56: 1 | Z56: 28472.2649 | AA56: 1695 | AB56: 2507365.696 | AC56: 0.9900700935 | AD56: 3000365.696 | AE56: 17472.2649 | AF56: 0.9159906044 | AG56: 15.1571862 | AI56: 29000 | AJ56: 1 | AK56: 25192.8142 | AL56: 1696 | AM56: 2228073.915 | AN56: 0.9831884058 | AO56: 3069073.915 | AP56: 26192.8142 | AQ56: 0.93253034 | AR56: 15.19996962 | AT56: 29000 | AU56: 1 | AV56: 27520.11835 | AW56: 1666 | AX56: 2442969.941 | AY56: 0.9887240356 | AZ56: 2993969.941 | BA56: 18520.11835 | BB56: 0.9099772809 | BC56: 14.85186582 | BE56: 29000 | BF56: 1 | BG56: 28781.12919 | BH56: 1685 | BI56: 2502109.334 | BJ56: 0.9900117509 | BK56: 2995109.334 | BL56: 17781.12919 | BM56: 0.9135500092 | BN56: 15.05487658 | BP56: 29000 | BQ56: 1 | BR56: 28864.17938 | BS56: 1659 | BT56: 2508059.885 | BU56: 0.9898568019 | BV56: 3001059.885 | BW56: 17864.17938 | BX56: 0.9130837901 | BY56: 14.78795033 | CA56: 29000 | CB56: 1 | CC56: 28767.74003 | CD56: 1671 | CE56: 2510193.534 | CF56: 0.98992891 | CG56: 3003193.534 | CH56: 17767.74003 | CI56: 0.9138630863 | CJ56: 14.89595169 | CL56: 29000 | CM56: 1 | CN56: 28620.35225 | CO56: 1679 | CP56: 2490668.413 | CQ56: 0.9899764151 | CR56: 2983668.413 | CS56: 17620.35225 | CT56: 0.9147188652 | CU56: 15.07859669 | CW56: 29000 | CX56: 1 | CY56: 28219.30955 | CZ56: 1710 | DA56: 2500735.483 | DB56: 0.9901563405 | DC56: 2993735.483 | DD56: 17219.30955 | DE56: 0.9180131639 | DF56: 15.35768726 | DH56: 29000 | DI56: 1 | DJ56: 28873.74311 | DK56: 1652 | DL56: 2497154.812 | DM56: 0.98981426 | DN56: 2990154.812 | DO56: 17873.74311 | DP56: 0.9129808815 | DQ56: 14.77822736 | DS56: 29000 | DT56: 1 | DU56: 28819.03753 | DV56: 1650 | DW56: 2497347.85 | DX56: 0.9898020396 | DY56: 2990347.85 | DZ56: 17819.03753 | EA56: 0.9133970753 | EB56: 14.76629377 | ED56: 29000 | EE56: 1 | EF56: 28876.4587 | EG56: 1641 | EH56: 2495480.641 | EI56: 0.9897466828 | EJ56: 2988480.641 | EK56: 17876.4587 | EL56: 0.9129274049 | EM56: 14.68819134
A57: 50 | B57: 30000 | C57: 24 | D57: 698190.3029 | E57: =E56+C57 -> 20127 | F57: 30419309.63 | G57: 0.9904532257 | H57: 36239309.63 | I57: 196190.3029 | J57: 0.9205656515 | K57: 15.48606869 | M57: 30000 | N57: 2 | O57: 58792.52272 | P57: 1701 | Q57: 2599752.352 | R57: 0.9912587413 | S57: 3049752.352 | T57: 15792.52272 | U57: 0.9206791214 | V57: 15.541118 | X57: 30000 | Y57: 2 | Z57: 58535.96336 | AA57: 1697 | AB57: 2565901.66 | AC57: 0.9912383178 | AD57: 3015901.66 | AE57: 15535.96336 | AF57: 0.9207336251 | AG57: 15.67984779 | AI57: 30000 | AJ57: 2 | AK57: 51793.75979 | AL57: 1698 | AM57: 2279867.675 | AN57: 0.9843478261 | AO57: 3089867.675 | AP57: 20793.75979 | AQ57: 0.9388484713 | AR57: 15.7241065 | AT57: 30000 | AU57: 2 | AV57: 56578.45082 | AW57: 1668 | AX57: 2499548.391 | AY57: 0.9899109792 | AZ57: 3009548.391 | BA57: 15578.45082 | BB57: 0.9147121435 | BC57: 15.36399913 | BE57: 30000 | BF57: 2 | BG57: 59170.95565 | BH57: 1687 | BI57: 2561280.289 | BJ57: 0.991186839 | BK57: 3011280.289 | BL57: 16170.95565 | BM57: 0.9184823756 | BN57: 15.57401025 | BP57: 30000 | BQ57: 2 | BR57: 59341.69806 | BS57: 1661 | BT57: 2567401.583 | BU57: 0.9910501193 | BV57: 3017401.583 | BW57: 16341.69806 | BX57: 0.9180558133 | BY57: 15.29787966 | CA57: 30000 | CB57: 2 | CC57: 59143.42895 | CD57: 1673 | CE57: 2569336.963 | CF57: 0.9911137441 | CG57: 3019336.963 | CH57: 16143.42895 | CI57: 0.9187754849 | CJ57: 15.4096052 | CL57: 30000 | CM57: 2 | CN57: 58840.41527 | CO57: 1681 | CP57: 2549508.828 | CQ57: 0.9911556604 | CR57: 2999508.828 | CS57: 15840.41527 | CT57: 0.9195751443 | CU57: 15.5985483 | CW57: 30000 | CX57: 2 | CY57: 58015.91394 | CZ57: 1712 | DA57: 2558751.397 | DB57: 0.9913144181 | DC57: 3008751.397 | DD57: 15015.91394 | DE57: 0.9226177145 | DF57: 15.88726268 | DH57: 30000 | DI57: 2 | DJ57: 59361.36007 | DK57: 1654 | DL57: 2556516.172 | DM57: 0.9910125824 | DN57: 3006516.172 | DO57: 16361.36007 | DP57: 0.9179764787 | DQ57: 15.2878214 | DS57: 30000 | DT57: 2 | DU57: 59248.8912 | DV57: 1652 | DW57: 2556596.741 | DX57: 0.9910017996 | DY57: 3006596.741 | DZ57: 16248.8912 | EA57: 0.9183602738 | EB57: 15.27547631 | ED57: 30000 | EE57: 2 | EF57: 59366.94305 | EG57: 1643 | EH57: 2554847.584 | EI57: 0.9909529554 | EJ57: 3004847.584 | EK57: 16366.94305 | EL57: 0.9179272134 | EM57: 15.1946807
A58: 51 | B58: 31000 | C58: 0 | D58: 0 | E58: 20127 | F58: 30419309.63 | G58: 0.9904532257 | H58: 36433309.63 | I58: 194000 | J58: 0.9254937182 | K58: 16.00227098 | M58: 31000 | N58: 0 | O58: 0 | P58: 1701 | Q58: 2599752.352 | R58: 0.9912587413 | S58: 3064752.352 | T58: 15000 | U58: 0.9252074192 | V58: 16.05915527 | X58: 31000 | Y58: 0 | Z58: 0 | AA58: 1697 | AB58: 2565901.66 | AC58: 0.9912383178 | AD58: 3030901.66 | AE58: 15000 | AF58: 0.9253130199 | AG58: 16.20250939 | AI58: 31000 | AJ58: 0 | AK58: 0 | AL58: 1698 | AM58: 2279867.675 | AN58: 0.9843478261 | AO58: 3116867.675 | AP58: 27000 | AQ58: 0.9470523529 | AR58: 16.24824338 | AT58: 31000 | AU58: 0 | AV58: 0 | AW58: 1668 | AX58: 2499548.391 | AY58: 0.9899109792 | AZ58: 3026548.391 | BA58: 17000 | BB58: 0.919879067 | BC58: 15.87613243 | BE58: 31000 | BF58: 0 | BG58: 0 | BH58: 1687 | BI58: 2561280.289 | BJ58: 0.991186839 | BK58: 3026280.289 | BL58: 15000 | BM58: 0.9230575843 | BN58: 16.09314393 | BP58: 31000 | BQ58: 0 | BR58: 0 | BS58: 1661 | BT58: 2567401.583 | BU58: 0.9910501193 | BV58: 3032401.583 | BW58: 15000 | BX58: 0.9226196199 | BY58: 15.80780898 | CA58: 31000 | CB58: 0 | CC58: 0 | CD58: 1673 | CE58: 2569336.963 | CF58: 0.9911137441 | CG58: 3034336.963 | CH58: 15000 | CI58: 0.9233399414 | CJ58: 15.92325871 | CL58: 31000 | CM58: 0 | CN58: 0 | CO58: 1681 | CP58: 2549508.828 | CQ58: 0.9911556604 | CR58: 3014508.828 | CS58: 15000 | CT58: 0.9241737729 | CU58: 16.11849992 | CW58: 31000 | CX58: 0 | CY58: 0 | CZ58: 1712 | DA58: 2558751.397 | DB58: 0.9913144181 | DC58: 3023751.397 | DD58: 15000 | DE58: 0.9272173852 | DF58: 16.41683811 | DH58: 31000 | DI58: 0 | DJ58: 0 | DK58: 1654 | DL58: 2556516.172 | DM58: 0.9910125824 | DN58: 3021516.172 | DO58: 15000 | DP58: 0.9225564132 | DQ58: 15.79741545 | DS58: 31000 | DT58: 0 | DU58: 0 | DV58: 1652 | DW58: 2556596.741 | DX58: 0.9910017996 | DY58: 3021596.741 | DZ58: 15000 | EA58: 0.9229420003 | EB58: 15.78465885 | ED58: 31000 | EE58: 0 | EF58: 0 | EG58: 1643 | EH58: 2554847.584 | EI58: 0.9909529554 | EJ58: 3019847.584 | EK58: 15000 | EL58: 0.9225094452 | EM58: 15.70117006
A59: 52 | B59: 32000 | C59: 12 | D59: 372804.8784 | E59: 20139 | F59: 30792114.51 | G59: 0.9910437478 | H59: 36616114.51 | I59: 182804.8784 | J59: 0.930137402 | K59: 16.51847326 | M59: 32000 | N59: 1 | O59: 31392.78674 | P59: 1702 | Q59: 2631145.139 | R59: 0.9918414918 | S59: 3079145.139 | T59: 14392.78674 | U59: 0.9295524075 | V59: 16.57719253 | X59: 32000 | Y59: 1 | Z59: 31255.7946 | AA59: 1698 | AB59: 2597157.454 | AC59: 0.9918224299 | AD59: 3045157.454 | AE59: 14255.7946 | AF59: 0.929665214 | AG59: 16.72517098 | AI59: 32000 | AJ59: 1 | AK59: 27655.73547 | AL59: 1699 | AM59: 2307523.41 | AN59: 0.9849275362 | AO59: 3139523.41 | AP59: 22655.73547 | AQ59: 0.9539362408 | AR59: 16.77238027 | AT59: 32000 | AU59: 1 | AV59: 30210.56349 | AW59: 1669 | AX59: 2529758.955 | AY59: 0.990504451 | AZ59: 3041758.955 | BA59: 15210.56349 | BB59: 0.9245021152 | BC59: 16.38826573 | BE59: 32000 | BF59: 1 | BG59: 31594.85435 | BH59: 1688 | BI59: 2592875.144 | BJ59: 0.9917743831 | BK59: 3040875.144 | BL59: 14594.85435 | BM59: 0.9275092179 | BN59: 16.6122776 | BP59: 32000 | BQ59: 1 | BR59: 31686.02376 | BS59: 1662 | BT59: 2599087.607 | BU59: 0.991646778 | BV59: 3047087.607 | BW59: 14686.02376 | BX59: 0.927087898 | BY59: 16.3177383 | CA59: 32000 | CB59: 1 | CC59: 31580.15622 | CD59: 1674 | CE59: 2600917.119 | CF59: 0.9917061611 | CG59: 3048917.119 | CH59: 14580.15622 | CI59: 0.9277766407 | CJ59: 16.43691221 | CL59: 32000 | CM59: 1 | CN59: 31418.35939 | CO59: 1682 | CP59: 2580927.187 | CQ59: 0.991745283 | CR59: 3028927.187 | CS59: 14418.35939 | CT59: 0.928594085 | CU59: 16.63845153 | CW59: 32000 | CX59: 1 | CY59: 30978.10963 | CZ59: 1713 | DA59: 2589729.506 | DB59: 0.9918934569 | DC59: 3037729.506 | DD59: 13978.10963 | DE59: 0.9315036987 | DF59: 16.94641353 | DH59: 32000 | DI59: 1 | DJ59: 31696.52247 | DK59: 1655 | DL59: 2588212.694 | DM59: 0.9916117436 | DN59: 3036212.694 | DO59: 14696.52247 | DP59: 0.9270436872 | DQ59: 16.3070095 | DS59: 32000 | DT59: 1 | DU59: 31636.46872 | DV59: 1653 | DW59: 2588233.21 | DX59: 0.9916016797 | DY59: 3036233.21 | DZ59: 14636.46872 | EA59: 0.9274126868 | EB59: 16.2938414 | ED59: 32000 | EE59: 1 | EF59: 31699.50355 | EG59: 1644 | EH59: 2586547.087 | EI59: 0.9915560917 | EJ59: 3034547.087 | EK59: 14699.50355 | EL59: 0.9269998807 | EM59: 16.20765941
A60: 53 | B60: 33000 | C60: 0 | D60: 0 | E60: 20139 | F60: 30792114.51 | G60: 0.9910437478 | H60: 36798114.51 | I60: 182000 | J60: 0.9347606398 | K60: 17.03467555 | M60: 33000 | N60: 0 | O60: 0 | P60: 1702 | Q60: 2631145.139 | R60: 0.9918414918 | S60: 3093145.139 | T60: 14000 | U60: 0.9337788188 | V60: 17.0952298 | X60: 33000 | Y60: 0 | Z60: 0 | AA60: 1698 | AB60: 2597157.454 | AC60: 0.9918224299 | AD60: 3059157.454 | AE60: 14000 | AF60: 0.9339393158 | AG60: 17.24783257 | AI60: 33000 | AJ60: 0 | AK60: 0 | AL60: 1699 | AM60: 2307523.41 | AN60: 0.9849275362 | AO60: 3165523.41 | AP60: 26000 | AQ60: 0.961836275 | AR60: 17.29651715 | AT60: 33000 | AU60: 0 | AV60: 0 | AW60: 1669 | AX60: 2529758.955 | AY60: 0.990504451 | AZ60: 3057758.955 | BA60: 16000 | BB60: 0.9293651021 | BC60: 16.90039904 | BE60: 33000 | BF60: 0 | BG60: 0 | BH60: 1688 | BI60: 2592875.144 | BJ60: 0.9917743831 | BK60: 3054875.144 | BL60: 14000 | BM60: 0.9317794126 | BN60: 17.13141128 | BP60: 33000 | BQ60: 0 | BR60: 0 | BS60: 1662 | BT60: 2599087.607 | BU60: 0.991646778 | BV60: 3061087.607 | BW60: 14000 | BX60: 0.9313474509 | BY60: 16.82766762 | CA60: 33000 | CB60: 0 | CC60: 0 | CD60: 1674 | CE60: 2600917.119 | CF60: 0.9917061611 | CG60: 3062917.119 | CH60: 14000 | CI60: 0.9320368001 | CJ60: 16.95056572 | CL60: 33000 | CM60: 0 | CN60: 0 | CO60: 1682 | CP60: 2580927.187 | CQ60: 0.991745283 | CR60: 3042927.187 | CS60: 14000 | CT60: 0.9328861384 | CU60: 17.15840314 | CW60: 33000 | CX60: 0 | CY60: 0 | CZ60: 1713 | DA60: 2589729.506 | DB60: 0.9918934569 | DC60: 3051729.506 | DD60: 14000 | DE60: 0.9357967247 | DF60: 17.47598895 | DH60: 33000 | DI60: 0 | DJ60: 0 | DK60: 1655 | DL60: 2588212.694 | DM60: 0.9916117436 | DN60: 3050212.694 | DO60: 14000 | DP60: 0.9313182927 | DQ60: 16.81660354 | DS60: 33000 | DT60: 0 | DU60: 0 | DV60: 1653 | DW60: 2588233.21 | DX60: 0.9916016797 | DY60: 3050233.21 | DZ60: 14000 | EA60: 0.9316889649 | EB60: 16.80302394 | ED60: 33000 | EE60: 0 | EF60: 0 | EG60: 1644 | EH60: 2586547.087 | EI60: 0.9915560917 | EJ60: 3048547.087 | EK60: 14000 | EL60: 0.9312766304 | EM60: 16.71414877
A61: 54 | B61: 34000 | C61: 12 | D61: 394632.881 | E61: 20151 | F61: 31186747.39 | G61: 0.99163427 | H61: 36966747.39 | I61: 168632.881 | J61: 0.9390443207 | K61: 17.55087784 | M61: 34000 | N61: 1 | O61: 33230.85773 | P61: 1703 | Q61: 2664375.996 | R61: 0.9924242424 | S61: 3106375.996 | T61: 13230.85773 | U61: 0.9377730364 | V61: 17.61326707 | X61: 34000 | Y61: 1 | Z61: 33085.8446 | AA61: 1699 | AB61: 2630243.299 | AC61: 0.9924065421 | AD61: 3072243.299 | AE61: 13085.8446 | AF61: 0.9379343324 | AG61: 17.77049417 | AI61: 34000 | AJ61: 1 | AK61: 29274.99932 | AL61: 1700 | AM61: 2336798.41 | AN61: 0.9855072464 | AO61: 3186798.41 | AP61: 21274.99932 | AQ61: 0.9683006297 | AR61: 17.82065403 | AT61: 34000 | AU61: 1 | AV61: 31979.41443 | AW61: 1670 | AX61: 2561738.369 | AY61: 0.9910979228 | AZ61: 3071738.369 | BA61: 13979.41443 | BB61: 0.9336139589 | BC61: 17.41253234 | BE61: 34000 | BF61: 1 | BG61: 33444.75654 | BH61: 1689 | BI61: 2626319.9 | BJ61: 0.9923619271 | BK61: 3068319.9 | BL61: 13444.75654 | BM61: 0.9358802504 | BN61: 17.65054495 | BP61: 34000 | BQ61: 1 | BR61: 33541.26399 | BS61: 1663 | BT61: 2632628.871 | BU61: 0.9922434368 | BV61: 3074628.871 | BW61: 13541.26399 | BX61: 0.9354674315 | BY61: 17.33759694 | CA61: 34000 | CB61: 1 | CC61: 33429.19783 | CD61: 1675 | CE61: 2634346.317 | CF61: 0.9922985782 | CG61: 3076346.317 | CH61: 13429.19783 | CI61: 0.9361232661 | CJ61: 17.46421923 | CL61: 34000 | CM61: 1 | CN61: 33257.92768 | CO61: 1683 | CP61: 2614185.115 | CQ61: 0.9923349057 | CR61: 3056185.115 | CS61: 13257.92768 | CT61: 0.9369506907 | CU61: 17.67835475 | CW61: 34000 | CX61: 1 | CY61: 32791.90096 | CZ61: 1714 | DA61: 2622521.407 | DB61: 0.9924724957 | DC61: 3064521.407 | DD61: 12791.90096 | DE61: 0.9397192935 | DF61: 18.00556437 | DH61: 34000 | DI61: 1 | DJ61: 33552.3774 | DK61: 1656 | DL61: 2621765.072 | DM61: 0.9922109047 | DN61: 3063765.072 | DO61: 13552.3774 | DP61: 0.9354562261 | DQ61: 17.32619759 | DS61: 34000 | DT61: 1 | DU61: 33488.80747 | DV61: 1654 | DW61: 2621722.017 | DX61: 0.9922015597 | DY61: 3063722.017 | DZ61: 13488.80747 | EA61: 0.9358091001 | EB61: 17.31220648 | ED61: 34000 | EE61: 1 | EF61: 33555.53303 | EG61: 1645 | EH61: 2620102.621 | EI61: 0.992159228 | EJ61: 3062102.621 | EK61: 13555.53303 | EL61: 0.9354176034 | EM61: 17.22063813
A62: 55 | B62: 35000 | C62: 0 | D62: 0 | E62: 20151 | F62: 31186747.39 | G62: 0.99163427 | H62: 37136747.39 | I62: 170000 | J62: 0.9433627297 | K62: 18.06708013 | M62: 35000 | N62: 0 | O62: 0 | P62: 1703 | Q62: 2664375.996 | R62: 0.9924242424 | S62: 3119375.996 | T62: 13000 | U62: 0.9416975611 | V62: 18.13130433 | X62: 35000 | Y62: 0 | Z62: 0 | AA62: 1699 | AB62: 2630243.299 | AC62: 0.9924065421 | AD62: 3085243.299 | AE62: 13000 | AF62: 0.9419031412 | AG62: 18.29315576 | AI62: 35000 | AJ62: 0 | AK62: 0 | AL62: 1700 | AM62: 2336798.41 | AN62: 0.9855072464 | AO62: 3211798.41 | AP62: 25000 | AQ62: 0.9758968164 | AR62: 18.34479091 | AT62: 35000 | AU62: 0 | AV62: 0 | AW62: 1670 | AX62: 2561738.369 | AY62: 0.9910979228 | AZ62: 3086738.369 | BA62: 15000 | BB62: 0.938173009 | BC62: 17.92466565 | BE62: 35000 | BF62: 0 | BG62: 0 | BH62: 1689 | BI62: 2626319.9 | BJ62: 0.9923619271 | BK62: 3081319.9 | BL62: 13000 | BM62: 0.9398454312 | BN62: 18.16967863 | BP62: 35000 | BQ62: 0 | BR62: 0 | BS62: 1663 | BT62: 2632628.871 | BU62: 0.9922434368 | BV62: 3087628.871 | BW62: 13000 | BX62: 0.9394227305 | BY62: 17.84752626 | CA62: 35000 | CB62: 0 | CC62: 0 | CD62: 1675 | CE62: 2634346.317 | CF62: 0.9922985782 | CG62: 3089346.317 | CH62: 13000 | CI62: 0.9400791284 | CJ62: 17.97787273 | CL62: 35000 | CM62: 0 | CN62: 0 | CO62: 1683 | CP62: 2614185.115 | CQ62: 0.9923349057 | CR62: 3069185.115 | CS62: 13000 | CT62: 0.9409361689 | CU62: 18.19830636 | CW62: 35000 | CX62: 0 | CY62: 0 | CZ62: 1714 | DA62: 2622521.407 | DB62: 0.9924724957 | DC62: 3077521.407 | DD62: 13000 | DE62: 0.9437056748 | DF62: 18.5351398 | DH62: 35000 | DI62: 0 | DJ62: 0 | DK62: 1656 | DL62: 2621765.072 | DM62: 0.9922109047 | DN62: 3076765.072 | DO62: 13000 | DP62: 0.9394255027 | DQ62: 17.83579164 | DS62: 35000 | DT62: 0 | DU62: 0 | DV62: 1654 | DW62: 2621722.017 | DX62: 0.9922015597 | DY62: 3076722.017 | DZ62: 13000 | EA62: 0.9397799297 | EB62: 17.82138903 | ED62: 35000 | EE62: 0 | EF62: 0 | EG62: 1645 | EH62: 2620102.621 | EI62: 0.992159228 | EJ62: 3075102.621 | EK62: 13000 | EL62: 0.939388871 | EM62: 17.72712748
A63: 56 | B63: 36000 | C63: 0 | D63: 0 | E63: 20151 | F63: 31186747.39 | G63: 0.99163427 | H63: 37306747.39 | I63: 170000 | J63: 0.9476811387 | K63: 18.58328242 | M63: 36000 | N63: 0 | O63: 0 | P63: 1703 | Q63: 2664375.996 | R63: 0.9924242424 | S63: 3132375.996 | T63: 13000 | U63: 0.9456220859 | V63: 18.6493416 | X63: 36000 | Y63: 0 | Z63: 0 | AA63: 1699 | AB63: 2630243.299 | AC63: 0.9924065421 | AD63: 3098243.299 | AE63: 13000 | AF63: 0.9458719501 | AG63: 18.81581735 | AI63: 36000 | AJ63: 0 | AK63: 0 | AL63: 1700 | AM63: 2336798.41 | AN63: 0.9855072464 | AO63: 3236798.41 | AP63: 25000 | AQ63: 0.9834930031 | AR63: 18.8689278 | AT63: 36000 | AU63: 0 | AV63: 0 | AW63: 1670 | AX63: 2561738.369 | AY63: 0.9910979228 | AZ63: 3101738.369 | BA63: 15000 | BB63: 0.9427320592 | BC63: 18.43679895 | BE63: 36000 | BF63: 0 | BG63: 0 | BH63: 1689 | BI63: 2626319.9 | BJ63: 0.9923619271 | BK63: 3094319.9 | BL63: 13000 | BM63: 0.9438106121 | BN63: 18.6888123 | BP63: 36000 | BQ63: 0 | BR63: 0 | BS63: 1663 | BT63: 2632628.871 | BU63: 0.9922434368 | BV63: 3100628.871 | BW63: 13000 | BX63: 0.9433780296 | BY63: 18.35745559 | CA63: 36000 | CB63: 0 | CC63: 0 | CD63: 1675 | CE63: 2634346.317 | CF63: 0.9922985782 | CG63: 3102346.317 | CH63: 13000 | CI63: 0.9440349907 | CJ63: 18.49152624 | CL63: 36000 | CM63: 0 | CN63: 0 | CO63: 1683 | CP63: 2614185.115 | CQ63: 0.9923349057 | CR63: 3082185.115 | CS63: 13000 | CT63: 0.944921647 | CU63: 18.71825797 | CW63: 36000 | CX63: 0 | CY63: 0 | CZ63: 1714 | DA63: 2622521.407 | DB63: 0.9924724957 | DC63: 3090521.407 | DD63: 13000 | DE63: 0.9476920561 | DF63: 19.06471522 | DH63: 36000 | DI63: 0 | DJ63: 0 | DK63: 1656 | DL63: 2621765.072 | DM63: 0.9922109047 | DN63: 3089765.072 | DO63: 13000 | DP63: 0.9433947793 | DQ63: 18.34538569 | DS63: 36000 | DT63: 0 | DU63: 0 | DV63: 1654 | DW63: 2621722.017 | DX63: 0.9922015597 | DY63: 3089722.017 | DZ63: 13000 | EA63: 0.9437507594 | EB63: 18.33057157 | ED63: 36000 | EE63: 0 | EF63: 0 | EG63: 1645 | EH63: 2620102.621 | EI63: 0.992159228 | EJ63: 3088102.621 | EK63: 13000 | EL63: 0.9433601385 | EM63: 18.23361684
A64: 57 | B64: 37000 | C64: 24 | D64: 814147.3543 | E64: 20175 | F64: 32000894.75 | G64: 0.9928153142 | H64: 37402894.75 | I64: 96147.35428 | J64: 0.9501235128 | K64: 19.09948471 | M64: 37000 | N64: 1 | O64: 36305.86334 | P64: 1704 | Q64: 2700681.86 | R64: 0.993006993 | S64: 3144681.86 | T64: 12305.86334 | U64: 0.9493370601 | V64: 19.16737887 | X64: 37000 | Y64: 1 | Z64: 36147.43147 | AA64: 1700 | AB64: 2666390.73 | AC64: 0.9929906542 | AD64: 3110390.73 | AE64: 12147.43147 | AF64: 0.9495804757 | AG64: 19.33847894 | AI64: 37000 | AJ64: 13 | AK64: 415337.6897 | AL64: 1713 | AM64: 2752136.099 | AN64: 0.9930434783 | AO64: 3196136.099 | AP64: -40662.31029 | AQ64: 0.971137863 | AR64: 19.39306468 | AT64: 37000 | AU64: 1 | AV64: 34900.49639 | AW64: 1671 | AX64: 2596638.866 | AY64: 0.9916913947 | AZ64: 3114638.866 | BA64: 12900.49639 | BB64: 0.9466529933 | BC64: 18.94893226 | BE64: 37000 | BF64: 1 | BG64: 36499.68662 | BH64: 1690 | BI64: 2662819.587 | BJ64: 0.9929494712 | BK64: 3106819.587 | BL64: 12499.68662 | BM64: 0.9476231904 | BN64: 19.20794598 | BP64: 37000 | BQ64: 1 | BR64: 36605.00931 | BS64: 1664 | BT64: 2669233.88 | BU64: 0.9928400955 | BV64: 3113233.88 | BW64: 12605.00931 | BX64: 0.9472131512 | BY64: 18.86738491 | CA64: 37000 | CB64: 1 | CC64: 36482.70674 | CD64: 1676 | CE64: 2670829.023 | CF64: 0.9928909953 | CG64: 3114829.023 | CH64: 12482.70674 | CI64: 0.9478334422 | CJ64: 19.00517975 | CL64: 37000 | CM64: 1 | CN64: 36295.79233 | CO64: 1684 | CP64: 2650480.907 | CQ64: 0.9929245283 | CR64: 3094480.907 | CS64: 12295.79233 | CT64: 0.9486912325 | CU64: 19.23820958 | CW64: 37000 | CX64: 1 | CY64: 35787.19753 | CZ64: 1715 | DA64: 2658308.605 | DB64: 0.9930515345 | DC64: 3102308.605 | DD64: 11787.19753 | DE64: 0.9513065379 | DF64: 19.59429064 | DH64: 37000 | DI64: 1 | DJ64: 36617.13785 | DK64: 1657 | DL64: 2658382.21 | DM64: 0.9928100659 | DN64: 3102382.21 | DO64: 12617.13785 | DP64: 0.947247157 | DQ64: 18.85497973 | DS64: 37000 | DT64: 1 | DU64: 36547.76127 | DV64: 1655 | DW64: 2658269.779 | DX64: 0.9928014397 | DY64: 3102269.779 | DZ64: 12547.76127 | EA64: 0.9475834535 | EB64: 18.83975411 | ED64: 37000 | EE64: 1 | EF64: 36620.58172 | EG64: 1646 | EH64: 2656723.202 | EI64: 0.9927623643 | EJ64: 3100723.202 | EK64: 12620.58172 | EL64: 0.9472155006 | EM64: 18.7401062
A65: 58 | B65: 38000 | C65: 0 | D65: 0 | E65: 20175 | F65: 32000894.75 | G65: 0.9928153142 | H65: 37548894.75 | I65: 146000 | J65: 0.9538322641 | K65: 19.615687 | M65: 38000 | N65: 0 | O65: 0 | P65: 1704 | Q65: 2700681.86 | R65: 0.993006993 | S65: 3156681.86 | T65: 12000 | U65: 0.9529596983 | V65: 19.68541613 | X65: 38000 | Y65: 0 | Z65: 0 | AA65: 1700 | AB65: 2666390.73 | AC65: 0.9929906542 | AD65: 3122390.73 | AE65: 12000 | AF65: 0.9532439915 | AG65: 19.86114054 | AI65: 38000 | AJ65: 0 | AK65: 0 | AL65: 1713 | AM65: 2752136.099 | AN65: 0.9930434783 | AO65: 3208136.099 | AP65: 12000 | AQ65: 0.9747840327 | AR65: 19.91720156 | AT65: 38000 | AU65: 0 | AV65: 0 | AW65: 1671 | AX65: 2596638.866 | AY65: 0.9916913947 | AZ65: 3128638.866 | BA65: 14000 | BB65: 0.9509081068 | BC65: 19.46106556 | BE65: 38000 | BF65: 0 | BG65: 0 | BH65: 1690 | BI65: 2662819.587 | BJ65: 0.9929494712 | BK65: 3118819.587 | BL65: 12000 | BM65: 0.9512833573 | BN65: 19.72707965 | BP65: 38000 | BQ65: 0 | BR65: 0 | BS65: 1664 | BT65: 2669233.88 | BU65: 0.9928400955 | BV65: 3125233.88 | BW65: 12000 | BX65: 0.9508641965 | BY65: 19.37731423 | CA65: 38000 | CB65: 0 | CC65: 0 | CD65: 1676 | CE65: 2670829.023 | CF65: 0.9928909953 | CG65: 3126829.023 | CH65: 12000 | CI65: 0.9514850074 | CJ65: 19.51883325 | CL65: 38000 | CM65: 0 | CN65: 0 | CO65: 1684 | CP65: 2650480.907 | CQ65: 0.9929245283 | CR65: 3106480.907 | CS65: 12000 | CT65: 0.9523701354 | CU65: 19.75816119 | CW65: 38000 | CX65: 0 | CY65: 0 | CZ65: 1715 | DA65: 2658308.605 | DB65: 0.9930515345 | DC65: 3114308.605 | DD65: 12000 | DE65: 0.9549862745 | DF65: 20.12386607 | DH65: 38000 | DI65: 0 | DJ65: 0 | DK65: 1657 | DL65: 2658382.21 | DM65: 0.9928100659 | DN65: 3114382.21 | DO65: 12000 | DP65: 0.9509111046 | DQ65: 19.36457378 | DS65: 38000 | DT65: 0 | DU65: 0 | DV65: 1655 | DW65: 2658269.779 | DX65: 0.9928014397 | DY65: 3114269.779 | DZ65: 12000 | EA65: 0.9512488347 | EB65: 19.34893666 | ED65: 38000 | EE65: 0 | EF65: 0 | EG65: 1646 | EH65: 2656723.202 | EI65: 0.9927623643 | EJ65: 3112723.202 | EK65: 12000 | EL65: 0.9508812861 | EM65: 19.24659555
A66: 59 | B66: 39000 | C66: 0 | D66: 0 | E66: 20175 | F66: 32000894.75 | G66: 0.9928153142 | H66: 37694894.75 | I66: 146000 | J66: 0.9575410153 | K66: 20.13188929 | M66: 39000 | N66: 0 | O66: 0 | P66: 1704 | Q66: 2700681.86 | R66: 0.993006993 | S66: 3168681.86 | T66: 12000 | U66: 0.9565823366 | V66: 20.2034534 | X66: 39000 | Y66: 0 | Z66: 0 | AA66: 1700 | AB66: 2666390.73 | AC66: 0.9929906542 | AD66: 3134390.73 | AE66: 12000 | AF66: 0.9569075074 | AG66: 20.38380213 | AI66: 39000 | AJ66: 0 | AK66: 0 | AL66: 1713 | AM66: 2752136.099 | AN66: 0.9930434783 | AO66: 3220136.099 | AP66: 12000 | AQ66: 0.9784302023 | AR66: 20.44133845 | AT66: 39000 | AU66: 0 | AV66: 0 | AW66: 1671 | AX66: 2596638.866 | AY66: 0.9916913947 | AZ66: 3142638.866 | BA66: 14000 | BB66: 0.9551632203 | BC66: 19.97319886 | BE66: 39000 | BF66: 0 | BG66: 0 | BH66: 1690 | BI66: 2662819.587 | BJ66: 0.9929494712 | BK66: 3130819.587 | BL66: 12000 | BM66: 0.9549435242 | BN66: 20.24621333 | BP66: 39000 | BQ66: 0 | BR66: 0 | BS66: 1664 | BT66: 2669233.88 | BU66: 0.9928400955 | BV66: 3137233.88 | BW66: 12000 | BX66: 0.9545152417 | BY66: 19.88724355 | CA66: 39000 | CB66: 0 | CC66: 0 | CD66: 1676 | CE66: 2670829.023 | CF66: 0.9928909953 | CG66: 3138829.023 | CH66: 12000 | CI66: 0.9551365726 | CJ66: 20.03248676 | CL66: 39000 | CM66: 0 | CN66: 0 | CO66: 1684 | CP66: 2650480.907 | CQ66: 0.9929245283 | CR66: 3118480.907 | CS66: 12000 | CT66: 0.9560490383 | CU66: 20.2781128 | CW66: 39000 | CX66: 0 | CY66: 0 | CZ66: 1715 | DA66: 2658308.605 | DB66: 0.9930515345 | DC66: 3126308.605 | DD66: 12000 | DE66: 0.9586660111 | DF66: 20.65344149 | DH66: 39000 | DI66: 0 | DJ66: 0 | DK66: 1657 | DL66: 2658382.21 | DM66: 0.9928100659 | DN66: 3126382.21 | DO66: 12000 | DP66: 0.9545750522 | DQ66: 19.87416783 | DS66: 39000 | DT66: 0 | DU66: 0 | DV66: 1655 | DW66: 2658269.779 | DX66: 0.9928014397 | DY66: 3126269.779 | DZ66: 12000 | EA66: 0.9549142159 | EB66: 19.8581192 | ED66: 39000 | EE66: 0 | EF66: 0 | EG66: 1646 | EH66: 2656723.202 | EI66: 0.9927623643 | EJ66: 3124723.202 | EK66: 12000 | EL66: 0.9545470715 | EM66: 19.75308491
A67: 60 | B67: 40000 | C67: 12 | D67: 465773.8226 | E67: 20187 | F67: 32466668.57 | G67: 0.9934058363 | H67: 37826668.57 | I67: 131773.8226 | J67: 0.9608883874 | K67: 20.64809158 | M67: 40000 | N67: 1 | O67: 39221.42421 | P67: 1705 | Q67: 2739903.284 | R67: 0.9935897436 | S67: 3179903.284 | T67: 11221.42421 | U67: 0.9599699333 | V67: 20.72149067 | X67: 40000 | Y67: 1 | Z67: 39050.26939 | AA67: 1701 | AB67: 2705441 | AC67: 0.9935747664 | AD67: 3145441 | AE67: 11050.26939 | AF67: 0.9602810771 | AG67: 20.90646372 | AI67: 40000 | AJ67: 1 | AK67: 34552.43848 | AL67: 1714 | AM67: 2786688.538 | AN67: 0.9936231884 | AO67: 3226688.538 | AP67: 6552.438481 | AQ67: 0.9804211441 | AR67: 20.96547533 | AT67: 40000 | AU67: 1 | AV67: 37744.38174 | AW67: 1672 | AX67: 2634383.247 | AY67: 0.9922848665 | AZ67: 3154383.247 | BA67: 11744.38174 | BB67: 0.9587327687 | BC67: 20.48533217 | BE67: 40000 | BF67: 1 | BG67: 39473.88282 | BH67: 1691 | BI67: 2702293.47 | BJ67: 0.9935370153 | BK67: 3142293.47 | BL67: 11473.88282 | BM67: 0.9584432181 | BN67: 20.765347 | BP67: 40000 | BQ67: 1 | BR67: 39587.78779 | BS67: 1665 | BT67: 2708821.668 | BU67: 0.9934367542 | BV67: 3148821.668 | BW67: 11587.78779 | BX67: 0.9580408699 | BY67: 20.39717287 | CA67: 40000 | CB67: 1 | CC67: 39455.51932 | CD67: 1677 | CE67: 2710284.543 | CF67: 0.9934834123 | CG67: 3150284.543 | CH67: 11455.51932 | CI67: 0.9586224539 | CJ67: 20.54614027 | CL67: 40000 | CM67: 1 | CN67: 39253.37409 | CO67: 1685 | CP67: 2689734.281 | CQ67: 0.9935141509 | CR67: 3129734.281 | CS67: 11253.37409 | CT67: 0.9594990442 | CU67: 20.79806441 | CW67: 40000 | CX67: 1 | CY67: 38703.33618 | CZ67: 1716 | DA67: 2697011.941 | DB67: 0.9936305732 | DC67: 3137011.941 | DD67: 10703.33618 | DE67: 0.9619481326 | DF67: 21.18301691 | DH67: 40000 | DI67: 1 | DJ67: 39600.90463 | DK67: 1658 | DL67: 2697983.114 | DM67: 0.9934092271 | DN67: 3137983.114 | DO67: 11600.90463 | DP67: 0.9581171444 | DQ67: 20.38376187 | DS67: 40000 | DT67: 1 | DU67: 39525.87486 | DV67: 1656 | DW67: 2697795.654 | DX67: 0.9934013197 | DY67: 3137795.654 | DZ67: 11525.87486 | EA67: 0.9584347764 | EB67: 20.36730174 | ED67: 40000 | EE67: 1 | EF67: 39604.62912 | EG67: 1647 | EH67: 2696327.831 | EI67: 0.9933655006 | EJ67: 3136327.831 | EK67: 11604.62912 | EL67: 0.9580920782 | EM67: 20.25957427
A68: 61 | B68: 41000 | C68: 24 | D68: 947201.2398 | E68: 20211 | F68: 33413869.81 | G68: 0.9945868806 | H68: 37923869.81 | I68: 97201.23981 | J68: 0.9633575328 | K68: 21.16429387 | M68: 41000 | N68: 2 | O68: 79760.99093 | P68: 1707 | Q68: 2819664.275 | R68: 0.9947552448 | S68: 3188664.275 | T68: 8760.99093 | U68: 0.9626147583 | V68: 21.23952793 | X68: 41000 | Y68: 2 | Z68: 79412.92916 | AA68: 1703 | AB68: 2784853.929 | AC68: 0.9947429907 | AD68: 3153853.929 | AE68: 8412.929163 | AF68: 0.9628494854 | AG68: 21.42912532 | AI68: 41000 | AJ68: 2 | AK68: 70266.10552 | AL68: 1716 | AM68: 2856954.643 | AN68: 0.9947826087 | AO68: 3225954.643 | AP68: -733.894485 | AQ68: 0.9801981521 | AR68: 21.48961221 | AT68: 41000 | AU68: 2 | AV68: 76757.26595 | AW68: 1674 | AX68: 2711140.513 | AY68: 0.9934718101 | AZ68: 3162140.513 | BA68: 7757.265949 | BB68: 0.9610904863 | BC68: 20.99746547 | BE68: 41000 | BF68: 2 | BG68: 80274.3927 | BH68: 1693 | BI68: 2782567.862 | BJ68: 0.9947121034 | BK68: 3151567.862 | BL68: 9274.392697 | BM68: 0.9612720368 | BN68: 21.28448068 | BP68: 41000 | BQ68: 2 | BR68: 80506.03072 | BS68: 1667 | BT68: 2789327.699 | BU68: 0.9946300716 | BV68: 3158327.699 | BW68: 9506.030721 | BX68: 0.9609331156 | BY68: 20.9071022 | CA68: 41000 | CB68: 2 | CC68: 80237.04855 | CD68: 1679 | CE68: 2790521.591 | CF68: 0.9946682464 | CG68: 3159521.591 | CH68: 9237.048549 | CI68: 0.961433261 | CJ68: 21.05979377 | CL68: 41000 | CM68: 2 | CN68: 79825.96445 | CO68: 1687 | CP68: 2769560.246 | CQ68: 0.9946933962 | CR68: 3138560.246 | CS68: 8825.964451 | CT68: 0.9622048664 | CU68: 21.31801602 | CW68: 41000 | CX68: 2 | CY68: 78707.40311 | CZ68: 1718 | DA68: 2775719.344 | DB68: 0.9947886508 | DC68: 3144719.344 | DD68: 7707.403109 | DE68: 0.964311567 | DF68: 21.71259233 | DH68: 41000 | DI68: 2 | DJ68: 80532.70522 | DK68: 1660 | DL68: 2778515.819 | DM68: 0.9946075494 | DN68: 3147515.819 | DO68: 9532.705224 | DP68: 0.9610277555 | DQ68: 20.89335592 | DS68: 41000 | DT68: 2 | DU68: 80380.12412 | DV68: 1658 | DW68: 2778175.778 | DX68: 0.9946010798 | DY68: 3147175.778 | DZ68: 9380.124116 | EA68: 0.9612999206 | EB68: 20.87648429 | ED68: 41000 | EE68: 2 | EF68: 80540.27939 | EG68: 1649 | EH68: 2776868.111 | EI68: 0.9945717732 | EJ68: 3145868.111 | EK68: 9540.279388 | EL68: 0.961006463 | EM68: 20.76606362
A69: 62 | B69: 42000 | C69: 12 | D69: 485696.5793 | E69: 20223 | F69: 33899566.39 | G69: 0.9951774027 | H69: 38015566.39 | I69: 91696.57932 | J69: 0.9656868465 | K69: 21.68049616 | M69: 42000 | N69: 1 | O69: 40899.06013 | P69: 1708 | Q69: 2860563.335 | R69: 0.9953379953 | S69: 3196563.335 | T69: 7899.060125 | U69: 0.9649993781 | V69: 21.7575652 | X69: 42000 | Y69: 1 | Z69: 40720.58442 | AA69: 1704 | AB69: 2825574.513 | AC69: 0.9953271028 | AD69: 3161574.513 | AE69: 7720.58442 | AF69: 0.9652065257 | AG69: 21.95178691 | AI69: 42000 | AJ69: 1 | AK69: 36030.36573 | AL69: 1717 | AM69: 2892985.009 | AN69: 0.9953623188 | AO69: 3228985.009 | AP69: 3030.36573 | AQ69: 0.9811189211 | AR69: 22.0137491 | AT69: 42000 | AU69: 1 | AV69: 39358.83943 | AW69: 1675 | AX69: 2750499.353 | AY69: 0.9940652819 | AZ69: 3170499.353 | BA69: 8358.839434 | BB69: 0.9636310442 | BC69: 21.50959878 | BE69: 42000 | BF69: 1 | BG69: 41162.31726 | BH69: 1694 | BI69: 2823730.18 | BJ69: 0.9952996475 | BK69: 3159730.18 | BL69: 8162.317258 | BM69: 0.9637616571 | BN69: 21.80361435 | BP69: 42000 | BQ69: 1 | BR69: 41281.09434 | BS69: 1668 | BT69: 2830608.793 | BU69: 0.9952267303 | BV69: 3166608.793 | BW69: 8281.094336 | BX69: 0.9634526698 | BY69: 21.41703152 | CA69: 42000 | CB69: 1 | CC69: 41143.16829 | CD69: 1680 | CE69: 2831664.76 | CF69: 0.9952606635 | CG69: 3167664.76 | CH69: 8143.168291 | CI69: 0.9639112035 | CJ69: 21.57344728 | CL69: 42000 | CM69: 1 | CN69: 40932.37661 | CO69: 1688 | CP69: 2810492.622 | CQ69: 0.9952830189 | CR69: 3146492.622 | CS69: 7932.376611 | CT69: 0.9646367367 | CU69: 21.83796763 | CW69: 42000 | CX69: 1 | CY69: 40358.81168 | CZ69: 1719 | DA69: 2816078.156 | DB69: 0.9953676896 | DC69: 3152078.156 | DD69: 7358.811677 | DE69: 0.9665681077 | DF69: 22.24216776 | DH69: 42000 | DI69: 1 | DJ69: 41294.77223 | DK69: 1661 | DL69: 2819810.592 | DM69: 0.9952067106 | DN69: 3155810.592 | DO69: 8294.772227 | DP69: 0.9635603897 | DQ69: 21.40294997 | DS69: 42000 | DT69: 1 | DU69: 41216.53318 | DV69: 1659 | DW69: 2819392.311 | DX69: 0.9952009598 | DY69: 3155392.311 | DZ69: 8216.53318 | EA69: 0.9638096479 | EB69: 21.38566683 | ED69: 42000 | EE69: 1 | EF69: 41298.65603 | EG69: 1650 | EH69: 2818166.767 | EI69: 0.9951749095 | EJ69: 3154166.767 | EK69: 8298.656032 | EL69: 0.9635415541 | EM69: 21.27255298
A70: 63 | B70: 43000 | C70: 0 | D70: 0 | E70: 20223 | F70: 33899566.39 | G70: 0.9951774027 | H70: 38113566.39 | I70: 98000 | J70: 0.9681762823 | K70: 22.19669845 | M70: 43000 | N70: 0 | O70: 0 | P70: 1708 | Q70: 2860563.335 | R70: 0.9953379953 | S70: 3204563.335 | T70: 8000 | U70: 0.9674144702 | V70: 22.27560247 | X70: 43000 | Y70: 0 | Z70: 0 | AA70: 1704 | AB70: 2825574.513 | AC70: 0.9953271028 | AD70: 3169574.513 | AE70: 8000 | AF70: 0.9676488696 | AG70: 22.4744485 | AI70: 43000 | AJ70: 0 | AK70: 0 | AL70: 1717 | AM70: 2892985.009 | AN70: 0.9953623188 | AO70: 3236985.009 | AP70: 8000 | AQ70: 0.9835497008 | AR70: 22.53788598 | AT70: 43000 | AU70: 0 | AV70: 0 | AW70: 1675 | AX70: 2750499.353 | AY70: 0.9940652819 | AZ70: 3180499.353 | BA70: 10000 | BB70: 0.966670411 | BC70: 22.02173208 | BE70: 43000 | BF70: 0 | BG70: 0 | BH70: 1694 | BI70: 2823730.18 | BJ70: 0.9952996475 | BK70: 3167730.18 | BL70: 8000 | BM70: 0.9662017684 | BN70: 22.32274803 | BP70: 43000 | BQ70: 0 | BR70: 0 | BS70: 1668 | BT70: 2830608.793 | BU70: 0.9952267303 | BV70: 3174608.793 | BW70: 8000 | BX70: 0.9658866999 | BY70: 21.92696084 | CA70: 43000 | CB70: 0 | CC70: 0 | CD70: 1680 | CE70: 2831664.76 | CF70: 0.9952606635 | CG70: 3175664.76 | CH70: 8000 | CI70: 0.9663455803 | CJ70: 22.08710079 | CL70: 43000 | CM70: 0 | CN70: 0 | CO70: 1688 | CP70: 2810492.622 | CQ70: 0.9952830189 | CR70: 3154492.622 | CS70: 8000 | CT70: 0.9670893386 | CU70: 22.35791924 | CW70: 43000 | CX70: 0 | CY70: 0 | CZ70: 1719 | DA70: 2816078.156 | DB70: 0.9953676896 | DC70: 3160078.156 | DD70: 8000 | DE70: 0.9690212654 | DF70: 22.77174318 | DH70: 43000 | DI70: 0 | DJ70: 0 | DK70: 1661 | DL70: 2819810.592 | DM70: 0.9952067106 | DN70: 3163810.592 | DO70: 8000 | DP70: 0.9660030214 | DQ70: 21.91254401 | DS70: 43000 | DT70: 0 | DU70: 0 | DV70: 1659 | DW70: 2819392.311 | DX70: 0.9952009598 | DY70: 3163392.311 | DZ70: 8000 | EA70: 0.9662532353 | EB70: 21.89484938 | ED70: 43000 | EE70: 0 | EF70: 0 | EG70: 1650 | EH70: 2818166.767 | EI70: 0.9951749095 | EJ70: 3162166.767 | EK70: 8000 | EL70: 0.965985411 | EM70: 21.77904234
A71: 64 | B71: 44000 | C71: 12 | D71: 511899.5911 | E71: 20235 | F71: 34411465.98 | G71: 0.9957679248 | H71: 38195465.98 | I71: 81899.59106 | J71: 0.9702567289 | K71: 22.71290074 | M71: 44000 | N71: 1 | O71: 43105.53758 | P71: 1709 | Q71: 2903668.872 | R71: 0.9959207459 | S71: 3211668.872 | T71: 7105.537581 | U71: 0.9695595362 | V71: 22.79363973 | X71: 44000 | Y71: 1 | Z71: 42917.43323 | AA71: 1705 | AB71: 2868491.947 | AC71: 0.995911215 | AD71: 3176491.947 | AE71: 6917.433228 | AF71: 0.9697607134 | AG71: 22.9971101 | AI71: 44000 | AJ71: 1 | AK71: 37974.18032 | AL71: 1718 | AM71: 2930959.19 | AN71: 0.995942029 | AO71: 3238959.19 | AP71: 1974.180318 | AQ71: 0.9841495505 | AR71: 23.06202286 | AT71: 44000 | AU71: 1 | AV71: 41482.22299 | AW71: 1676 | AX71: 2791981.576 | AY71: 0.9946587537 | AZ71: 3187981.576 | BA71: 7482.222994 | BB71: 0.968944533 | BC71: 22.53386538 | BE71: 44000 | BF71: 1 | BG71: 43382.99726 | BH71: 1695 | BI71: 2867113.177 | BJ71: 0.9958871915 | BK71: 3175113.177 | BL71: 7382.997263 | BM71: 0.9684536853 | BN71: 22.8418817 | BP71: 44000 | BQ71: 1 | BR71: 43508.18229 | BS71: 1669 | BT71: 2874116.976 | BU71: 0.995823389 | BV71: 3182116.976 | BW71: 7508.182287 | BX71: 0.9681710927 | BY71: 22.43689016 | CA71: 44000 | CB71: 1 | CC71: 43362.81522 | CD71: 1681 | CE71: 2875027.575 | CF71: 0.9958530806 | CG71: 3183027.575 | CH71: 7362.815222 | CI71: 0.9685860637 | CJ71: 22.60075429 | CL71: 44000 | CM71: 1 | CN71: 43140.65147 | CO71: 1689 | CP71: 2853633.274 | CQ71: 0.9958726415 | CR71: 3161633.274 | CS71: 7140.65147 | CT71: 0.9692784856 | CU71: 22.87787085 | CW71: 44000 | CX71: 1 | CY71: 42536.14308 | CZ71: 1720 | DA71: 2858614.299 | DB71: 0.9959467284 | DC71: 3166614.299 | DD71: 6536.143083 | DE71: 0.9710255391 | DF71: 23.3013186 | DH71: 44000 | DI71: 1 | DJ71: 43522.59809 | DK71: 1662 | DL71: 2863333.19 | DM71: 0.9958058718 | DN71: 3171333.19 | DO71: 7522.59809 | DP71: 0.9682998886 | DQ71: 22.42213806 | DS71: 44000 | DT71: 1 | DU71: 43440.1381 | DV71: 1660 | DW71: 2862832.449 | DX71: 0.9958008398 | DY71: 3170832.449 | DZ71: 7440.138098 | EA71: 0.9685258139 | EB71: 22.40403192 | ED71: 44000 | EE71: 1 | EF71: 43526.69142 | EG71: 1651 | EH71: 2861693.458 | EI71: 0.9957780458 | EJ71: 3169693.458 | EK71: 7526.691425 | EL71: 0.9682846807 | EM71: 22.28553169
A72: 65 | B72: 45000 | C72: 0 | D72: 0 | E72: 20235 | F72: 34411465.98 | G72: 0.9957679248 | H72: =F72+($C$109-E72)*B72 -> 38281465.98 | I72: 86000 | J72: 0.9724413358 | K72: 23.22910303 | M72: 45000 | N72: 0 | O72: 0 | P72: 1709 | Q72: 2903668.872 | R72: 0.9959207459 | S72: 3218668.872 | T72: 7000 | U72: 0.9716727419 | V72: 23.311677 | X72: 45000 | Y72: 0 | Z72: 0 | AA72: 1705 | AB72: 2868491.947 | AC72: 0.995911215 | AD72: 3183491.947 | AE72: 7000 | AF72: 0.9718977643 | AG72: 23.51977169 | AI72: 45000 | AJ72: 0 | AK72: 0 | AL72: 1718 | AM72: 2930959.19 | AN72: 0.995942029 | AO72: 3245959.19 | AP72: 7000 | AQ72: 0.9862764828 | AR72: 23.58615975 | AT72: 45000 | AU72: 0 | AV72: 0 | AW72: 1676 | AX72: 2791981.576 | AY72: 0.9946587537 | AZ72: 3196981.576 | BA72: 9000 | BB72: 0.9716799631 | BC72: 23.04599869 | BE72: 45000 | BF72: 0 | BG72: 0 | BH72: 1695 | BI72: 2867113.177 | BJ72: 0.9958871915 | BK72: 3182113.177 | BL72: 7000 | BM72: 0.9705887827 | BN72: 23.36101538 | BP72: 45000 | BQ72: 0 | BR72: 0 | BS72: 1669 | BT72: 2874116.976 | BU72: 0.995823389 | BV72: 3189116.976 | BW72: 7000 | BX72: 0.9703008691 | BY72: 22.94681948 | CA72: 45000 | CB72: 0 | CC72: 0 | CD72: 1681 | CE72: 2875027.575 | CF72: 0.9958530806 | CG72: 3190027.575 | CH72: 7000 | CI72: 0.9707161434 | CJ72: 23.1144078 | CL72: 45000 | CM72: 0 | CN72: 0 | CO72: 1689 | CP72: 2853633.274 | CQ72: 0.9958726415 | CR72: 3168633.274 | CS72: 7000 | CT72: 0.9714245123 | CU72: 23.39782246 | CW72: 45000 | CX72: 0 | CY72: 0 | CZ72: 1720 | DA72: 2858614.299 | DB72: 0.9959467284 | DC72: 3173614.299 | DD72: 7000 | DE72: 0.9731720521 | DF72: 23.83089403 | DH72: 45000 | DI72: 0 | DJ72: 0 | DK72: 1662 | DL72: 2863333.19 | DM72: 0.9958058718 | DN72: 3178333.19 | DO72: 7000 | DP72: 0.9704371913 | DQ72: 22.93173211 | DS72: 45000 | DT72: 0 | DU72: 0 | DV72: 1660 | DW72: 2862832.449 | DX72: 0.9958008398 | DY72: 3177832.449 | DZ72: 7000 | EA72: 0.9706639529 | EB72: 22.91321446 | ED72: 45000 | EE72: 0 | EF72: 0 | EG72: 1651 | EH72: 2861693.458 | EI72: 0.9957780458 | EJ72: 3176693.458 | EK72: 7000 | EL72: 0.9704230555 | EM72: 22.79202105
A73: 66 | B73: =+M73 -> 46000 | C73: =+N73+Y73+AJ73+AU73+BF73+BQ73+CB73+CM73+CX73+DI73+DT73+EE73 -> 0 | D73: 0 | E73: =E72+C73 -> 20235 | F73: 34411465.98 | G73: =E73/$C$109 -> 0.9957679248 | H73: 38367465.98 | I73: =H73-H72 -> 86000 | J73: 0.9746259427 | K73: =IF($K$109=0,0,IF(B73<0,0,B73/$K$109)) -> 23.74530532 | M73: 46000 | N73: 0 | O73: 0 | P73: =P72+N73 -> 1709 | Q73: =Q72+O73 -> 2903668.872 | R73: =P73/N$109 -> 0.9959207459 | S73: =Q73+(N$109-P73)*M73 -> 3225668.872 | T73: =S73-S72 -> 7000 | U73: =IF(S73=0,0,IF(S73<0,0,S73/T$109)) -> 0.9737859475 | V73: =IF($K$109=0,0,IF(M73<0,0,M73/V$109)) -> 23.82971427 | X73: 46000 | Y73: 0 | Z73: 0 | AA73: =AA72+Y73 -> 1705 | AB73: =AB72+Z73 -> 2868491.947 | AC73: =AA73/Y$109 -> 0.995911215 | AD73: =AB73+(Y$109-AA73)*X73 -> 3190491.947 | AE73: =AD73-AD72 -> 7000 | AF73: =IF(AD73=0,0,IF(AD73<0,0,AD73/AE$109)) -> 0.9740348152 | AG73: =IF($K$109=0,0,IF(X73<0,0,X73/AG$109)) -> 24.04243328 | AI73: 46000 | AJ73: 0 | AK73: 0 | AL73: =AL72+AJ73 -> 1718 | AM73: =AM72+AK73 -> 2930959.19 | AN73: =AL73/AJ$109 -> 0.995942029 | AO73: =AM73+(AJ$109-AL73)*AI73 -> 3252959.19 | AP73: =AO73-AO72 -> 7000 | AQ73: =IF(AO73=0,0,IF(AO73<0,0,AO73/AP$109)) -> 0.9884034151 | AR73: =IF($K$109=0,0,IF(AI73<0,0,AI73/AR$109)) -> 24.11029663 | AT73: 46000 | AU73: 0 | AV73: 0 | AW73: =AW72+AU73 -> 1676 | AX73: =AX72+AV73 -> 2791981.576 | AY73: =AW73/AU$109 -> 0.9946587537 | AZ73: =AX73+(AU$109-AW73)*AT73 -> 3205981.576 | BA73: =AZ73-AZ72 -> 9000 | BB73: =IF(AZ73=0,0,IF(AZ73<0,0,AZ73/BA$109)) -> 0.9744153932 | BC73: =IF($K$109=0,0,IF(AT73<0,0,AT73/BC$109)) -> 23.55813199 | BE73: 46000 | BF73: 0 | BG73: 0 | BH73: =BH72+BF73 -> 1695 | BI73: =BI72+BG73 -> 2867113.177 | BJ73: =BH73/BF$109 -> 0.9958871915 | BK73: =BI73+(BF$109-BH73)*BE73 -> 3189113.177 | BL73: =BK73-BK72 -> 7000 | BM73: =IF(BK73=0,0,IF(BK73<0,0,BK73/BL$109)) -> 0.97272388 | BN73: =IF($K$109=0,0,IF(BE73<0,0,BE73/BN$109)) -> 23.88014905 | BP73: 46000 | BQ73: 0 | BR73: 0 | BS73: =BS72+BQ73 -> 1669 | BT73: =BT72+BR73 -> 2874116.976 | BU73: =BS73/BQ$109 -> 0.995823389 | BV73: =BT73+(BQ$109-BS73)*BP73 -> 3196116.976 | BW73: =BV73-BV72 -> 7000 | BX73: =IF(BV73=0,0,IF(BV73<0,0,BV73/BW$109)) -> 0.9724306455 | BY73: =IF($K$109=0,0,IF(BP73<0,0,BP73/BY$109)) -> 23.45674881 | CA73: 46000 | CB73: 0 | CC73: 0 | CD73: =CD72+CB73 -> 1681 | CE73: =CE72+CC73 -> 2875027.575 | CF73: =CD73/CB$109 -> 0.9958530806 | CG73: =CE73+(CB$109-CD73)*CA73 -> 3197027.575 | CH73: =CG73-CG72 -> 7000 | CI73: =IF(CG73=0,0,IF(CG73<0,0,CG73/CH$109)) -> 0.9728462231 | CJ73: =IF($K$109=0,0,IF(CA73<0,0,CA73/CJ$109)) -> 23.6280613 | CL73: 46000 | CM73: 0 | CN73: 0 | CO73: =CO72+CM73 -> 1689 | CP73: =CP72+CN73 -> 2853633.274 | CQ73: =CO73/CM$109 -> 0.9958726415 | CR73: =CP73+(CM$109-CO73)*CL73 -> 3175633.274 | CS73: =CR73-CR72 -> 7000 | CT73: =IF(CR73=0,0,IF(CR73<0,0,CR73/CS$109)) -> 0.973570539 | CU73: =IF($K$109=0,0,IF(CL73<0,0,CL73/CU$109)) -> 23.91777407 | CW73: 46000 | CX73: 0 | CY73: 0 | CZ73: =CZ72+CX73 -> 1720 | DA73: =DA72+CY73 -> 2858614.299 | DB73: =CZ73/CX$109 -> 0.9959467284 | DC73: =DA73+(CX$109-CZ73)*CW73 -> 3180614.299 | DD73: =DC73-DC72 -> 7000 | DE73: =IF(DC73=0,0,IF(DC73<0,0,DC73/DD$109)) -> 0.9753185652 | DF73: =IF($K$109=0,0,IF(CW73<0,0,CW73/DF$109)) -> 24.36046945 | DH73: 46000 | DI73: 0 | DJ73: 0 | DK73: =DK72+DI73 -> 1662 | DL73: =DL72+DJ73 -> 2863333.19 | DM73: =DK73/DI$109 -> 0.9958058718 | DN73: =DL73+(DI$109-DK73)*DH73 -> 3185333.19 | DO73: =DN73-DN72 -> 7000 | DP73: =IF(DN73=0,0,IF(DN73<0,0,DN73/DO$109)) -> 0.9725744941 | DQ73: =IF($K$109=0,0,IF(DH73<0,0,DH73/DQ$109)) -> 23.44132615 | DS73: 46000 | DT73: 0 | DU73: 0 | DV73: =DV72+DT73 -> 1660 | DW73: =DW72+DU73 -> 2862832.449 | DX73: =DV73/DT$109 -> 0.9958008398 | DY73: =DW73+(DT$109-DV73)*DS73 -> 3184832.449 | DZ73: =DY73-DY72 -> 7000 | EA73: =IF(DY73=0,0,IF(DY73<0,0,DY73/DZ$109)) -> 0.972802092 | EB73: =IF($K$109=0,0,IF(DS73<0,0,DS73/EB$109)) -> 23.42239701 | ED73: 46000 | EE73: 0 | EF73: 0 | EG73: =EG72+EE73 -> 1651 | EH73: =EH72+EF73 -> 2861693.458 | EI73: =EG73/EE$109 -> 0.9957780458 | EJ73: =EH73+(EE$109-EG73)*ED73 -> 3183693.458 | EK73: =EJ73-EJ72 -> 7000 | EL73: =IF(EJ73=0,0,IF(EJ73<0,0,EJ73/EK$109)) -> 0.9725614304 | EM73: =IF($K$109=0,0,IF(ED73<0,0,ED73/EM$109)) -> 23.29851041
A74: 67 | B74: 47000 | C74: 0 | D74: 0 | E74: 20235 | F74: 34411465.98 | G74: 0.9957679248 | H74: 38453465.98 | I74: 86000 | J74: =IF(H74=0,0,IF(H74<0,0,H74/$I$109)) -> 0.9768105497 | K74: 24.26150761 | M74: 47000 | N74: 0 | O74: 0 | P74: 1709 | Q74: 2903668.872 | R74: 0.9959207459 | S74: 3232668.872 | T74: 7000 | U74: 0.9758991531 | V74: 24.34775153 | X74: 47000 | Y74: 0 | Z74: 0 | AA74: 1705 | AB74: 2868491.947 | AC74: 0.995911215 | AD74: 3197491.947 | AE74: 7000 | AF74: 0.9761718661 | AG74: 24.56509488 | AI74: 47000 | AJ74: 0 | AK74: 0 | AL74: 1718 | AM74: 2930959.19 | AN74: 0.995942029 | AO74: 3259959.19 | AP74: 7000 | AQ74: 0.9905303474 | AR74: 24.63443351 | AT74: 47000 | AU74: 0 | AV74: 0 | AW74: 1676 | AX74: 2791981.576 | AY74: 0.9946587537 | AZ74: 3214981.576 | BA74: 9000 | BB74: 0.9771508233 | BC74: 24.0702653 | BE74: 47000 | BF74: 0 | BG74: 0 | BH74: 1695 | BI74: 2867113.177 | BJ74: 0.9958871915 | BK74: 3196113.177 | BL74: 7000 | BM74: 0.9748589774 | BN74: 24.39928273 | BP74: 47000 | BQ74: 0 | BR74: 0 | BS74: 1669 | BT74: 2874116.976 | BU74: 0.995823389 | BV74: 3203116.976 | BW74: 7000 | BX74: 0.9745604219 | BY74: 23.96667813 | CA74: 47000 | CB74: 0 | CC74: 0 | CD74: 1681 | CE74: 2875027.575 | CF74: 0.9958530806 | CG74: 3204027.575 | CH74: 7000 | CI74: 0.9749763028 | CJ74: 24.14171481 | CL74: 47000 | CM74: 0 | CN74: 0 | CO74: 1689 | CP74: 2853633.274 | CQ74: 0.9958726415 | CR74: 3182633.274 | CS74: 7000 | CT74: 0.9757165656 | CU74: 24.43772568 | CW74: 47000 | CX74: 0 | CY74: 0 | CZ74: 1720 | DA74: 2858614.299 | DB74: 0.9959467284 | DC74: 3187614.299 | DD74: 7000 | DE74: 0.9774650782 | DF74: 24.89004487 | DH74: 47000 | DI74: 0 | DJ74: 0 | DK74: 1662 | DL74: 2863333.19 | DM74: 0.9958058718 | DN74: 3192333.19 | DO74: 7000 | DP74: 0.9747117969 | DQ74: 23.9509202 | DS74: 47000 | DT74: 0 | DU74: 0 | DV74: 1660 | DW74: 2862832.449 | DX74: 0.9958008398 | DY74: 3191832.449 | DZ74: 7000 | EA74: 0.9749402311 | EB74: 23.93157955 | ED74: 47000 | EE74: 0 | EF74: 0 | EG74: 1651 | EH74: 2861693.458 | EI74: 0.9957780458 | EJ74: 3190693.458 | EK74: 7000 | EL74: 0.9746998052 | EM74: 23.80499976
A75: 68 | B75: 48000 | C75: 0 | D75: 0 | E75: 20235 | F75: 34411465.98 | G75: 0.9957679248 | H75: 38539465.98 | I75: 86000 | J75: 0.9789951566 | K75: 24.7777099 | M75: 48000 | N75: 0 | O75: 0 | P75: 1709 | Q75: 2903668.872 | R75: 0.9959207459 | S75: 3239668.872 | T75: 7000 | U75: 0.9780123588 | V75: 24.8657888 | X75: 48000 | Y75: 0 | Z75: 0 | AA75: 1705 | AB75: 2868491.947 | AC75: 0.995911215 | AD75: 3204491.947 | AE75: 7000 | AF75: 0.978308917 | AG75: 25.08775647 | AI75: 48000 | AJ75: 0 | AK75: 0 | AL75: 1718 | AM75: 2930959.19 | AN75: 0.995942029 | AO75: 3266959.19 | AP75: 7000 | AQ75: 0.9926572797 | AR75: 25.1585704 | AT75: 48000 | AU75: 0 | AV75: 0 | AW75: 1676 | AX75: 2791981.576 | AY75: 0.9946587537 | AZ75: 3223981.576 | BA75: 9000 | BB75: 0.9798862534 | BC75: 24.5823986 | BE75: 48000 | BF75: 0 | BG75: 0 | BH75: 1695 | BI75: 2867113.177 | BJ75: 0.9958871915 | BK75: 3203113.177 | BL75: 7000 | BM75: 0.9769940748 | BN75: 24.9184164 | BP75: 48000 | BQ75: 0 | BR75: 0 | BS75: 1669 | BT75: 2874116.976 | BU75: 0.995823389 | BV75: 3210116.976 | BW75: 7000 | BX75: 0.9766901983 | BY75: 24.47660745 | CA75: 48000 | CB75: 0 | CC75: 0 | CD75: 1681 | CE75: 2875027.575 | CF75: 0.9958530806 | CG75: 3211027.575 | CH75: 7000 | CI75: 0.9771063825 | CJ75: 24.65536832 | CL75: 48000 | CM75: 0 | CN75: 0 | CO75: 1689 | CP75: 2853633.274 | CQ75: 0.9958726415 | CR75: 3189633.274 | CS75: 7000 | CT75: 0.9778625923 | CU75: 24.95767729 | CW75: 48000 | CX75: 0 | CY75: 0 | CZ75: 1720 | DA75: 2858614.299 | DB75: 0.9959467284 | DC75: 3194614.299 | DD75: 7000 | DE75: 0.9796115912 | DF75: 25.41962029 | DH75: 48000 | DI75: 0 | DJ75: 0 | DK75: 1662 | DL75: 2863333.19 | DM75: 0.9958058718 | DN75: 3199333.19 | DO75: 7000 | DP75: 0.9768490996 | DQ75: 24.46051425 | DS75: 48000 | DT75: 0 | DU75: 0 | DV75: 1660 | DW75: 2862832.449 | DX75: 0.9958008398 | DY75: 3198832.449 | DZ75: 7000 | EA75: 0.9770783701 | EB75: 24.44076209 | ED75: 48000 | EE75: 0 | EF75: 0 | EG75: 1651 | EH75: 2861693.458 | EI75: 0.9957780458 | EJ75: 3197693.458 | EK75: 7000 | EL75: 0.9768381801 | EM75: 24.31148912
A76: 69 | B76: 49000 | C76: 0 | D76: 0 | E76: 20235 | F76: 34411465.98 | G76: 0.9957679248 | H76: 38625465.98 | I76: 86000 | J76: 0.9811797635 | K76: 25.29391219 | M76: 49000 | N76: 0 | O76: 0 | P76: 1709 | Q76: 2903668.872 | R76: 0.9959207459 | S76: 3246668.872 | T76: 7000 | U76: 0.9801255644 | V76: 25.38382607 | X76: 49000 | Y76: 0 | Z76: 0 | AA76: 1705 | AB76: 2868491.947 | AC76: 0.995911215 | AD76: 3211491.947 | AE76: 7000 | AF76: 0.9804459679 | AG76: 25.61041806 | AI76: 49000 | AJ76: 0 | AK76: 0 | AL76: 1718 | AM76: 2930959.19 | AN76: 0.995942029 | AO76: 3273959.19 | AP76: 7000 | AQ76: 0.9947842119 | AR76: 25.68270728 | AT76: 49000 | AU76: 0 | AV76: 0 | AW76: 1676 | AX76: 2791981.576 | AY76: 0.9946587537 | AZ76: 3232981.576 | BA76: 9000 | BB76: 0.9826216836 | BC76: 25.09453191 | BE76: 49000 | BF76: 0 | BG76: 0 | BH76: 1695 | BI76: 2867113.177 | BJ76: 0.9958871915 | BK76: 3210113.177 | BL76: 7000 | BM76: 0.9791291721 | BN76: 25.43755008 | BP76: 49000 | BQ76: 0 | BR76: 0 | BS76: 1669 | BT76: 2874116.976 | BU76: 0.995823389 | BV76: 3217116.976 | BW76: 7000 | BX76: 0.9788199747 | BY76: 24.98653677 | CA76: 49000 | CB76: 0 | CC76: 0 | CD76: 1681 | CE76: 2875027.575 | CF76: 0.9958530806 | CG76: 3218027.575 | CH76: 7000 | CI76: 0.9792364622 | CJ76: 25.16902182 | CL76: 49000 | CM76: 0 | CN76: 0 | CO76: 1689 | CP76: 2853633.274 | CQ76: 0.9958726415 | CR76: 3196633.274 | CS76: 7000 | CT76: 0.980008619 | CU76: 25.4776289 | CW76: 49000 | CX76: 0 | CY76: 0 | CZ76: 1720 | DA76: 2858614.299 | DB76: 0.9959467284 | DC76: 3201614.299 | DD76: 7000 | DE76: 0.9817581042 | DF76: 25.94919572 | DH76: 49000 | DI76: 0 | DJ76: 0 | DK76: 1662 | DL76: 2863333.19 | DM76: 0.9958058718 | DN76: 3206333.19 | DO76: 7000 | DP76: 0.9789864024 | DQ76: 24.97010829 | DS76: 49000 | DT76: 0 | DU76: 0 | DV76: 1660 | DW76: 2862832.449 | DX76: 0.9958008398 | DY76: 3205832.449 | DZ76: 7000 | EA76: 0.9792165092 | EB76: 24.94994464 | ED76: 49000 | EE76: 0 | EF76: 0 | EG76: 1651 | EH76: 2861693.458 | EI76: 0.9957780458 | EJ76: 3204693.458 | EK76: 7000 | EL76: 0.9789765549 | EM76: 24.81797848
A77: 70 | B77: 50000 | C77: 12 | D77: 583452.1599 | E77: 20247 | F77: 34994918.14 | G77: 0.9963584469 | H77: 38694918.14 | I77: 69452.15991 | J77: 0.9829440154 | K77: 25.81011448 | M77: 50000 | N77: 1 | O77: 49130.76596 | P77: 1710 | Q77: 2952799.638 | R77: 0.9965034965 | S77: 3252799.638 | T77: 6130.765965 | U77: 0.98197636 | V77: 25.90186333 | X77: 50000 | Y77: 1 | Z77: 48916.36866 | AA77: 1706 | AB77: 2917408.315 | AC77: 0.9964953271 | AD77: 3217408.315 | AE77: 5916.368663 | AF77: 0.9822521938 | AG77: 26.13307966 | AI77: 50000 | AJ77: 1 | AK77: 43282.15516 | AL77: 1719 | AM77: 2974241.345 | AN77: 0.9965217391 | AO77: 3274241.345 | AP77: 282.1551621 | AQ77: 0.9948699441 | AR77: 26.20684416 | AT77: 50000 | AU77: 1 | AV77: 47280.54686 | AW77: 1677 | AX77: 2839262.123 | AY77: 0.9952522255 | AZ77: 3239262.123 | BA77: 6280.546862 | BB77: 0.9845305721 | BC77: 25.60666521 | BE77: 50000 | BF77: 1 | BG77: 49447.00855 | BH77: 1696 | BI77: 2916560.185 | BJ77: 0.9964747356 | BK77: 3216560.185 | BL77: 6447.008551 | BM77: 0.9810955994 | BN77: 25.95668375 | BP77: 50000 | BQ77: 1 | BR77: 49589.69175 | BS77: 1670 | BT77: 2923706.667 | BU77: 0.9964200477 | BV77: 3223706.667 | BW77: 6589.691753 | BX77: 0.9808249133 | BY77: 25.49646609 | CA77: 50000 | CB77: 1 | CC77: 49424.00549 | CD77: 1682 | CE77: 2924451.58 | CF77: 0.9964454976 | CG77: 3224451.58 | CH77: 6424.005494 | CI77: 0.9811912685 | CJ77: 25.68267533 | CL77: 50000 | CM77: 1 | CN77: 49170.78802 | CO77: 1690 | CP77: 2902804.062 | CQ77: 0.9964622642 | CR77: 3202804.062 | CS77: 6170.788021 | CT77: 0.9819004299 | CU77: 25.99758051 | CW77: 50000 | CX77: 1 | CY77: 48481.78234 | CZ77: 1721 | DA77: 2907096.081 | DB77: 0.9965257672 | DC77: 3207096.081 | DD77: 5481.782345 | DE77: 0.9834390638 | DF77: 26.47877114 | DH77: 50000 | DI77: 1 | DJ77: 49606.12258 | DK77: 1663 | DL77: 2912939.312 | DM77: 0.996405033 | DN77: 3212939.312 | DO77: 6606.122576 | DP77: 0.981003443 | DQ77: 25.47970234 | DS77: 50000 | DT77: 1 | DU77: 49512.13645 | DV77: 1661 | DW77: 2912344.585 | DX77: 0.9964007199 | DY77: 3212344.585 | DZ77: 6512.136448 | EA77: 0.9812056311 | EB77: 25.45912718 | ED77: 50000 | EE77: 1 | EF77: 49610.78807 | EG77: 1652 | EH77: 2911304.246 | EI77: 0.9963811821 | EJ77: 3211304.246 | EK77: 6610.788071 | EL77: 0.9809960325 | EM77: 25.32446783
A78: 71 | B78: 51000 | C78: 0 | D78: 0 | E78: 20247 | F78: 34994918.14 | G78: 0.9963584469 | H78: 38768918.14 | I78: 74000 | J78: 0.9848237934 | K78: 26.32631677 | M78: 51000 | N78: 0 | O78: 0 | P78: 1710 | Q78: 2952799.638 | R78: 0.9965034965 | S78: 3258799.638 | T78: 6000 | U78: 0.9837876791 | V78: 26.4199006 | X78: 51000 | Y78: 0 | Z78: 0 | AA78: 1706 | AB78: 2917408.315 | AC78: 0.9964953271 | AD78: 3223408.315 | AE78: 6000 | AF78: 0.9840839517 | AG78: 26.65574125 | AI78: 51000 | AJ78: 0 | AK78: 0 | AL78: 1719 | AM78: 2974241.345 | AN78: 0.9965217391 | AO78: 3280241.345 | AP78: 6000 | AQ78: 0.9966930289 | AR78: 26.73098105 | AT78: 51000 | AU78: 0 | AV78: 0 | AW78: 1677 | AX78: 2839262.123 | AY78: 0.9952522255 | AZ78: 3247262.123 | BA78: 8000 | BB78: 0.9869620655 | BC78: 26.11879851 | BE78: 51000 | BF78: 0 | BG78: 0 | BH78: 1696 | BI78: 2916560.185 | BJ78: 0.9964747356 | BK78: 3222560.185 | BL78: 6000 | BM78: 0.9829256829 | BN78: 26.47581743 | BP78: 51000 | BQ78: 0 | BR78: 0 | BS78: 1670 | BT78: 2923706.667 | BU78: 0.9964200477 | BV78: 3229706.667 | BW78: 6000 | BX78: 0.9826504359 | BY78: 26.00639541 | CA78: 51000 | CB78: 0 | CC78: 0 | CD78: 1682 | CE78: 2924451.58 | CF78: 0.9964454976 | CG78: 3230451.58 | CH78: 6000 | CI78: 0.9830170511 | CJ78: 26.19632884 | CL78: 51000 | CM78: 0 | CN78: 0 | CO78: 1690 | CP78: 2902804.062 | CQ78: 0.9964622642 | CR78: 3208804.062 | CS78: 6000 | CT78: 0.9837398813 | CU78: 26.51753212 | CW78: 51000 | CX78: 0 | CY78: 0 | CZ78: 1721 | DA78: 2907096.081 | DB78: 0.9965257672 | DC78: 3213096.081 | DD78: 6000 | DE78: 0.985278932 | DF78: 27.00834656 | DH78: 51000 | DI78: 0 | DJ78: 0 | DK78: 1663 | DL78: 2912939.312 | DM78: 0.996405033 | DN78: 3218939.312 | DO78: 6000 | DP78: 0.9828354168 | DQ78: 25.98929639 | DS78: 51000 | DT78: 0 | DU78: 0 | DV78: 1661 | DW78: 2912344.585 | DX78: 0.9964007199 | DY78: 3218344.585 | DZ78: 6000 | EA78: 0.9830383217 | EB78: 25.96830972 | ED78: 51000 | EE78: 0 | EF78: 0 | EG78: 1652 | EH78: 2911304.246 | EI78: 0.9963811821 | EJ78: 3217304.246 | EK78: 6000 | EL78: 0.9828289252 | EM78: 25.83095719
A79: 72 | B79: 52000 | C79: 0 | D79: 0 | E79: 20247 | F79: 34994918.14 | G79: 0.9963584469 | H79: 38842918.14 | I79: 74000 | J79: 0.9867035715 | K79: 26.84251905 | M79: 52000 | N79: 0 | O79: 0 | P79: 1710 | Q79: 2952799.638 | R79: 0.9965034965 | S79: 3264799.638 | T79: 6000 | U79: 0.9855989982 | V79: 26.93793787 | X79: 52000 | Y79: 0 | Z79: 0 | AA79: 1706 | AB79: 2917408.315 | AC79: 0.9964953271 | AD79: 3229408.315 | AE79: 6000 | AF79: 0.9859157096 | AG79: 27.17840284 | AI79: 52000 | AJ79: 0 | AK79: 0 | AL79: 1719 | AM79: 2974241.345 | AN79: 0.9965217391 | AO79: 3286241.345 | AP79: 6000 | AQ79: 0.9985161137 | AR79: 27.25511793 | AT79: 52000 | AU79: 0 | AV79: 0 | AW79: 1677 | AX79: 2839262.123 | AY79: 0.9952522255 | AZ79: 3255262.123 | BA79: 8000 | BB79: 0.989393559 | BC79: 26.63093182 | BE79: 52000 | BF79: 0 | BG79: 0 | BH79: 1696 | BI79: 2916560.185 | BJ79: 0.9964747356 | BK79: 3228560.185 | BL79: 6000 | BM79: 0.9847557664 | BN79: 26.9949511 | BP79: 52000 | BQ79: 0 | BR79: 0 | BS79: 1670 | BT79: 2923706.667 | BU79: 0.9964200477 | BV79: 3235706.667 | BW79: 6000 | BX79: 0.9844759586 | BY79: 26.51632474 | CA79: 52000 | CB79: 0 | CC79: 0 | CD79: 1682 | CE79: 2924451.58 | CF79: 0.9964454976 | CG79: 3236451.58 | CH79: 6000 | CI79: 0.9848428337 | CJ79: 26.70998234 | CL79: 52000 | CM79: 0 | CN79: 0 | CO79: 1690 | CP79: 2902804.062 | CQ79: 0.9964622642 | CR79: 3214804.062 | CS79: 6000 | CT79: 0.9855793328 | CU79: 27.03748373 | CW79: 52000 | CX79: 0 | CY79: 0 | CZ79: 1721 | DA79: 2907096.081 | DB79: 0.9965257672 | DC79: 3219096.081 | DD79: 6000 | DE79: 0.9871188003 | DF79: 27.53792199 | DH79: 52000 | DI79: 0 | DJ79: 0 | DK79: 1663 | DL79: 2912939.312 | DM79: 0.996405033 | DN79: 3224939.312 | DO79: 6000 | DP79: 0.9846673906 | DQ79: 26.49889043 | DS79: 52000 | DT79: 0 | DU79: 0 | DV79: 1661 | DW79: 2912344.585 | DX79: 0.9964007199 | DY79: 3224344.585 | DZ79: 6000 | EA79: 0.9848710123 | EB79: 26.47749227 | ED79: 52000 | EE79: 0 | EF79: 0 | EG79: 1652 | EH79: 2911304.246 | EI79: 0.9963811821 | EJ79: 3223304.246 | EK79: 6000 | EL79: 0.9846618179 | EM79: 26.33744655
A80: 73 | B80: 53000 | C80: 12 | D80: 617076.2221 | E80: 20259 | F80: 35611994.36 | G80: 0.996948969 | H80: 38897994.36 | I80: 55076.2221 | J80: 0.98810264 | K80: 27.35872134 | M80: 53000 | N80: 1 | O80: 51962.14794 | P80: 1711 | Q80: 3004761.786 | R80: 0.9970862471 | S80: 3269761.786 | T80: 4962.147942 | U80: 0.9870970038 | V80: 27.45597513 | X80: 53000 | Y80: 1 | Z80: 51735.39503 | AA80: 1707 | AB80: 2969143.71 | AC80: 0.9970794393 | AD80: 3234143.71 | AE80: 4735.395029 | AF80: 0.9873613925 | AG80: 27.70106443 | AI80: 53000 | AJ80: 1 | AK80: 45776.48456 | AL80: 1720 | AM80: 3020017.829 | AN80: 0.9971014493 | AO80: 3285017.829 | AP80: -1223.515436 | AQ80: 0.9981443516 | AR80: 27.77925481 | AT80: 53000 | AU80: 1 | AV80: 50005.30162 | AW80: 1678 | AX80: 2889267.424 | AY80: 0.9958456973 | AZ80: 3260267.424 | BA80: 5005.301619 | BB80: 0.9909148537 | BC80: 27.14306512 | BE80: 53000 | BF80: 1 | BG80: 52296.61543 | BH80: 1697 | BI80: 2968856.801 | BJ80: 0.9970622797 | BK80: 3233856.801 | BL80: 5296.615434 | BM80: 0.9863713077 | BN80: 27.51408478 | BP80: 53000 | BQ80: 1 | BR80: 52447.5214 | BS80: 1671 | BT80: 2976154.189 | BU80: 0.9970167064 | BV80: 3241154.189 | BW80: 5447.521399 | BX80: 0.9861333875 | BY80: 27.02625406 | CA80: 53000 | CB80: 1 | CC80: 52272.28672 | CD80: 1683 | CE80: 2976723.867 | CF80: 0.9970379147 | CG80: 3241723.867 | CH80: 5272.286722 | CI80: 0.9864471752 | CJ80: 27.22363585 | CL80: 53000 | CM80: 1 | CN80: 52004.47645 | CO80: 1691 | CP80: 2954808.538 | CQ80: 0.9970518868 | CR80: 3219808.538 | CS80: 5004.47645 | CT80: 0.9871135813 | CU80: 27.55743534 | CW80: 53000 | CX80: 1 | CY80: 51275.76371 | CZ80: 1722 | DA80: 2958371.845 | DB80: 0.997104806 | DC80: 3223371.845 | DD80: 4275.763714 | DE80: 0.9884299407 | DF80: 28.06749741 | DH80: 53000 | DI80: 1 | DJ80: 52464.89912 | DK80: 1664 | DL80: 2965404.212 | DM80: 0.9970041941 | DN80: 3230404.212 | DO80: 5464.899122 | DP80: 0.9863359826 | DQ80: 27.00848448 | DS80: 53000 | DT80: 1 | DU80: 52365.49662 | DV80: 1662 | DW80: 2964710.082 | DX80: 0.9970005999 | DY80: 3229710.082 | DZ80: 5365.49662 | EA80: 0.9865098949 | EB80: 26.98667481 | ED80: 53000 | EE80: 1 | EF80: 52469.83349 | EG80: 1653 | EH80: 2963774.08 | EI80: 0.9969843185 | EJ80: 3228774.08 | EK80: 5469.833487 | EL80: 0.9863327543 | EM80: 26.8439359
A81: 74 | B81: 54000 | C81: 0 | D81: 0 | E81: 20259 | F81: 35611994.36 | G81: 0.996948969 | H81: 38959994.36 | I81: 62000 | J81: 0.9896775892 | K81: 27.87492363 | M81: 54000 | N81: 0 | O81: 0 | P81: 1711 | Q81: 3004761.786 | R81: 0.9970862471 | S81: 3274761.786 | T81: 5000 | U81: 0.9886064364 | V81: 27.9740124 | X81: 54000 | Y81: 0 | Z81: 0 | AA81: 1707 | AB81: 2969143.71 | AC81: 0.9970794393 | AD81: 3239143.71 | AE81: 5000 | AF81: 0.9888878575 | AG81: 28.22372603 | AI81: 54000 | AJ81: 0 | AK81: 0 | AL81: 1720 | AM81: 3020017.829 | AN81: 0.9971014493 | AO81: 3290017.829 | AP81: 5000 | AQ81: 0.999663589 | AR81: 28.3033917 | AT81: 54000 | AU81: 0 | AV81: 0 | AW81: 1678 | AX81: 2889267.424 | AY81: 0.9958456973 | AZ81: 3267267.424 | BA81: 7000 | BB81: 0.9930424105 | BC81: 27.65519843 | BE81: 54000 | BF81: 0 | BG81: 0 | BH81: 1697 | BI81: 2968856.801 | BJ81: 0.9970622797 | BK81: 3238856.801 | BL81: 5000 | BM81: 0.9878963773 | BN81: 28.03321845 | BP81: 54000 | BQ81: 0 | BR81: 0 | BS81: 1671 | BT81: 2976154.189 | BU81: 0.9970167064 | BV81: 3246154.189 | BW81: 5000 | BX81: 0.9876546564 | BY81: 27.53618338 | CA81: 54000 | CB81: 0 | CC81: 0 | CD81: 1683 | CE81: 2976723.867 | CF81: 0.9970379147 | CG81: 3246723.867 | CH81: 5000 | CI81: 0.9879686607 | CJ81: 27.73728936 | CL81: 54000 | CM81: 0 | CN81: 0 | CO81: 1691 | CP81: 2954808.538 | CQ81: 0.9970518868 | CR81: 3224808.538 | CS81: 5000 | CT81: 0.9886464576 | CU81: 28.07738695 | CW81: 54000 | CX81: 0 | CY81: 0 | CZ81: 1722 | DA81: 2958371.845 | DB81: 0.997104806 | DC81: 3228371.845 | DD81: 5000 | DE81: 0.9899631643 | DF81: 28.59707283 | DH81: 54000 | DI81: 0 | DJ81: 0 | DK81: 1664 | DL81: 2965404.212 | DM81: 0.9970041941 | DN81: 3235404.212 | DO81: 5000 | DP81: 0.9878626275 | DQ81: 27.51807853 | DS81: 54000 | DT81: 0 | DU81: 0 | DV81: 1662 | DW81: 2964710.082 | DX81: 0.9970005999 | DY81: 3234710.082 | DZ81: 5000 | EA81: 0.988037137 | EB81: 27.49585736 | ED81: 54000 | EE81: 0 | EF81: 0 | EG81: 1653 | EH81: 2963774.08 | EI81: 0.9969843185 | EJ81: 3233774.08 | EK81: 5000 | EL81: 0.9878601649 | EM81: 27.35042526
A82: 75 | B82: 55000 | C82: 23 | D82: 1239735.638 | E82: 20282 | F82: 36851730 | G82: 0.9980808031 | H82: 38996730 | I82: 36735.63821 | J82: 0.9906107628 | K82: 28.39112592 | M82: 55000 | N82: 1 | O82: 54319.15707 | P82: 1712 | Q82: 3059080.943 | R82: 0.9976689977 | S82: 3279080.943 | T82: 4319.157073 | U82: 0.9899103317 | V82: 28.49204967 | X82: 55000 | Y82: 1 | Z82: 54082.11862 | AA82: 1708 | AB82: 3023225.829 | AC82: 0.9976635514 | AD82: 3243225.829 | AE82: 4082.118622 | AF82: 0.9901340996 | AG82: 28.74638762 | AI82: 55000 | AJ82: 1 | AK82: 47852.91128 | AL82: 1721 | AM82: 3067870.741 | AN82: 0.9976811594 | AO82: 3287870.741 | AP82: -2147.088722 | AQ82: 0.9990112015 | AR82: 28.82752858 | AT82: 55000 | AU82: 4 | AV82: 209440.1471 | AW82: 1682 | AX82: 3098707.571 | AY82: 0.9982195846 | AZ82: 3263707.571 | BA82: -3559.852896 | BB82: 0.9919604406 | BC82: 28.16733173 | BE82: 55000 | BF82: 2 | BG82: 109458.1946 | BH82: 1699 | BI82: 3078314.995 | BJ82: 0.9982373678 | BK82: 3243314.995 | BL82: 4458.194559 | BM82: 0.9892561886 | BN82: 28.55235213 | BP82: 55000 | BQ82: 2 | BR82: 109774.0447 | BS82: 1673 | BT82: 3085928.233 | BU82: 0.9982100239 | BV82: 3250928.233 | BW82: 4774.044721 | BX82: 0.9891071775 | BY82: 28.0461127 | CA82: 55000 | CB82: 2 | CC82: 109407.2739 | CD82: 1685 | CE82: 3086131.141 | CF82: 0.9982227488 | CG82: 3251131.141 | CH82: 4407.273924 | CI82: 0.9893097814 | CJ82: 28.25094286 | CL82: 55000 | CM82: 2 | CN82: 108846.74 | CO82: 1693 | CP82: 3063655.278 | CQ82: 0.9982311321 | CR82: 3228655.278 | CS82: 3846.739965 | CT82: 0.9898257728 | CU82: 28.59733856 | CW82: 55000 | CX82: 2 | CY82: 107321.525 | CZ82: 1724 | DA82: 3065693.37 | DB82: 0.9982628836 | DC82: 3230693.37 | DD82: 2321.525001 | DE82: 0.9906750476 | DF82: 29.12664825 | DH82: 55000 | DI82: 2 | DJ82: 109810.4168 | DK82: 1666 | DL82: 3075214.628 | DM82: 0.9982025165 | DN82: 3240214.628 | DO82: 4810.416755 | DP82: 0.989331387 | DQ82: 28.02767257 | DS82: 55000 | DT82: 2 | DU82: 109602.3647 | DV82: 1664 | DW82: 3074312.447 | DX82: 0.9982003599 | DY82: 3239312.447 | DZ82: 4602.364697 | EA82: 0.9894429221 | EB82: 28.0050399 | ED82: 55000 | EE82: 2 | EF82: 109820.7445 | EG82: 1655 | EH82: 3073594.824 | EI82: 0.9981905911 | EJ82: 3238594.824 | EK82: 4820.74451 | EL82: 0.9893328161 | EM82: 27.85691462
A83: 76 | B83: 56000 | C83: 3 | D83: 156712.8448 | E83: 20285 | F83: 37008442.85 | G83: 0.9982284336 | H83: 39024442.85 | I83: 27712.84482 | J83: 0.9913147357 | K83: 28.90732821 | M83: 56000 | N83: 1 | O83: 54478.60181 | P83: 1713 | Q83: 3113559.545 | R83: 0.9982517483 | S83: 3281559.545 | T83: 2478.601809 | U83: 0.9906585882 | V83: 29.01008693 | X83: 56000 | Y83: 1 | Z83: 54240.86757 | AA83: 1709 | AB83: 3077466.697 | AC83: 0.9982476636 | AD83: 3245466.697 | AE83: 2240.867571 | AF83: 0.9908182208 | AG83: 29.26904921 | AI83: 56000 | AJ83: 1 | AK83: 47993.37544 | AL83: 1722 | AM83: 3115864.116 | AN83: 0.9982608696 | AO83: 3283864.116 | AP83: -4006.624562 | AQ83: 0.9977937988 | AR83: 29.35166546 | AT83: 56000 | AU83: 0 | AV83: 0 | AW83: 1682 | AX83: 3098707.571 | AY83: 0.9982195846 | AZ83: 3266707.571 | BA83: 3000 | BB83: 0.9928722507 | BC83: 28.67946503 | BE83: 56000 | BF83: 0 | BG83: 0 | BH83: 1699 | BI83: 3078314.995 | BJ83: 0.9982373678 | BK83: 3246314.995 | BL83: 3000 | BM83: 0.9901712304 | BN83: 29.07148581 | BP83: 56000 | BQ83: 0 | BR83: 0 | BS83: 1673 | BT83: 3085928.233 | BU83: 0.9982100239 | BV83: 3253928.233 | BW83: 3000 | BX83: 0.9900199388 | BY83: 28.55604202 | CA83: 56000 | CB83: 0 | CC83: 0 | CD83: 1685 | CE83: 3086131.141 | CF83: 0.9982227488 | CG83: 3254131.141 | CH83: 3000 | CI83: 0.9902226727 | CJ83: 28.76459637 | CL83: 56000 | CM83: 0 | CN83: 0 | CO83: 1693 | CP83: 3063655.278 | CQ83: 0.9982311321 | CR83: 3231655.278 | CS83: 3000 | CT83: 0.9907454985 | CU83: 29.11729017 | CW83: 56000 | CX83: 0 | CY83: 0 | CZ83: 1724 | DA83: 3065693.37 | DB83: 0.9982628836 | DC83: 3233693.37 | DD83: 3000 | DE83: 0.9915949818 | DF83: 29.65622368 | DH83: 56000 | DI83: 0 | DJ83: 0 | DK83: 1666 | DL83: 3075214.628 | DM83: 0.9982025165 | DN83: 3243214.628 | DO83: 3000 | DP83: 0.9902473739 | DQ83: 28.53726662 | DS83: 56000 | DT83: 0 | DU83: 0 | DV83: 1664 | DW83: 3074312.447 | DX83: 0.9982003599 | DY83: 3242312.447 | DZ83: 3000 | EA83: 0.9903592675 | EB83: 28.51422244 | ED83: 56000 | EE83: 0 | EF83: 0 | EG83: 1655 | EH83: 3073594.824 | EI83: 0.9981905911 | EJ83: 3241594.824 | EK83: 3000 | EL83: 0.9902492625 | EM83: 28.36340398
A84: 77 | B84: 57000 | C84: 0 | D84: 0 | E84: 20285 | F84: 37008442.85 | G84: 0.9982284336 | H84: 39060442.85 | I84: 36000 | J84: 0.9922292223 | K84: 29.4235305 | M84: 57000 | N84: 0 | O84: 0 | P84: 1713 | Q84: 3113559.545 | R84: 0.9982517483 | S84: 3284559.545 | T84: 3000 | U84: 0.9915642477 | V84: 29.5281242 | X84: 57000 | Y84: 0 | Z84: 0 | AA84: 1709 | AB84: 3077466.697 | AC84: 0.9982476636 | AD84: 3248466.697 | AE84: 3000 | AF84: 0.9917340998 | AG84: 29.79171081 | AI84: 57000 | AJ84: 0 | AK84: 0 | AL84: 1722 | AM84: 3115864.116 | AN84: 0.9982608696 | AO84: 3286864.116 | AP84: 3000 | AQ84: 0.9987053412 | AR84: 29.87580235 | AT84: 57000 | AU84: 0 | AV84: 0 | AW84: 1682 | AX84: 3098707.571 | AY84: 0.9982195846 | AZ84: 3269707.571 | BA84: 3000 | BB84: 0.9937840607 | BC84: 29.19159834 | BE84: 57000 | BF84: 0 | BG84: 0 | BH84: 1699 | BI84: 3078314.995 | BJ84: 0.9982373678 | BK84: 3249314.995 | BL84: 3000 | BM84: 0.9910862721 | BN84: 29.59061948 | BP84: 57000 | BQ84: 0 | BR84: 0 | BS84: 1673 | BT84: 3085928.233 | BU84: 0.9982100239 | BV84: 3256928.233 | BW84: 3000 | BX84: 0.9909327001 | BY84: 29.06597135 | CA84: 57000 | CB84: 0 | CC84: 0 | CD84: 1685 | CE84: 3086131.141 | CF84: 0.9982227488 | CG84: 3257131.141 | CH84: 3000 | CI84: 0.991135564 | CJ84: 29.27824988 | CL84: 57000 | CM84: 0 | CN84: 0 | CO84: 1693 | CP84: 3063655.278 | CQ84: 0.9982311321 | CR84: 3234655.278 | CS84: 3000 | CT84: 0.9916652242 | CU84: 29.63724178 | CW84: 57000 | CX84: 0 | CY84: 0 | CZ84: 1724 | DA84: 3065693.37 | DB84: 0.9982628836 | DC84: 3236693.37 | DD84: 3000 | DE84: 0.9925149159 | DF84: 30.1857991 | DH84: 57000 | DI84: 0 | DJ84: 0 | DK84: 1666 | DL84: 3075214.628 | DM84: 0.9982025165 | DN84: 3246214.628 | DO84: 3000 | DP84: 0.9911633608 | DQ84: 29.04686067 | DS84: 57000 | DT84: 0 | DU84: 0 | DV84: 1664 | DW84: 3074312.447 | DX84: 0.9982003599 | DY84: 3245312.447 | DZ84: 3000 | EA84: 0.9912756128 | EB84: 29.02340499 | ED84: 57000 | EE84: 0 | EF84: 0 | EG84: 1655 | EH84: 3073594.824 | EI84: 0.9981905911 | EJ84: 3244594.824 | EK84: 3000 | EL84: 0.9911657089 | EM84: 28.86989333
A85: 78 | B85: 58000 | C85: 0 | D85: 0 | E85: 20285 | F85: 37008442.85 | G85: 0.9982284336 | H85: 39096442.85 | I85: 36000 | J85: 0.9931437089 | K85: 29.93973279 | M85: 58000 | N85: 0 | O85: 0 | P85: 1713 | Q85: 3113559.545 | R85: 0.9982517483 | S85: 3287559.545 | T85: 3000 | U85: 0.9924699073 | V85: 30.04616147 | X85: 58000 | Y85: 0 | Z85: 0 | AA85: 1709 | AB85: 3077466.697 | AC85: 0.9982476636 | AD85: 3251466.697 | AE85: 3000 | AF85: 0.9926499787 | AG85: 30.3143724 | AI85: 58000 | AJ85: 0 | AK85: 0 | AL85: 1722 | AM85: 3115864.116 | AN85: 0.9982608696 | AO85: 3289864.116 | AP85: 3000 | AQ85: 0.9996168836 | AR85: 30.39993923 | AT85: 58000 | AU85: 0 | AV85: 0 | AW85: 1682 | AX85: 3098707.571 | AY85: 0.9982195846 | AZ85: 3272707.571 | BA85: 3000 | BB85: 0.9946958707 | BC85: 29.70373164 | BE85: 58000 | BF85: 0 | BG85: 0 | BH85: 1699 | BI85: 3078314.995 | BJ85: 0.9982373678 | BK85: 3252314.995 | BL85: 3000 | BM85: 0.9920013138 | BN85: 30.10975316 | BP85: 58000 | BQ85: 0 | BR85: 0 | BS85: 1673 | BT85: 3085928.233 | BU85: 0.9982100239 | BV85: 3259928.233 | BW85: 3000 | BX85: 0.9918454614 | BY85: 29.57590067 | CA85: 58000 | CB85: 0 | CC85: 0 | CD85: 1685 | CE85: 3086131.141 | CF85: 0.9982227488 | CG85: 3260131.141 | CH85: 3000 | CI85: 0.9920484553 | CJ85: 29.79190338 | CL85: 58000 | CM85: 0 | CN85: 0 | CO85: 1693 | CP85: 3063655.278 | CQ85: 0.9982311321 | CR85: 3237655.278 | CS85: 3000 | CT85: 0.99258495 | CU85: 30.15719339 | CW85: 58000 | CX85: 0 | CY85: 0 | CZ85: 1724 | DA85: 3065693.37 | DB85: 0.9982628836 | DC85: 3239693.37 | DD85: 3000 | DE85: 0.9934348501 | DF85: 30.71537452 | DH85: 58000 | DI85: 0 | DJ85: 0 | DK85: 1666 | DL85: 3075214.628 | DM85: 0.9982025165 | DN85: 3249214.628 | DO85: 3000 | DP85: 0.9920793478 | DQ85: 29.55645472 | DS85: 58000 | DT85: 0 | DU85: 0 | DV85: 1664 | DW85: 3074312.447 | DX85: 0.9982003599 | DY85: 3248312.447 | DZ85: 3000 | EA85: 0.9921919581 | EB85: 29.53258753 | ED85: 58000 | EE85: 0 | EF85: 0 | EG85: 1655 | EH85: 3073594.824 | EI85: 0.9981905911 | EJ85: 3247594.824 | EK85: 3000 | EL85: 0.9920821552 | EM85: 29.37638269
A86: 79 | B86: 59000 | C86: 0 | D86: 0 | E86: 20285 | F86: 37008442.85 | G86: 0.9982284336 | H86: 39132442.85 | I86: 36000 | J86: 0.9940581956 | K86: 30.45593508 | M86: 59000 | N86: 0 | O86: 0 | P86: 1713 | Q86: 3113559.545 | R86: 0.9982517483 | S86: 3290559.545 | T86: 3000 | U86: 0.9933755668 | V86: 30.56419873 | X86: 59000 | Y86: 0 | Z86: 0 | AA86: 1709 | AB86: 3077466.697 | AC86: 0.9982476636 | AD86: 3254466.697 | AE86: 3000 | AF86: 0.9935658577 | AG86: 30.83703399 | AI86: 59000 | AJ86: 0 | AK86: 0 | AL86: 1722 | AM86: 3115864.116 | AN86: 0.9982608696 | AO86: 3292864.116 | AP86: 3000 | AQ86: 1.000528426 | AR86: 30.92407611 | AT86: 59000 | AU86: 0 | AV86: 0 | AW86: 1682 | AX86: 3098707.571 | AY86: 0.9982195846 | AZ86: 3275707.571 | BA86: 3000 | BB86: 0.9956076808 | BC86: 30.21586495 | BE86: 59000 | BF86: 0 | BG86: 0 | BH86: 1699 | BI86: 3078314.995 | BJ86: 0.9982373678 | BK86: 3255314.995 | BL86: 3000 | BM86: 0.9929163556 | BN86: 30.62888683 | BP86: 59000 | BQ86: 0 | BR86: 0 | BS86: 1673 | BT86: 3085928.233 | BU86: 0.9982100239 | BV86: 3262928.233 | BW86: 3000 | BX86: 0.9927582228 | BY86: 30.08582999 | CA86: 59000 | CB86: 0 | CC86: 0 | CD86: 1685 | CE86: 3086131.141 | CF86: 0.9982227488 | CG86: 3263131.141 | CH86: 3000 | CI86: 0.9929613466 | CJ86: 30.30555689 | CL86: 59000 | CM86: 0 | CN86: 0 | CO86: 1693 | CP86: 3063655.278 | CQ86: 0.9982311321 | CR86: 3240655.278 | CS86: 3000 | CT86: 0.9935046757 | CU86: 30.677145 | CW86: 59000 | CX86: 0 | CY86: 0 | CZ86: 1724 | DA86: 3065693.37 | DB86: 0.9982628836 | DC86: 3242693.37 | DD86: 3000 | DE86: 0.9943547842 | DF86: 31.24494994 | DH86: 59000 | DI86: 0 | DJ86: 0 | DK86: 1666 | DL86: 3075214.628 | DM86: 0.9982025165 | DN86: 3252214.628 | DO86: 3000 | DP86: 0.9929953347 | DQ86: 30.06604876 | DS86: 59000 | DT86: 0 | DU86: 0 | DV86: 1664 | DW86: 3074312.447 | DX86: 0.9982003599 | DY86: 3251312.447 | DZ86: 3000 | EA86: 0.9931083034 | EB86: 30.04177007 | ED86: 59000 | EE86: 0 | EF86: 0 | EG86: 1655 | EH86: 3073594.824 | EI86: 0.9981905911 | EJ86: 3250594.824 | EK86: 3000 | EL86: 0.9929986016 | EM86: 29.88287205
A87: 80 | B87: 60000 | C87: 0 | D87: 0 | E87: 20285 | F87: 37008442.85 | G87: 0.9982284336 | H87: 39168442.85 | I87: 36000 | J87: 0.9949726822 | K87: 30.97213737 | M87: 60000 | N87: 0 | O87: 0 | P87: 1713 | Q87: 3113559.545 | R87: 0.9982517483 | S87: 3293559.545 | T87: 3000 | U87: 0.9942812264 | V87: 31.082236 | X87: 60000 | Y87: 0 | Z87: 0 | AA87: 1709 | AB87: 3077466.697 | AC87: 0.9982476636 | AD87: 3257466.697 | AE87: 3000 | AF87: 0.9944817366 | AG87: 31.35969559 | AI87: 60000 | AJ87: 0 | AK87: 0 | AL87: 1722 | AM87: 3115864.116 | AN87: 0.9982608696 | AO87: 3295864.116 | AP87: 3000 | AQ87: 1.001439968 | AR87: 31.448213 | AT87: 60000 | AU87: 0 | AV87: 0 | AW87: 1682 | AX87: 3098707.571 | AY87: 0.9982195846 | AZ87: 3278707.571 | BA87: 3000 | BB87: 0.9965194908 | BC87: 30.72799825 | BE87: 60000 | BF87: 0 | BG87: 0 | BH87: 1699 | BI87: 3078314.995 | BJ87: 0.9982373678 | BK87: 3258314.995 | BL87: 3000 | BM87: 0.9938313973 | BN87: 31.14802051 | BP87: 60000 | BQ87: 0 | BR87: 0 | BS87: 1673 | BT87: 3085928.233 | BU87: 0.9982100239 | BV87: 3265928.233 | BW87: 3000 | BX87: 0.9936709841 | BY87: 30.59575931 | CA87: 60000 | CB87: 0 | CC87: 0 | CD87: 1685 | CE87: 3086131.141 | CF87: 0.9982227488 | CG87: 3266131.141 | CH87: 3000 | CI87: 0.9938742379 | CJ87: 30.8192104 | CL87: 60000 | CM87: 0 | CN87: 0 | CO87: 1693 | CP87: 3063655.278 | CQ87: 0.9982311321 | CR87: 3243655.278 | CS87: 3000 | CT87: 0.9944244014 | CU87: 31.19709661 | CW87: 60000 | CX87: 0 | CY87: 0 | CZ87: 1724 | DA87: 3065693.37 | DB87: 0.9982628836 | DC87: 3245693.37 | DD87: 3000 | DE87: 0.9952747184 | DF87: 31.77452537 | DH87: 60000 | DI87: 0 | DJ87: 0 | DK87: 1666 | DL87: 3075214.628 | DM87: 0.9982025165 | DN87: 3255214.628 | DO87: 3000 | DP87: 0.9939113216 | DQ87: 30.57564281 | DS87: 60000 | DT87: 0 | DU87: 0 | DV87: 1664 | DW87: 3074312.447 | DX87: 0.9982003599 | DY87: 3254312.447 | DZ87: 3000 | EA87: 0.9940246487 | EB87: 30.55095262 | ED87: 60000 | EE87: 0 | EF87: 0 | EG87: 1655 | EH87: 3073594.824 | EI87: 0.9981905911 | EJ87: 3253594.824 | EK87: 3000 | EL87: 0.9939150479 | EM87: 30.3893614
A88: 81 | B88: 61000 | C88: 0 | D88: 0 | E88: 20285 | F88: 37008442.85 | G88: 0.9982284336 | H88: 39204442.85 | I88: 36000 | J88: 0.9958871688 | K88: 31.48833966 | M88: 61000 | N88: 0 | O88: 0 | P88: 1713 | Q88: 3113559.545 | R88: 0.9982517483 | S88: 3296559.545 | T88: 3000 | U88: 0.9951868859 | V88: 31.60027327 | X88: 61000 | Y88: 0 | Z88: 0 | AA88: 1709 | AB88: 3077466.697 | AC88: 0.9982476636 | AD88: 3260466.697 | AE88: 3000 | AF88: 0.9953976156 | AG88: 31.88235718 | AI88: 61000 | AJ88: 0 | AK88: 0 | AL88: 1722 | AM88: 3115864.116 | AN88: 0.9982608696 | AO88: 3298864.116 | AP88: 3000 | AQ88: 1.002351511 | AR88: 31.97234988 | AT88: 61000 | AU88: 0 | AV88: 0 | AW88: 1682 | AX88: 3098707.571 | AY88: 0.9982195846 | AZ88: 3281707.571 | BA88: 3000 | BB88: 0.9974313008 | BC88: 31.24013156 | BE88: 61000 | BF88: 0 | BG88: 0 | BH88: 1699 | BI88: 3078314.995 | BJ88: 0.9982373678 | BK88: 3261314.995 | BL88: 3000 | BM88: 0.994746439 | BN88: 31.66715418 | BP88: 61000 | BQ88: 0 | BR88: 0 | BS88: 1673 | BT88: 3085928.233 | BU88: 0.9982100239 | BV88: 3268928.233 | BW88: 3000 | BX88: 0.9945837454 | BY88: 31.10568863 | CA88: 61000 | CB88: 0 | CC88: 0 | CD88: 1685 | CE88: 3086131.141 | CF88: 0.9982227488 | CG88: 3269131.141 | CH88: 3000 | CI88: 0.9947871292 | CJ88: 31.3328639 | CL88: 61000 | CM88: 0 | CN88: 0 | CO88: 1693 | CP88: 3063655.278 | CQ88: 0.9982311321 | CR88: 3246655.278 | CS88: 3000 | CT88: 0.9953441271 | CU88: 31.71704822 | CW88: 61000 | CX88: 0 | CY88: 0 | CZ88: 1724 | DA88: 3065693.37 | DB88: 0.9982628836 | DC88: 3248693.37 | DD88: 3000 | DE88: 0.9961946525 | DF88: 32.30410079 | DH88: 61000 | DI88: 0 | DJ88: 0 | DK88: 1666 | DL88: 3075214.628 | DM88: 0.9982025165 | DN88: 3258214.628 | DO88: 3000 | DP88: 0.9948273085 | DQ88: 31.08523686 | DS88: 61000 | DT88: 0 | DU88: 0 | DV88: 1664 | DW88: 3074312.447 | DX88: 0.9982003599 | DY88: 3257312.447 | DZ88: 3000 | EA88: 0.994940994 | EB88: 31.06013516 | ED88: 61000 | EE88: 0 | EF88: 0 | EG88: 1655 | EH88: 3073594.824 | EI88: 0.9981905911 | EJ88: 3256594.824 | EK88: 3000 | EL88: 0.9948314943 | EM88: 30.89585076
A89: 82 | B89: 62000 | C89: 0 | D89: 0 | E89: =E88+C89 -> 20285 | F89: 37008442.85 | G89: 0.9982284336 | H89: 39240442.85 | I89: 36000 | J89: 0.9968016554 | K89: 32.00454195 | M89: 62000 | N89: 0 | O89: 0 | P89: 1713 | Q89: 3113559.545 | R89: 0.9982517483 | S89: 3299559.545 | T89: 3000 | U89: 0.9960925455 | V89: 32.11831053 | X89: 62000 | Y89: 0 | Z89: 0 | AA89: 1709 | AB89: 3077466.697 | AC89: 0.9982476636 | AD89: 3263466.697 | AE89: 3000 | AF89: 0.9963134946 | AG89: 32.40501877 | AI89: 62000 | AJ89: 0 | AK89: 0 | AL89: 1722 | AM89: 3115864.116 | AN89: 0.9982608696 | AO89: 3301864.116 | AP89: 3000 | AQ89: 1.003263053 | AR89: 32.49648676 | AT89: 62000 | AU89: 0 | AV89: 0 | AW89: 1682 | AX89: 3098707.571 | AY89: 0.9982195846 | AZ89: 3284707.571 | BA89: 3000 | BB89: 0.9983431109 | BC89: 31.75226486 | BE89: 62000 | BF89: 0 | BG89: 0 | BH89: 1699 | BI89: 3078314.995 | BJ89: 0.9982373678 | BK89: 3264314.995 | BL89: 3000 | BM89: 0.9956614808 | BN89: 32.18628786 | BP89: 62000 | BQ89: 0 | BR89: 0 | BS89: 1673 | BT89: 3085928.233 | BU89: 0.9982100239 | BV89: 3271928.233 | BW89: 3000 | BX89: 0.9954965067 | BY89: 31.61561795 | CA89: 62000 | CB89: 0 | CC89: 0 | CD89: 1685 | CE89: 3086131.141 | CF89: 0.9982227488 | CG89: 3272131.141 | CH89: 3000 | CI89: 0.9957000205 | CJ89: 31.84651741 | CL89: 62000 | CM89: 0 | CN89: 0 | CO89: 1693 | CP89: 3063655.278 | CQ89: 0.9982311321 | CR89: 3249655.278 | CS89: 3000 | CT89: 0.9962638529 | CU89: 32.23699983 | CW89: 62000 | CX89: 0 | CY89: 0 | CZ89: 1724 | DA89: 3065693.37 | DB89: 0.9982628836 | DC89: 3251693.37 | DD89: 3000 | DE89: 0.9971145866 | DF89: 32.83367621 | DH89: 62000 | DI89: 0 | DJ89: 0 | DK89: 1666 | DL89: 3075214.628 | DM89: 0.9982025165 | DN89: 3261214.628 | DO89: 3000 | DP89: 0.9957432954 | DQ89: 31.5948309 | DS89: 62000 | DT89: 0 | DU89: 0 | DV89: 1664 | DW89: 3074312.447 | DX89: 0.9982003599 | DY89: 3260312.447 | DZ89: 3000 | EA89: 0.9958573393 | EB89: 31.5693177 | ED89: 62000 | EE89: 0 | EF89: 0 | EG89: 1655 | EH89: 3073594.824 | EI89: 0.9981905911 | EJ89: 3259594.824 | EK89: 3000 | EL89: 0.9957479407 | EM89: 31.40234012
A90: 83 | B90: 63000 | C90: 0 | D90: 0 | E90: 20285 | F90: 37008442.85 | G90: 0.9982284336 | H90: 39276442.85 | I90: 36000 | J90: 0.997716142 | K90: 32.52074424 | M90: 63000 | N90: 0 | O90: 0 | P90: 1713 | Q90: 3113559.545 | R90: 0.9982517483 | S90: 3302559.545 | T90: 3000 | U90: 0.9969982051 | V90: 32.6363478 | X90: 63000 | Y90: 0 | Z90: 0 | AA90: 1709 | AB90: 3077466.697 | AC90: 0.9982476636 | AD90: 3266466.697 | AE90: 3000 | AF90: 0.9972293735 | AG90: 32.92768037 | AI90: 63000 | AJ90: 0 | AK90: 0 | AL90: 1722 | AM90: 3115864.116 | AN90: 0.9982608696 | AO90: 3304864.116 | AP90: 3000 | AQ90: 1.004174596 | AR90: 33.02062365 | AT90: 63000 | AU90: 0 | AV90: 0 | AW90: 1682 | AX90: 3098707.571 | AY90: 0.9982195846 | AZ90: 3287707.571 | BA90: 3000 | BB90: 0.9992549209 | BC90: 32.26439816 | BE90: 63000 | BF90: 0 | BG90: 0 | BH90: 1699 | BI90: 3078314.995 | BJ90: 0.9982373678 | BK90: 3267314.995 | BL90: 3000 | BM90: 0.9965765225 | BN90: 32.70542153 | BP90: 63000 | BQ90: 0 | BR90: 0 | BS90: 1673 | BT90: 3085928.233 | BU90: 0.9982100239 | BV90: 3274928.233 | BW90: 3000 | BX90: 0.996409268 | BY90: 32.12554728 | CA90: 63000 | CB90: 0 | CC90: 0 | CD90: 1685 | CE90: 3086131.141 | CF90: 0.9982227488 | CG90: 3275131.141 | CH90: 3000 | CI90: 0.9966129118 | CJ90: 32.36017092 | CL90: 63000 | CM90: 0 | CN90: 0 | CO90: 1693 | CP90: 3063655.278 | CQ90: 0.9982311321 | CR90: 3252655.278 | CS90: 3000 | CT90: 0.9971835786 | CU90: 32.75695144 | CW90: 63000 | CX90: 0 | CY90: 0 | CZ90: 1724 | DA90: 3065693.37 | DB90: 0.9982628836 | DC90: 3254693.37 | DD90: 3000 | DE90: 0.9980345208 | DF90: 33.36325164 | DH90: 63000 | DI90: 0 | DJ90: 0 | DK90: 1666 | DL90: 3075214.628 | DM90: 0.9982025165 | DN90: 3264214.628 | DO90: 3000 | DP90: 0.9966592823 | DQ90: 32.10442495 | DS90: 63000 | DT90: 0 | DU90: 0 | DV90: 1664 | DW90: 3074312.447 | DX90: 0.9982003599 | DY90: 3263312.447 | DZ90: 3000 | EA90: 0.9967736846 | EB90: 32.07850025 | ED90: 63000 | EE90: 0 | EF90: 0 | EG90: 1655 | EH90: 3073594.824 | EI90: 0.9981905911 | EJ90: 3262594.824 | EK90: 3000 | EL90: 0.996664387 | EM90: 31.90882947
A91: 84 | B91: 64000 | C91: 0 | D91: 0 | E91: 20285 | F91: 37008442.85 | G91: 0.9982284336 | H91: 39312442.85 | I91: 36000 | J91: 0.9986306286 | K91: 33.03694653 | M91: 64000 | N91: 0 | O91: 0 | P91: 1713 | Q91: 3113559.545 | R91: 0.9982517483 | S91: 3305559.545 | T91: 3000 | U91: 0.9979038646 | V91: 33.15438507 | X91: 64000 | Y91: 0 | Z91: 0 | AA91: 1709 | AB91: 3077466.697 | AC91: 0.9982476636 | AD91: 3269466.697 | AE91: 3000 | AF91: 0.9981452525 | AG91: 33.45034196 | AI91: 64000 | AJ91: 0 | AK91: 0 | AL91: 1722 | AM91: 3115864.116 | AN91: 0.9982608696 | AO91: 3307864.116 | AP91: 3000 | AQ91: 1.005086138 | AR91: 33.54476053 | AT91: 64000 | AU91: 0 | AV91: 0 | AW91: 1682 | AX91: 3098707.571 | AY91: 0.9982195846 | AZ91: 3290707.571 | BA91: 3000 | BB91: 1.000166731 | BC91: 32.77653147 | BE91: 64000 | BF91: 0 | BG91: 0 | BH91: 1699 | BI91: 3078314.995 | BJ91: 0.9982373678 | BK91: 3270314.995 | BL91: 3000 | BM91: 0.9974915642 | BN91: 33.22455521 | BP91: 64000 | BQ91: 0 | BR91: 0 | BS91: 1673 | BT91: 3085928.233 | BU91: 0.9982100239 | BV91: 3277928.233 | BW91: 3000 | BX91: 0.9973220293 | BY91: 32.6354766 | CA91: 64000 | CB91: 0 | CC91: 0 | CD91: 1685 | CE91: 3086131.141 | CF91: 0.9982227488 | CG91: 3278131.141 | CH91: 3000 | CI91: 0.9975258031 | CJ91: 32.87382442 | CL91: 64000 | CM91: 0 | CN91: 0 | CO91: 1693 | CP91: 3063655.278 | CQ91: 0.9982311321 | CR91: 3255655.278 | CS91: 3000 | CT91: 0.9981033043 | CU91: 33.27690305 | CW91: 64000 | CX91: 0 | CY91: 0 | CZ91: 1724 | DA91: 3065693.37 | DB91: 0.9982628836 | DC91: 3257693.37 | DD91: 3000 | DE91: 0.9989544549 | DF91: 33.89282706 | DH91: 64000 | DI91: 0 | DJ91: 0 | DK91: 1666 | DL91: 3075214.628 | DM91: 0.9982025165 | DN91: 3267214.628 | DO91: 3000 | DP91: 0.9975752692 | DQ91: 32.614019 | DS91: 64000 | DT91: 0 | DU91: 0 | DV91: 1664 | DW91: 3074312.447 | DX91: 0.9982003599 | DY91: 3266312.447 | DZ91: 3000 | EA91: 0.9976900299 | EB91: 32.58768279 | ED91: 64000 | EE91: 0 | EF91: 0 | EG91: 1655 | EH91: 3073594.824 | EI91: 0.9981905911 | EJ91: 3265594.824 | EK91: 3000 | EL91: 0.9975808334 | EM91: 32.41531883
A92: 85 | B92: 65000 | C92: 5 | D92: 319629.3394 | E92: 20290 | F92: 37328072.19 | G92: 0.9984744845 | H92: 39343072.19 | I92: 30629.33942 | J92: 0.9994086875 | K92: 33.55314882 | M92: 65000 | N92: 0 | O92: 0 | P92: 1713 | Q92: 3113559.545 | R92: 0.9982517483 | S92: 3308559.545 | T92: 3000 | U92: 0.9988095242 | V92: 33.67242233 | X92: 65000 | Y92: 0 | Z92: 0 | AA92: 1709 | AB92: 3077466.697 | AC92: 0.9982476636 | AD92: 3272466.697 | AE92: 3000 | AF92: 0.9990611314 | AG92: 33.97300355 | AI92: 65000 | AJ92: 0 | AK92: 0 | AL92: 1722 | AM92: 3115864.116 | AN92: 0.9982608696 | AO92: 3310864.116 | AP92: 3000 | AQ92: 1.00599768 | AR92: 34.06889741 | AT92: 65000 | AU92: 0 | AV92: 0 | AW92: 1682 | AX92: 3098707.571 | AY92: 0.9982195846 | AZ92: 3293707.571 | BA92: 3000 | BB92: 1.001078541 | BC92: 33.28866477 | BE92: 65000 | BF92: 0 | BG92: 0 | BH92: 1699 | BI92: 3078314.995 | BJ92: 0.9982373678 | BK92: 3273314.995 | BL92: 3000 | BM92: 0.9984066059 | BN92: 33.74368888 | BP92: 65000 | BQ92: 0 | BR92: 0 | BS92: 1673 | BT92: 3085928.233 | BU92: 0.9982100239 | BV92: 3280928.233 | BW92: 3000 | BX92: 0.9982347906 | BY92: 33.14540592 | CA92: 65000 | CB92: 0 | CC92: 0 | CD92: 1685 | CE92: 3086131.141 | CF92: 0.9982227488 | CG92: 3281131.141 | CH92: 3000 | CI92: 0.9984386945 | CJ92: 33.38747793 | CL92: 65000 | CM92: 1 | CN92: 63797.13994 | CO92: 1694 | CP92: 3127452.418 | CQ92: 0.9988207547 | CR92: 3257452.418 | CS92: 1797.139943 | CT92: 0.9986542629 | CU92: 33.79685466 | CW92: 65000 | CX92: 1 | CY92: 62903.18251 | CZ92: 1725 | DA92: 3128596.552 | DB92: 0.9988419224 | DC92: 3258596.552 | DD92: 903.1825072 | DE92: 0.9992314111 | DF92: 34.42240248 | DH92: 65000 | DI92: 1 | DJ92: 64361.9692 | DK92: 1667 | DL92: 3139576.597 | DM92: 0.9988016777 | DN92: 3269576.597 | DO92: 2361.969197 | DP92: 0.9982964468 | DQ92: 33.12361304 | DS92: 65000 | DT92: 1 | DU92: 64240.02594 | DV92: 1665 | DW92: 3138552.473 | DX92: 0.99880024 | DY92: 3268552.473 | DZ92: 2240.025938 | EA92: 0.9983742423 | EB92: 33.09686534 | ED92: 65000 | EE92: 1 | EF92: 64327.02184 | EG92: 1656 | EH92: 3137921.846 | EI92: 0.9987937274 | EJ92: 3267921.846 | EK92: 2327.021839 | EL92: 0.998291697 | EM92: 32.92180819
A93: 86 | B93: 66000 | C93: 19 | D93: 1216293.57 | E93: 20309 | F93: 38544365.76 | G93: 0.9994094779 | H93: 39336365.76 | I93: -6706.430141 | J93: 0.9992383281 | K93: 34.06935111 | M93: 66000 | N93: 2 | O93: 129726.6135 | P93: 1715 | Q93: 3243286.159 | R93: 0.9994172494 | S93: 3309286.159 | T93: 726.6134906 | U93: 0.999028879 | V93: 34.1904596 | X93: 66000 | Y93: 2 | Z93: 129160.5113 | AA93: 1711 | AB93: 3206627.208 | AC93: 0.9994158879 | AD93: 3272627.208 | AE93: 160.5112672 | AF93: 0.9991101344 | AG93: 34.49566514 | AI93: 66000 | AJ93: 2 | AK93: 114283.7345 | AL93: 1724 | AM93: 3230147.85 | AN93: 0.9994202899 | AO93: 3296147.85 | AP93: -14716.26549 | AQ93: 1.00152618 | AR93: 34.5930343 | AT93: 66000 | AU93: 2 | AV93: 124841.2295 | AW93: 1684 | AX93: 3223548.801 | AY93: 0.9994065282 | AZ93: 3289548.801 | BA93: -4158.770519 | BB93: 0.9998145381 | BC93: 33.80079808 | BE93: 66000 | BF93: 2 | BG93: 130561.6316 | BH93: 1701 | BI93: 3208876.627 | BJ93: 0.9994124559 | BK93: 3274876.627 | BL93: 1561.631609 | BM93: 0.9988829253 | BN93: 34.26282256 | BP93: 66000 | BQ93: 2 | BR93: 130938.3774 | BS93: 1675 | BT93: 3216866.611 | BU93: 0.9994033413 | BV93: 3282866.611 | BW93: 1938.377385 | BX93: 0.9988245493 | BY93: 33.65533524 | CA93: 66000 | CB93: 2 | CC93: 130500.8935 | CD93: 1687 | CE93: 3216632.034 | CF93: 0.9994075829 | CG93: 3282632.034 | CH93: 1500.893524 | CI93: 0.998895412 | CJ93: 33.90113144 | CL93: 66000 | CM93: 1 | CN93: 65116.35621 | CO93: 1695 | CP93: 3192568.775 | CQ93: 0.9994103774 | CR93: 3258568.775 | CS93: 1116.356207 | CT93: 0.9989965101 | CU93: 34.31680627 | CW93: 66000 | CX93: 1 | CY93: 64203.91325 | CZ93: 1726 | DA93: 3192800.466 | DB93: 0.9994209612 | DC93: 3258800.466 | DD93: 203.913253 | DE93: 0.99929394 | DF93: 34.9519779 | DH93: 66000 | DI93: 1 | DJ93: 65692.86517 | DK93: 1668 | DL93: 3205269.463 | DM93: 0.9994008388 | DN93: 3271269.463 | DO93: 1692.865169 | DP93: 0.9988133276 | DQ93: 33.63320709 | DS93: 66000 | DT93: 1 | DU93: 65568.40033 | DV93: 1666 | DW93: 3204120.873 | DX93: 0.99940012 | DY93: 3270120.873 | DZ93: 1568.40033 | EA93: 0.9988533078 | EB93: 33.60604788 | ED93: 66000 | EE93: 1 | EF93: 65699.04363 | EG93: 1657 | EH93: 3203620.89 | EI93: 0.9993968637 | EJ93: 3269620.89 | EK93: 1699.043634 | EL93: 0.9988107244 | EM93: 33.42829754
A94: 87 | B94: 67000 | C94: 0 | D94: 0 | E94: 20309 | F94: 38544365.76 | G94: 0.9994094779 | H94: 39348365.76 | I94: 12000 | J94: 0.9995431569 | K94: 34.5855534 | M94: 67000 | N94: 0 | O94: 0 | P94: 1715 | Q94: 3243286.159 | R94: 0.9994172494 | S94: 3310286.159 | T94: 1000 | U94: 0.9993307655 | V94: 34.70849687 | X94: 67000 | Y94: 0 | Z94: 0 | AA94: 1711 | AB94: 3206627.208 | AC94: 0.9994158879 | AD94: 3273627.208 | AE94: 1000 | AF94: 0.9994154274 | AG94: 35.01832674 | AI94: 67000 | AJ94: 0 | AK94: 0 | AL94: 1724 | AM94: 3230147.85 | AN94: 0.9994202899 | AO94: 3297147.85 | AP94: 1000 | AQ94: 1.001830028 | AR94: 35.11717118 | AT94: 67000 | AU94: 0 | AV94: 0 | AW94: 1684 | AX94: 3223548.801 | AY94: 0.9994065282 | AZ94: 3290548.801 | BA94: 1000 | BB94: 1.000118475 | BC94: 34.31293138 | BE94: 67000 | BF94: 0 | BG94: 0 | BH94: 1701 | BI94: 3208876.627 | BJ94: 0.9994124559 | BK94: 3275876.627 | BL94: 1000 | BM94: 0.9991879392 | BN94: 34.78195623 | BP94: 67000 | BQ94: 0 | BR94: 0 | BS94: 1675 | BT94: 3216866.611 | BU94: 0.9994033413 | BV94: 3283866.611 | BW94: 1000 | BX94: 0.999128803 | BY94: 34.16526456 | CA94: 67000 | CB94: 0 | CC94: 0 | CD94: 1687 | CE94: 3216632.034 | CF94: 0.9994075829 | CG94: 3283632.034 | CH94: 1000 | CI94: 0.9991997091 | CJ94: 34.41478494 | CL94: 67000 | CM94: 0 | CN94: 0 | CO94: 1695 | CP94: 3192568.775 | CQ94: 0.9994103774 | CR94: 3259568.775 | CS94: 1000 | CT94: 0.9993030853 | CU94: 34.83675788 | CW94: 67000 | CX94: 0 | CY94: 0 | CZ94: 1726 | DA94: 3192800.466 | DB94: 0.9994209612 | DC94: 3259800.466 | DD94: 1000 | DE94: 0.9996005847 | DF94: 35.48155333 | DH94: 67000 | DI94: 0 | DJ94: 0 | DK94: 1668 | DL94: 3205269.463 | DM94: 0.9994008388 | DN94: 3272269.463 | DO94: 1000 | DP94: 0.9991186565 | DQ94: 34.14280114 | DS94: 67000 | DT94: 0 | DU94: 0 | DV94: 1666 | DW94: 3204120.873 | DX94: 0.99940012 | DY94: 3271120.873 | DZ94: 1000 | EA94: 0.9991587562 | EB94: 34.11523042 | ED94: 67000 | EE94: 0 | EF94: 0 | EG94: 1657 | EH94: 3203620.89 | EI94: 0.9993968637 | EJ94: 3270620.89 | EK94: 1000 | EL94: 0.9991162065 | EM94: 33.9347869
A95: 88 | B95: 68000 | C95: 0 | D95: 0 | E95: 20309 | F95: 38544365.76 | G95: 0.9994094779 | H95: 39360365.76 | I95: 12000 | J95: 0.9998479858 | K95: 35.10175569 | M95: 68000 | N95: 0 | O95: 0 | P95: 1715 | Q95: 3243286.159 | R95: 0.9994172494 | S95: 3311286.159 | T95: 1000 | U95: 0.999632652 | V95: 35.22653413 | X95: 68000 | Y95: 0 | Z95: 0 | AA95: 1711 | AB95: 3206627.208 | AC95: 0.9994158879 | AD95: 3274627.208 | AE95: 1000 | AF95: 0.9997207204 | AG95: 35.54098833 | AI95: 68000 | AJ95: 0 | AK95: 0 | AL95: 1724 | AM95: 3230147.85 | AN95: 0.9994202899 | AO95: 3298147.85 | AP95: 1000 | AQ95: 1.002133875 | AR95: 35.64130806 | AT95: 68000 | AU95: 0 | AV95: 0 | AW95: 1684 | AX95: 3223548.801 | AY95: 0.9994065282 | AZ95: 3291548.801 | BA95: 1000 | BB95: 1.000422411 | BC95: 34.82506469 | BE95: 68000 | BF95: 0 | BG95: 0 | BH95: 1701 | BI95: 3208876.627 | BJ95: 0.9994124559 | BK95: 3276876.627 | BL95: 1000 | BM95: 0.9994929531 | BN95: 35.30108991 | BP95: 68000 | BQ95: 0 | BR95: 0 | BS95: 1675 | BT95: 3216866.611 | BU95: 0.9994033413 | BV95: 3284866.611 | BW95: 1000 | BX95: 0.9994330568 | BY95: 34.67519389 | CA95: 68000 | CB95: 0 | CC95: 0 | CD95: 1687 | CE95: 3216632.034 | CF95: 0.9994075829 | CG95: 3284632.034 | CH95: 1000 | CI95: 0.9995040062 | CJ95: 34.92843845 | CL95: 68000 | CM95: 0 | CN95: 0 | CO95: 1695 | CP95: 3192568.775 | CQ95: 0.9994103774 | CR95: 3260568.775 | CS95: 1000 | CT95: 0.9996096606 | CU95: 35.35670949 | CW95: 68000 | CX95: 0 | CY95: 0 | CZ95: 1726 | DA95: 3192800.466 | DB95: 0.9994209612 | DC95: 3260800.466 | DD95: 1000 | DE95: 0.9999072294 | DF95: 36.01112875 | DH95: 68000 | DI95: 0 | DJ95: 0 | DK95: 1668 | DL95: 3205269.463 | DM95: 0.9994008388 | DN95: 3273269.463 | DO95: 1000 | DP95: 0.9994239855 | DQ95: 34.65239518 | DS95: 68000 | DT95: 0 | DU95: 0 | DV95: 1666 | DW95: 3204120.873 | DX95: 0.99940012 | DY95: 3272120.873 | DZ95: 1000 | EA95: 0.9994642046 | EB95: 34.62441297 | ED95: 68000 | EE95: 0 | EF95: 0 | EG95: 1657 | EH95: 3203620.89 | EI95: 0.9993968637 | EJ95: 3271620.89 | EK95: 1000 | EL95: 0.9994216887 | EM95: 34.44127626
A96: 89 | B96: 69000 | C96: 0 | D96: 0 | E96: 20309 | F96: 38544365.76 | G96: 0.9994094779 | H96: 39372365.76 | I96: 12000 | J96: 1.000152815 | K96: 35.61795798 | M96: 69000 | N96: 0 | O96: 0 | P96: 1715 | Q96: 3243286.159 | R96: 0.9994172494 | S96: 3312286.159 | T96: 1000 | U96: 0.9999345385 | V96: 35.7445714 | X96: 69000 | Y96: 0 | Z96: 0 | AA96: 1711 | AB96: 3206627.208 | AC96: 0.9994158879 | AD96: 3275627.208 | AE96: 1000 | AF96: 1.000026013 | AG96: 36.06364992 | AI96: 69000 | AJ96: 0 | AK96: 0 | AL96: 1724 | AM96: 3230147.85 | AN96: 0.9994202899 | AO96: 3299147.85 | AP96: 1000 | AQ96: 1.002437723 | AR96: 36.16544495 | AT96: 69000 | AU96: 0 | AV96: 0 | AW96: 1684 | AX96: 3223548.801 | AY96: 0.9994065282 | AZ96: 3292548.801 | BA96: 1000 | BB96: 1.000726348 | BC96: 35.33719799 | BE96: 69000 | BF96: 0 | BG96: 0 | BH96: 1701 | BI96: 3208876.627 | BJ96: 0.9994124559 | BK96: 3277876.627 | BL96: 1000 | BM96: 0.999797967 | BN96: 35.82022358 | BP96: 69000 | BQ96: 0 | BR96: 0 | BS96: 1675 | BT96: 3216866.611 | BU96: 0.9994033413 | BV96: 3285866.611 | BW96: 1000 | BX96: 0.9997373106 | BY96: 35.18512321 | CA96: 69000 | CB96: 0 | CC96: 0 | CD96: 1687 | CE96: 3216632.034 | CF96: 0.9994075829 | CG96: 3285632.034 | CH96: 1000 | CI96: 0.9998083033 | CJ96: 35.44209196 | CL96: 69000 | CM96: 0 | CN96: 0 | CO96: 1695 | CP96: 3192568.775 | CQ96: 0.9994103774 | CR96: 3261568.775 | CS96: 1000 | CT96: 0.9999162358 | CU96: 35.8766611 | CW96: 69000 | CX96: 0 | CY96: 0 | CZ96: 1726 | DA96: 3192800.466 | DB96: 0.9994209612 | DC96: 3261800.466 | DD96: 1000 | DE96: 1.000213874 | DF96: 36.54070417 | DH96: 69000 | DI96: 0 | DJ96: 0 | DK96: 1668 | DL96: 3205269.463 | DM96: 0.9994008388 | DN96: 3274269.463 | DO96: 1000 | DP96: 0.9997293145 | DQ96: 35.16198923 | DS96: 69000 | DT96: 0 | DU96: 0 | DV96: 1666 | DW96: 3204120.873 | DX96: 0.99940012 | DY96: 3273120.873 | DZ96: 1000 | EA96: 0.9997696531 | EB96: 35.13359551 | ED96: 69000 | EE96: 0 | EF96: 0 | EG96: 1657 | EH96: 3203620.89 | EI96: 0.9993968637 | EJ96: 3272620.89 | EK96: 1000 | EL96: 0.9997271708 | EM96: 34.94776561
A97: 90 | B97: 70000 | C97: 12 | D97: 821984.2443 | E97: 20321 | F97: 39366350 | G97: 1 | H97: 39366350 | I97: -6015.755683 | J97: 1 | K97: 36.13416027 | M97: 70000 | N97: 1 | O97: 69216.84126 | P97: 1716 | Q97: 3312503 | R97: 1 | S97: 3312503 | T97: 216.8412581 | U97: 1 | V97: 36.26260867 | X97: 70000 | Y97: 1 | Z97: 68914.79215 | AA97: 1712 | AB97: 3275542 | AC97: 1 | AD97: 3275542 | AE97: -85.20784867 | AF97: 1 | AG97: 36.58631152 | AI97: 70000 | AJ97: 1 | AK97: 60977.14954 | AL97: 1725 | AM97: 3291125 | AN97: 1 | AO97: 3291125 | AP97: -8022.850462 | AQ97: 1 | AR97: 36.68958183 | AT97: 70000 | AU97: 1 | AV97: 66610.19918 | AW97: 1685 | AX97: 3290159 | AY97: 1 | AZ97: 3290159 | BA97: -2389.800821 | BB97: 1 | BC97: 35.84933129 | BE97: 70000 | BF97: 1 | BG97: 69662.37294 | BH97: 1702 | BI97: 3278539 | BJ97: 1 | BK97: 3278539 | BL97: 662.3729422 | BM97: 1 | BN97: 36.33935726 | BP97: 70000 | BQ97: 1 | BR97: 69863.38916 | BS97: 1676 | BT97: 3286730 | BU97: 1 | BV97: 3286730 | BW97: 863.3891552 | BX97: 1 | BY97: 35.69505253 | CA97: 70000 | CB97: 1 | CC97: 69629.96557 | CD97: 1688 | CE97: 3286262 | CF97: 1 | CG97: 3286262 | CH97: 629.9655718 | CI97: 1 | CJ97: 35.95574546 | CL97: 70000 | CM97: 1 | CN97: 69273.22549 | CO97: 1696 | CP97: 3261842 | CQ97: 1 | CR97: 3261842 | CS97: 273.2254862 | CT97: 1 | CU97: 36.39661271 | CW97: 70000 | CX97: 1 | CY97: 68302.5344 | CZ97: 1727 | DA97: 3261103 | DB97: 1 | DC97: 3261103 | DD97: -697.465599 | DE97: 1 | DF97: 37.0702796 | DH97: 70000 | DI97: 1 | DJ97: 69886.53737 | DK97: 1669 | DL97: 3275156 | DM97: 1 | DN97: 3275156 | DO97: 886.5373736 | DP97: 1 | DQ97: 35.67158328 | DS97: 70000 | DT97: 1 | DU97: 69754.127 | DV97: 1667 | DW97: 3273875 | DX97: 1 | DY97: 3273875 | DZ97: 754.1270037 | EA97: 1 | EB97: 35.64277805 | ED97: 70000 | EE97: 1 | EF97: 69893.11026 | EG97: 1658 | EH97: 3273514 | EI97: 1 | EJ97: 3273514 | EK97: 893.110257 | EL97: 1 | EM97: 35.45425497
A98: 91 | B98: 71000 | C98: 0 | D98: 0 | E98: 20321 | F98: 39366350 | G98: 1 | H98: 39366350 | I98: 0 | J98: 1 | K98: 36.65036256 | M98: 71000 | N98: 0 | O98: 0 | P98: 1716 | Q98: 3312503 | R98: 1 | S98: 3312503 | T98: 0 | U98: 1 | V98: 36.78064593 | X98: 71000 | Y98: 0 | Z98: 0 | AA98: 1712 | AB98: 3275542 | AC98: 1 | AD98: 3275542 | AE98: 0 | AF98: 1 | AG98: 37.10897311 | AI98: 71000 | AJ98: 0 | AK98: 0 | AL98: 1725 | AM98: 3291125 | AN98: 1 | AO98: 3291125 | AP98: 0 | AQ98: 1 | AR98: 37.21371871 | AT98: 71000 | AU98: 0 | AV98: 0 | AW98: 1685 | AX98: 3290159 | AY98: 1 | AZ98: 3290159 | BA98: 0 | BB98: 1 | BC98: 36.3614646 | BE98: 71000 | BF98: 0 | BG98: 0 | BH98: 1702 | BI98: 3278539 | BJ98: 1 | BK98: 3278539 | BL98: 0 | BM98: 1 | BN98: 36.85849093 | BP98: 71000 | BQ98: 0 | BR98: 0 | BS98: 1676 | BT98: 3286730 | BU98: 1 | BV98: 3286730 | BW98: 0 | BX98: 1 | BY98: 36.20498185 | CA98: 71000 | CB98: 0 | CC98: 0 | CD98: 1688 | CE98: 3286262 | CF98: 1 | CG98: 3286262 | CH98: 0 | CI98: 1 | CJ98: 36.46939897 | CL98: 71000 | CM98: 0 | CN98: 0 | CO98: 1696 | CP98: 3261842 | CQ98: 1 | CR98: 3261842 | CS98: 0 | CT98: 1 | CU98: 36.91656432 | CW98: 71000 | CX98: 0 | CY98: 0 | CZ98: 1727 | DA98: 3261103 | DB98: 1 | DC98: 3261103 | DD98: 0 | DE98: 1 | DF98: 37.59985502 | DH98: 71000 | DI98: 0 | DJ98: 0 | DK98: 1669 | DL98: 3275156 | DM98: 1 | DN98: 3275156 | DO98: 0 | DP98: 1 | DQ98: 36.18117732 | DS98: 71000 | DT98: 0 | DU98: 0 | DV98: 1667 | DW98: 3273875 | DX98: 1 | DY98: 3273875 | DZ98: 0 | EA98: 1 | EB98: 36.1519606 | ED98: 71000 | EE98: 0 | EF98: 0 | EG98: 1658 | EH98: 3273514 | EI98: 1 | EJ98: 3273514 | EK98: 0 | EL98: 1 | EM98: 35.96074433
A99: 92 | B99: 72000 | C99: 0 | D99: 0 | E99: 20321 | F99: 39366350 | G99: 1 | H99: 39366350 | I99: 0 | J99: 1 | K99: 37.16656485 | M99: 72000 | N99: 0 | O99: 0 | P99: 1716 | Q99: 3312503 | R99: 1 | S99: 3312503 | T99: 0 | U99: 1 | V99: 37.2986832 | X99: 72000 | Y99: 0 | Z99: 0 | AA99: 1712 | AB99: 3275542 | AC99: 1 | AD99: 3275542 | AE99: 0 | AF99: 1 | AG99: 37.6316347 | AI99: 72000 | AJ99: 0 | AK99: 0 | AL99: 1725 | AM99: 3291125 | AN99: 1 | AO99: 3291125 | AP99: 0 | AQ99: 1 | AR99: 37.7378556 | AT99: 72000 | AU99: 0 | AV99: 0 | AW99: 1685 | AX99: 3290159 | AY99: 1 | AZ99: 3290159 | BA99: 0 | BB99: 1 | BC99: 36.8735979 | BE99: 72000 | BF99: 0 | BG99: 0 | BH99: 1702 | BI99: 3278539 | BJ99: 1 | BK99: 3278539 | BL99: 0 | BM99: 1 | BN99: 37.37762461 | BP99: 72000 | BQ99: 0 | BR99: 0 | BS99: 1676 | BT99: 3286730 | BU99: 1 | BV99: 3286730 | BW99: 0 | BX99: 1 | BY99: 36.71491117 | CA99: 72000 | CB99: 0 | CC99: 0 | CD99: 1688 | CE99: 3286262 | CF99: 1 | CG99: 3286262 | CH99: 0 | CI99: 1 | CJ99: 36.98305248 | CL99: 72000 | CM99: 0 | CN99: 0 | CO99: 1696 | CP99: 3261842 | CQ99: 1 | CR99: 3261842 | CS99: 0 | CT99: 1 | CU99: 37.43651593 | CW99: 72000 | CX99: 0 | CY99: 0 | CZ99: 1727 | DA99: 3261103 | DB99: 1 | DC99: 3261103 | DD99: 0 | DE99: 1 | DF99: 38.12943044 | DH99: 72000 | DI99: 0 | DJ99: 0 | DK99: 1669 | DL99: 3275156 | DM99: 1 | DN99: 3275156 | DO99: 0 | DP99: 1 | DQ99: 36.69077137 | DS99: 72000 | DT99: 0 | DU99: 0 | DV99: 1667 | DW99: 3273875 | DX99: 1 | DY99: 3273875 | DZ99: 0 | EA99: 1 | EB99: 36.66114314 | ED99: 72000 | EE99: 0 | EF99: 0 | EG99: 1658 | EH99: 3273514 | EI99: 1 | EJ99: 3273514 | EK99: 0 | EL99: 1 | EM99: 36.46723368
A100: 93 | B100: 73000 | C100: 0 | D100: 0 | E100: 20321 | F100: 39366350 | G100: 1 | H100: 39366350 | I100: 0 | J100: 1 | K100: 37.68276713 | M100: 73000 | N100: 0 | O100: 0 | P100: 1716 | Q100: 3312503 | R100: 1 | S100: 3312503 | T100: 0 | U100: 1 | V100: 37.81672047 | X100: 73000 | Y100: 0 | Z100: 0 | AA100: 1712 | AB100: 3275542 | AC100: 1 | AD100: 3275542 | AE100: 0 | AF100: 1 | AG100: 38.1542963 | AI100: 73000 | AJ100: 0 | AK100: 0 | AL100: 1725 | AM100: 3291125 | AN100: 1 | AO100: 3291125 | AP100: 0 | AQ100: 1 | AR100: 38.26199248 | AT100: 73000 | AU100: 0 | AV100: 0 | AW100: 1685 | AX100: 3290159 | AY100: 1 | AZ100: 3290159 | BA100: 0 | BB100: 1 | BC100: 37.38573121 | BE100: 73000 | BF100: 0 | BG100: 0 | BH100: 1702 | BI100: 3278539 | BJ100: 1 | BK100: 3278539 | BL100: 0 | BM100: 1 | BN100: 37.89675828 | BP100: 73000 | BQ100: 0 | BR100: 0 | BS100: 1676 | BT100: 3286730 | BU100: 1 | BV100: 3286730 | BW100: 0 | BX100: 1 | BY100: 37.22484049 | CA100: 73000 | CB100: 0 | CC100: 0 | CD100: 1688 | CE100: 3286262 | CF100: 1 | CG100: 3286262 | CH100: 0 | CI100: 1 | CJ100: 37.49670598 | CL100: 73000 | CM100: 0 | CN100: 0 | CO100: 1696 | CP100: 3261842 | CQ100: 1 | CR100: 3261842 | CS100: 0 | CT100: 1 | CU100: 37.95646754 | CW100: 73000 | CX100: 0 | CY100: 0 | CZ100: 1727 | DA100: 3261103 | DB100: 1 | DC100: 3261103 | DD100: 0 | DE100: 1 | DF100: 38.65900586 | DH100: 73000 | DI100: 0 | DJ100: 0 | DK100: 1669 | DL100: 3275156 | DM100: 1 | DN100: 3275156 | DO100: 0 | DP100: 1 | DQ100: 37.20036542 | DS100: 73000 | DT100: 0 | DU100: 0 | DV100: 1667 | DW100: 3273875 | DX100: 1 | DY100: 3273875 | DZ100: 0 | EA100: 1 | EB100: 37.17032568 | ED100: 73000 | EE100: 0 | EF100: 0 | EG100: 1658 | EH100: 3273514 | EI100: 1 | EJ100: 3273514 | EK100: 0 | EL100: 1 | EM100: 36.97372304
A101: 94 | B101: 74000 | C101: 0 | D101: 0 | E101: 20321 | F101: 39366350 | G101: 1 | H101: 39366350 | I101: 0 | J101: 1 | K101: 38.19896942 | M101: 74000 | N101: 0 | O101: 0 | P101: 1716 | Q101: 3312503 | R101: 1 | S101: 3312503 | T101: 0 | U101: 1 | V101: 38.33475773 | X101: 74000 | Y101: 0 | Z101: 0 | AA101: 1712 | AB101: 3275542 | AC101: 1 | AD101: 3275542 | AE101: 0 | AF101: 1 | AG101: 38.67695789 | AI101: 74000 | AJ101: 0 | AK101: 0 | AL101: 1725 | AM101: 3291125 | AN101: 1 | AO101: 3291125 | AP101: 0 | AQ101: 1 | AR101: 38.78612936 | AT101: 74000 | AU101: 0 | AV101: 0 | AW101: 1685 | AX101: 3290159 | AY101: 1 | AZ101: 3290159 | BA101: 0 | BB101: 1 | BC101: 37.89786451 | BE101: 74000 | BF101: 0 | BG101: 0 | BH101: 1702 | BI101: 3278539 | BJ101: 1 | BK101: 3278539 | BL101: 0 | BM101: 1 | BN101: 38.41589196 | BP101: 74000 | BQ101: 0 | BR101: 0 | BS101: 1676 | BT101: 3286730 | BU101: 1 | BV101: 3286730 | BW101: 0 | BX101: 1 | BY101: 37.73476982 | CA101: 74000 | CB101: 0 | CC101: 0 | CD101: 1688 | CE101: 3286262 | CF101: 1 | CG101: 3286262 | CH101: 0 | CI101: 1 | CJ101: 38.01035949 | CL101: 74000 | CM101: 0 | CN101: 0 | CO101: 1696 | CP101: 3261842 | CQ101: 1 | CR101: 3261842 | CS101: 0 | CT101: 1 | CU101: 38.47641915 | CW101: 74000 | CX101: 0 | CY101: 0 | CZ101: 1727 | DA101: 3261103 | DB101: 1 | DC101: 3261103 | DD101: 0 | DE101: 1 | DF101: 39.18858129 | DH101: 74000 | DI101: 0 | DJ101: 0 | DK101: 1669 | DL101: 3275156 | DM101: 1 | DN101: 3275156 | DO101: 0 | DP101: 1 | DQ101: 37.70995946 | DS101: 74000 | DT101: 0 | DU101: 0 | DV101: 1667 | DW101: 3273875 | DX101: 1 | DY101: 3273875 | DZ101: 0 | EA101: 1 | EB101: 37.67950823 | ED101: 74000 | EE101: 0 | EF101: 0 | EG101: 1658 | EH101: 3273514 | EI101: 1 | EJ101: 3273514 | EK101: 0 | EL101: 1 | EM101: 37.4802124
A102: 95 | B102: 75000 | C102: 0 | D102: 0 | E102: 20321 | F102: 39366350 | G102: 1 | H102: 39366350 | I102: 0 | J102: 1 | K102: 38.71517171 | M102: 75000 | N102: 0 | O102: 0 | P102: 1716 | Q102: 3312503 | R102: 1 | S102: 3312503 | T102: 0 | U102: 1 | V102: 38.852795 | X102: 75000 | Y102: 0 | Z102: 0 | AA102: 1712 | AB102: 3275542 | AC102: 1 | AD102: 3275542 | AE102: 0 | AF102: 1 | AG102: 39.19961948 | AI102: 75000 | AJ102: 0 | AK102: 0 | AL102: 1725 | AM102: 3291125 | AN102: 1 | AO102: 3291125 | AP102: 0 | AQ102: 1 | AR102: 39.31026625 | AT102: 75000 | AU102: 0 | AV102: 0 | AW102: 1685 | AX102: 3290159 | AY102: 1 | AZ102: 3290159 | BA102: 0 | BB102: 1 | BC102: 38.40999781 | BE102: 75000 | BF102: 0 | BG102: 0 | BH102: 1702 | BI102: 3278539 | BJ102: 1 | BK102: 3278539 | BL102: 0 | BM102: 1 | BN102: 38.93502563 | BP102: 75000 | BQ102: 0 | BR102: 0 | BS102: 1676 | BT102: 3286730 | BU102: 1 | BV102: 3286730 | BW102: 0 | BX102: 1 | BY102: 38.24469914 | CA102: 75000 | CB102: 0 | CC102: 0 | CD102: 1688 | CE102: 3286262 | CF102: 1 | CG102: 3286262 | CH102: 0 | CI102: 1 | CJ102: 38.524013 | CL102: 75000 | CM102: 0 | CN102: 0 | CO102: 1696 | CP102: 3261842 | CQ102: 1 | CR102: 3261842 | CS102: 0 | CT102: 1 | CU102: 38.99637076 | CW102: 75000 | CX102: 0 | CY102: 0 | CZ102: 1727 | DA102: 3261103 | DB102: 1 | DC102: 3261103 | DD102: 0 | DE102: 1 | DF102: 39.71815671 | DH102: 75000 | DI102: 0 | DJ102: 0 | DK102: 1669 | DL102: 3275156 | DM102: 1 | DN102: 3275156 | DO102: 0 | DP102: 1 | DQ102: 38.21955351 | DS102: 75000 | DT102: 0 | DU102: 0 | DV102: 1667 | DW102: 3273875 | DX102: 1 | DY102: 3273875 | DZ102: 0 | EA102: 1 | EB102: 38.18869077 | ED102: 75000 | EE102: 0 | EF102: 0 | EG102: 1658 | EH102: 3273514 | EI102: 1 | EJ102: 3273514 | EK102: 0 | EL102: 1 | EM102: 37.98670175
A103: 96 | B103: 76000 | C103: 0 | D103: 0 | E103: 20321 | F103: 39366350 | G103: 1 | H103: 39366350 | I103: 0 | J103: 1 | K103: 39.231374 | M103: 76000 | N103: 0 | O103: 0 | P103: 1716 | Q103: 3312503 | R103: 1 | S103: 3312503 | T103: 0 | U103: 1 | V103: 39.37083227 | X103: 76000 | Y103: 0 | Z103: 0 | AA103: 1712 | AB103: 3275542 | AC103: 1 | AD103: 3275542 | AE103: 0 | AF103: 1 | AG103: 39.72228108 | AI103: 76000 | AJ103: 0 | AK103: 0 | AL103: 1725 | AM103: 3291125 | AN103: 1 | AO103: 3291125 | AP103: 0 | AQ103: 1 | AR103: 39.83440313 | AT103: 76000 | AU103: 0 | AV103: 0 | AW103: 1685 | AX103: 3290159 | AY103: 1 | AZ103: 3290159 | BA103: 0 | BB103: 1 | BC103: 38.92213112 | BE103: 76000 | BF103: 0 | BG103: 0 | BH103: 1702 | BI103: 3278539 | BJ103: 1 | BK103: 3278539 | BL103: 0 | BM103: 1 | BN103: 39.45415931 | BP103: 76000 | BQ103: 0 | BR103: 0 | BS103: 1676 | BT103: 3286730 | BU103: 1 | BV103: 3286730 | BW103: 0 | BX103: 1 | BY103: 38.75462846 | CA103: 76000 | CB103: 0 | CC103: 0 | CD103: 1688 | CE103: 3286262 | CF103: 1 | CG103: 3286262 | CH103: 0 | CI103: 1 | CJ103: 39.0376665 | CL103: 76000 | CM103: 0 | CN103: 0 | CO103: 1696 | CP103: 3261842 | CQ103: 1 | CR103: 3261842 | CS103: 0 | CT103: 1 | CU103: 39.51632237 | CW103: 76000 | CX103: 0 | CY103: 0 | CZ103: 1727 | DA103: 3261103 | DB103: 1 | DC103: 3261103 | DD103: 0 | DE103: 1 | DF103: 40.24773213 | DH103: 76000 | DI103: 0 | DJ103: 0 | DK103: 1669 | DL103: 3275156 | DM103: 1 | DN103: 3275156 | DO103: 0 | DP103: 1 | DQ103: 38.72914756 | DS103: 76000 | DT103: 0 | DU103: 0 | DV103: 1667 | DW103: 3273875 | DX103: 1 | DY103: 3273875 | DZ103: 0 | EA103: 1 | EB103: 38.69787332 | ED103: 76000 | EE103: 0 | EF103: 0 | EG103: 1658 | EH103: 3273514 | EI103: 1 | EJ103: 3273514 | EK103: 0 | EL103: 1 | EM103: 38.49319111
A104: 97 | B104: 77000 | C104: 0 | D104: 0 | E104: 20321 | F104: 39366350 | G104: 1 | H104: 39366350 | I104: 0 | J104: 1 | K104: 39.74757629 | M104: 77000 | N104: 0 | O104: 0 | P104: 1716 | Q104: 3312503 | R104: 1 | S104: 3312503 | T104: 0 | U104: 1 | V104: 39.88886953 | X104: 77000 | Y104: 0 | Z104: 0 | AA104: 1712 | AB104: 3275542 | AC104: 1 | AD104: 3275542 | AE104: 0 | AF104: 1 | AG104: 40.24494267 | AI104: 77000 | AJ104: 0 | AK104: 0 | AL104: 1725 | AM104: 3291125 | AN104: 1 | AO104: 3291125 | AP104: 0 | AQ104: 1 | AR104: 40.35854001 | AT104: 77000 | AU104: 0 | AV104: 0 | AW104: 1685 | AX104: 3290159 | AY104: 1 | AZ104: 3290159 | BA104: 0 | BB104: 1 | BC104: 39.43426442 | BE104: 77000 | BF104: 0 | BG104: 0 | BH104: 1702 | BI104: 3278539 | BJ104: 1 | BK104: 3278539 | BL104: 0 | BM104: 1 | BN104: 39.97329298 | BP104: 77000 | BQ104: 0 | BR104: 0 | BS104: 1676 | BT104: 3286730 | BU104: 1 | BV104: 3286730 | BW104: 0 | BX104: 1 | BY104: 39.26455778 | CA104: 77000 | CB104: 0 | CC104: 0 | CD104: 1688 | CE104: 3286262 | CF104: 1 | CG104: 3286262 | CH104: 0 | CI104: 1 | CJ104: 39.55132001 | CL104: 77000 | CM104: 0 | CN104: 0 | CO104: 1696 | CP104: 3261842 | CQ104: 1 | CR104: 3261842 | CS104: 0 | CT104: 1 | CU104: 40.03627398 | CW104: 77000 | CX104: 0 | CY104: 0 | CZ104: 1727 | DA104: 3261103 | DB104: 1 | DC104: 3261103 | DD104: 0 | DE104: 1 | DF104: 40.77730756 | DH104: 77000 | DI104: 0 | DJ104: 0 | DK104: 1669 | DL104: 3275156 | DM104: 1 | DN104: 3275156 | DO104: 0 | DP104: 1 | DQ104: 39.2387416 | DS104: 77000 | DT104: 0 | DU104: 0 | DV104: 1667 | DW104: 3273875 | DX104: 1 | DY104: 3273875 | DZ104: 0 | EA104: 1 | EB104: 39.20705586 | ED104: 77000 | EE104: 0 | EF104: 0 | EG104: 1658 | EH104: 3273514 | EI104: 1 | EJ104: 3273514 | EK104: 0 | EL104: 1 | EM104: 38.99968047
A105: 98 | B105: 78000 | C105: 0 | D105: 0 | E105: =E104+C105 -> 20321 | F105: 39366350 | G105: 1 | H105: 39366350 | I105: 0 | J105: 1 | K105: 40.26377858 | M105: 78000 | N105: 0 | O105: 0 | P105: 1716 | Q105: 3312503 | R105: 1 | S105: 3312503 | T105: 0 | U105: 1 | V105: 40.4069068 | X105: 78000 | Y105: 0 | Z105: 0 | AA105: 1712 | AB105: 3275542 | AC105: 1 | AD105: 3275542 | AE105: 0 | AF105: 1 | AG105: 40.76760426 | AI105: 78000 | AJ105: 0 | AK105: 0 | AL105: 1725 | AM105: 3291125 | AN105: 1 | AO105: 3291125 | AP105: 0 | AQ105: 1 | AR105: 40.8826769 | AT105: 78000 | AU105: 0 | AV105: 0 | AW105: 1685 | AX105: 3290159 | AY105: 1 | AZ105: 3290159 | BA105: 0 | BB105: 1 | BC105: 39.94639773 | BE105: 78000 | BF105: 0 | BG105: 0 | BH105: 1702 | BI105: 3278539 | BJ105: 1 | BK105: 3278539 | BL105: 0 | BM105: 1 | BN105: 40.49242666 | BP105: 78000 | BQ105: 0 | BR105: 0 | BS105: 1676 | BT105: 3286730 | BU105: 1 | BV105: 3286730 | BW105: 0 | BX105: 1 | BY105: 39.7744871 | CA105: 78000 | CB105: 0 | CC105: 0 | CD105: 1688 | CE105: 3286262 | CF105: 1 | CG105: 3286262 | CH105: 0 | CI105: 1 | CJ105: 40.06497352 | CL105: 78000 | CM105: 0 | CN105: 0 | CO105: 1696 | CP105: 3261842 | CQ105: 1 | CR105: 3261842 | CS105: 0 | CT105: 1 | CU105: 40.55622559 | CW105: 78000 | CX105: 0 | CY105: 0 | CZ105: 1727 | DA105: 3261103 | DB105: 1 | DC105: 3261103 | DD105: 0 | DE105: 1 | DF105: 41.30688298 | DH105: 78000 | DI105: 0 | DJ105: 0 | DK105: 1669 | DL105: 3275156 | DM105: 1 | DN105: 3275156 | DO105: 0 | DP105: 1 | DQ105: 39.74833565 | DS105: 78000 | DT105: 0 | DU105: 0 | DV105: 1667 | DW105: 3273875 | DX105: 1 | DY105: 3273875 | DZ105: 0 | EA105: 1 | EB105: 39.7162384 | ED105: 78000 | EE105: 0 | EF105: 0 | EG105: 1658 | EH105: 3273514 | EI105: 1 | EJ105: 3273514 | EK105: 0 | EL105: 1 | EM105: 39.50616982
A106: 99 | B106: 79000 | C106: 0 | D106: 0 | E106: 20321 | F106: 39366350 | G106: 1 | H106: 39366350 | I106: 0 | J106: 1 | K106: 40.77998087 | M106: 79000 | N106: 0 | O106: 0 | P106: 1716 | Q106: 3312503 | R106: 1 | S106: 3312503 | T106: 0 | U106: 1 | V106: 40.92494407 | X106: 79000 | Y106: 0 | Z106: 0 | AA106: 1712 | AB106: 3275542 | AC106: 1 | AD106: 3275542 | AE106: 0 | AF106: 1 | AG106: 41.29026586 | AI106: 79000 | AJ106: 0 | AK106: 0 | AL106: 1725 | AM106: 3291125 | AN106: 1 | AO106: 3291125 | AP106: 0 | AQ106: 1 | AR106: 41.40681378 | AT106: 79000 | AU106: 0 | AV106: 0 | AW106: 1685 | AX106: 3290159 | AY106: 1 | AZ106: 3290159 | BA106: 0 | BB106: 1 | BC106: 40.45853103 | BE106: 79000 | BF106: 0 | BG106: 0 | BH106: 1702 | BI106: 3278539 | BJ106: 1 | BK106: 3278539 | BL106: 0 | BM106: 1 | BN106: 41.01156033 | BP106: 79000 | BQ106: 0 | BR106: 0 | BS106: 1676 | BT106: 3286730 | BU106: 1 | BV106: 3286730 | BW106: 0 | BX106: 1 | BY106: 40.28441643 | CA106: 79000 | CB106: 0 | CC106: 0 | CD106: 1688 | CE106: 3286262 | CF106: 1 | CG106: 3286262 | CH106: 0 | CI106: 1 | CJ106: 40.57862702 | CL106: 79000 | CM106: 0 | CN106: 0 | CO106: 1696 | CP106: 3261842 | CQ106: 1 | CR106: 3261842 | CS106: 0 | CT106: 1 | CU106: 41.0761772 | CW106: 79000 | CX106: 0 | CY106: 0 | CZ106: 1727 | DA106: 3261103 | DB106: 1 | DC106: 3261103 | DD106: 0 | DE106: 1 | DF106: 41.8364584 | DH106: 79000 | DI106: 0 | DJ106: 0 | DK106: 1669 | DL106: 3275156 | DM106: 1 | DN106: 3275156 | DO106: 0 | DP106: 1 | DQ106: 40.2579297 | DS106: 79000 | DT106: 0 | DU106: 0 | DV106: 1667 | DW106: 3273875 | DX106: 1 | DY106: 3273875 | DZ106: 0 | EA106: 1 | EB106: 40.22542095 | ED106: 79000 | EE106: 0 | EF106: 0 | EG106: 1658 | EH106: 3273514 | EI106: 1 | EJ106: 3273514 | EK106: 0 | EL106: 1 | EM106: 40.01265918
A107: 100 | B107: 80000 | C107: 0 | D107: 0 | E107: 20321 | F107: 39366350 | G107: 1 | H107: 39366350 | I107: 0 | J107: 1 | K107: 41.29618316 | M107: 80000 | N107: 0 | O107: 0 | P107: 1716 | Q107: 3312503 | R107: 1 | S107: 3312503 | T107: 0 | U107: 1 | V107: 41.44298133 | X107: 80000 | Y107: 0 | Z107: 0 | AA107: 1712 | AB107: 3275542 | AC107: 1 | AD107: 3275542 | AE107: 0 | AF107: 1 | AG107: 41.81292745 | AI107: 80000 | AJ107: 0 | AK107: 0 | AL107: 1725 | AM107: 3291125 | AN107: 1 | AO107: 3291125 | AP107: 0 | AQ107: 1 | AR107: 41.93095066 | AT107: 80000 | AU107: 0 | AV107: 0 | AW107: 1685 | AX107: 3290159 | AY107: 1 | AZ107: 3290159 | BA107: 0 | BB107: 1 | BC107: 40.97066434 | BE107: 80000 | BF107: 0 | BG107: 0 | BH107: 1702 | BI107: 3278539 | BJ107: 1 | BK107: 3278539 | BL107: 0 | BM107: 1 | BN107: 41.53069401 | BP107: 80000 | BQ107: 0 | BR107: 0 | BS107: 1676 | BT107: 3286730 | BU107: 1 | BV107: 3286730 | BW107: 0 | BX107: 1 | BY107: 40.79434575 | CA107: 80000 | CB107: 0 | CC107: 0 | CD107: 1688 | CE107: 3286262 | CF107: 1 | CG107: 3286262 | CH107: 0 | CI107: 1 | CJ107: 41.09228053 | CL107: 80000 | CM107: 0 | CN107: 0 | CO107: 1696 | CP107: 3261842 | CQ107: 1 | CR107: 3261842 | CS107: 0 | CT107: 1 | CU107: 41.59612881 | CW107: 80000 | CX107: 0 | CY107: 0 | CZ107: 1727 | DA107: 3261103 | DB107: 1 | DC107: 3261103 | DD107: 0 | DE107: 1 | DF107: 42.36603382 | DH107: 80000 | DI107: 0 | DJ107: 0 | DK107: 1669 | DL107: 3275156 | DM107: 1 | DN107: 3275156 | DO107: 0 | DP107: 1 | DQ107: 40.76752375 | DS107: 80000 | DT107: 0 | DU107: 0 | DV107: 1667 | DW107: 3273875 | DX107: 1 | DY107: 3273875 | DZ107: 0 | EA107: 1 | EB107: 40.73460349 | ED107: 80000 | EE107: 0 | EF107: 0 | EG107: 1658 | EH107: 3273514 | EI107: 1 | EJ107: 3273514 | EK107: 0 | EL107: 1 | EM107: 40.51914854
A108: 101 | B108: 81000 | C108: 0 | D108: 0 | E108: 20321 | F108: 39366350 | G108: 1 | H108: 39366350 | I108: 0 | J108: 1 | K108: 41.81238545 | M108: 81000 | N108: 0 | O108: 0 | P108: 1716 | Q108: 3312503 | R108: 1 | S108: 3312503 | T108: 0 | U108: 1 | V108: 41.9610186 | X108: 81000 | Y108: 0 | Z108: 0 | AA108: 1712 | AB108: 3275542 | AC108: 1 | AD108: 3275542 | AE108: 0 | AF108: 1 | AG108: 42.33558904 | AI108: 81000 | AJ108: 0 | AK108: 0 | AL108: 1725 | AM108: 3291125 | AN108: 1 | AO108: 3291125 | AP108: 0 | AQ108: 1 | AR108: 42.45508755 | AT108: 81000 | AU108: 0 | AV108: 0 | AW108: 1685 | AX108: 3290159 | AY108: 1 | AZ108: 3290159 | BA108: 0 | BB108: 1 | BC108: 41.48279764 | BE108: 81000 | BF108: 0 | BG108: 0 | BH108: 1702 | BI108: 3278539 | BJ108: 1 | BK108: 3278539 | BL108: 0 | BM108: 1 | BN108: 42.04982768 | BP108: 81000 | BQ108: 0 | BR108: 0 | BS108: 1676 | BT108: 3286730 | BU108: 1 | BV108: 3286730 | BW108: 0 | BX108: 1 | BY108: 41.30427507 | CA108: 81000 | CB108: 0 | CC108: 0 | CD108: 1688 | CE108: 3286262 | CF108: 1 | CG108: 3286262 | CH108: 0 | CI108: 1 | CJ108: 41.60593404 | CL108: 81000 | CM108: 0 | CN108: 0 | CO108: 1696 | CP108: 3261842 | CQ108: 1 | CR108: 3261842 | CS108: 0 | CT108: 1 | CU108: 42.11608042 | CW108: 81000 | CX108: 0 | CY108: 0 | CZ108: 1727 | DA108: 3261103 | DB108: 1 | DC108: 3261103 | DD108: 0 | DE108: 1 | DF108: 42.89560925 | DH108: 81000 | DI108: 0 | DJ108: 0 | DK108: 1669 | DL108: 3275156 | DM108: 1 | DN108: 3275156 | DO108: 0 | DP108: 1 | DQ108: 41.27711779 | DS108: 81000 | DT108: 0 | DU108: 0 | DV108: 1667 | DW108: 3273875 | DX108: 1 | DY108: 3273875 | DZ108: 0 | EA108: 1 | EB108: 41.24378603 | ED108: 81000 | EE108: 0 | EF108: 0 | EG108: 1658 | EH108: 3273514 | EI108: 1 | EJ108: 3273514 | EK108: 0 | EL108: 1 | EM108: 41.02563789
A109: 102 | B109: Total | C109: =SUM(C8:C108) -> 20321 | D109: =SUM(D8:D108) -> 39366350 | I109: =SUM(I8:I108) -> 39366350 | K109: =D109/C109 -> 1937.225038 | M109: Total | N109: =SUM(N8:N108) -> 1716 | O109: =SUM(O8:O108) -> 3312503 | T109: =SUM(T8:T108) -> 3312503 | V109: =O109/N109 -> 1930.363054 | X109: Total | Y109: =SUM(Y8:Y108) -> 1712 | Z109: =SUM(Z8:Z108) -> 3275542 | AE109: =SUM(AE8:AE108) -> 3275542 | AG109: =Z109/Y109 -> 1913.283879 | AI109: Total | AJ109: =SUM(AJ8:AJ108) -> 1725 | AK109: =SUM(AK8:AK108) -> 3291125 | AP109: =SUM(AP8:AP108) -> 3291125 | AR109: =AK109/AJ109 -> 1907.898551 | AT109: Total | AU109: =SUM(AU8:AU108) -> 1685 | AV109: =SUM(AV8:AV108) -> 3290159 | BA109: =SUM(BA8:BA108) -> 3290159 | BC109: =AV109/AU109 -> 1952.616617 | BE109: Total | BF109: =SUM(BF8:BF108) -> 1702 | BG109: =SUM(BG8:BG108) -> 3278539 | BL109: =SUM(BL8:BL108) -> 3278539 | BN109: =BG109/BF109 -> 1926.286134 | BP109: Total | BQ109: =SUM(BQ8:BQ108) -> 1676 | BR109: =SUM(BR8:BR108) -> 3286730 | BW109: =SUM(BW8:BW108) -> 3286730 | BY109: =BR109/BQ109 -> 1961.056086 | CA109: Total | CB109: =SUM(CB8:CB108) -> 1688 | CC109: =SUM(CC8:CC108) -> 3286262 | CH109: =SUM(CH8:CH108) -> 3286262 | CJ109: =CC109/CB109 -> 1946.837678 | CL109: Total | CM109: =SUM(CM8:CM108) -> 1696 | CN109: =SUM(CN8:CN108) -> 3261842 | CS109: =SUM(CS8:CS108) -> 3261842 | CU109: =CN109/CM109 -> 1923.255896 | CW109: Total | CX109: =SUM(CX8:CX108) -> 1727 | CY109: =SUM(CY8:CY108) -> 3261103 | DD109: =SUM(DD8:DD108) -> 3261103 | DF109: =CY109/CX109 -> 1888.305153 | DH109: Total | DI109: =SUM(DI8:DI108) -> 1669 | DJ109: =SUM(DJ8:DJ108) -> 3275156 | DO109: =SUM(DO8:DO108) -> 3275156 | DQ109: =DJ109/DI109 -> 1962.346315 | DS109: Total | DT109: =SUM(DT8:DT108) -> 1667 | DU109: =SUM(DU8:DU108) -> 3273875 | DZ109: =SUM(DZ8:DZ108) -> 3273875 | EB109: =DU109/DT109 -> 1963.932214 | ED109: Total | EE109: =SUM(EE8:EE108) -> 1658 | EF109: =SUM(EF8:EF108) -> 3273514 | EK109: =SUM(EK8:EK108) -> 3273514 | EM109: =EF109/EE109 -> 1974.375151
B110: Billed Data
